"Client","Service Area","Expenditure Catergory","Expenditure Code","Paid Date","Trans No","Amount","Type of Expenditure","Supplier ID","Supplier Name"
"OCC","General Fund","Developer Contributions Unapplied (capital)","Z750101","09/01/2018","46296351 - 1","5000.00","Revenue","20000000","GENERAL EXPENSES"
"OCC","General Fund","C.I.T.Awaiting Payment","Z970590","16/01/2018","46296394 - 1","2745.94","Revenue","20016580","HMRC"
"OCC","General Fund","AR Refunds (Sundries & Periodics)","Z400404","16/01/2018","46296435 - 1","5200.00","Revenue","20008178","WEST OXFORDSHIRE DISTRICT COUNCIL GENERAL A/C"
"OCC","General Fund","AR Refunds (Sundries & Periodics)","Z400404","12/01/2018","46296458 - 1","3471.00","Revenue","36003780","REPONSE ORGANISATION"
"OCC","General Fund","AR Refunds (Sundries & Periodics)","Z400404","12/01/2018","46296460 - 1","766.15","Revenue","36003478","MR J G PATTERSON"
"OCC","General Fund","AR Refunds (Sundries & Periodics)","Z400404","12/01/2018","46296461 - 0","500.00","Revenue","36020545","VIRGIN SPORT UK LTD"
"OCC","General Fund","Developer Contributions Unapplied (capital)","Z750101","16/01/2018","46296466 - 1","1750.00","Revenue","20004730","LITTLEMORE PARISH COUNCIL"
"OCC","General Fund","AR Refunds (Sundries & Periodics)","Z400404","19/01/2018","46296488 - 1","662.37","Revenue","36725370","CHRISTIAN LIFE CENTRE"
"OCC","General Fund","AR Refunds (Sundries & Periodics)","Z400404","19/01/2018","46296489 - 0","998.71","Revenue","36009552","DILLONS STORES LTD"
"OCC","General Fund","AR Refunds (Sundries & Periodics)","Z400404","19/01/2018","46296490 - 1","3925.00","Revenue","36003771","OXFORD COMMUNITY WORK AGENCY L"
"OCC","General Fund","AR Refunds (Sundries & Periodics)","Z400404","19/01/2018","46296494 - 1","500.00","Revenue","36019984","NIRA EVENTS"
"OCC","General Fund","AR Refunds (Sundries & Periodics)","Z400404","26/01/2018","46296619 - 1","3471.00","Revenue","36003780","REPONSE ORGANISATION"
"OCC","General Fund","AR Refunds (Sundries & Periodics)","Z400404","26/01/2018","46296620 - 0","851.72","Revenue","36020708","THE WINE SOCIETY"
"OCC","General Fund","AR Refunds (Sundries & Periodics)","Z400404","30/01/2018","46296648 - 1","3919.65","Revenue","20000000","GENERAL EXPENSES"
"OCC","General Fund","Difference A/c","Z910198","16/01/2018","47023014 - 3","0.01","Revenue","",""
"OCC","General Fund","Difference A/c","Z910198","16/01/2018","47023017 - 3","0.01","Revenue","",""
"OCC","General Fund","Difference A/c","Z910198","16/01/2018","47023018 - 3","0.01","Revenue","",""
"OCC","General Fund","Difference A/c","Z910198","16/01/2018","47023019 - 3","0.01","Revenue","",""
"OCC","General Fund","Difference A/c","Z910198","16/01/2018","47023020 - 3","0.01","Revenue","",""
"OCC","General Fund","Difference A/c","Z910198","16/01/2018","47023021 - 3","0.01","Revenue","",""
"OCC","General Fund","Difference A/c","Z910198","16/01/2018","47023024 - 3","0.01","Revenue","",""
"OCC","General Fund","Difference A/c","Z910198","16/01/2018","47023027 - 3","0.01","Revenue","",""
"OCC","General Fund","Difference A/c","Z910198","16/01/2018","47023028 - 3","0.01","Revenue","",""
"OCC","Assistant Chief Executive","General Contracted Services","D3401","09/01/2018","1042213 - 0","1400.00","Revenue","20015995","OXFORD DIGITAL MEDIA LTD"
"OCC","Assistant Chief Executive","General Contracted Services","D3401","09/01/2018","1042294 - 0","500.00","Revenue","20011651","UNIVERSITY OF OXFORD"
"OCC","Assistant Chief Executive","Books & Publications","D3302","16/01/2018","1042642 - 0","1695.00","Revenue","20018192","NLA MEDIA ACCESS LIMITED"
"OCC","Assistant Chief Executive","General Contracted Services","D3401","09/01/2018","1042744 - 0","3500.00","Revenue","20010106","DESIGNS ON LTD"
"OCC","Transformation","Temporary Bureau Staffing","A0108","16/01/2018","1042781 - 0","3000.00","Revenue","20006509","SOCITM LIMITED"
"OCC","Transformation","Temporary Bureau Staffing","A0108","30/01/2018","1042915 - 0","600.00","Revenue","20006509","SOCITM LIMITED"
"OCC","Transformation","Temporary Bureau Staffing","A0108","16/01/2018","46296428 - 13","34708.36","Revenue","20018053","REED SPECIALIST RECRUITMENT LTD"
"OCC","Business Improvement","General Contracted Services","D3401","30/01/2018","1041318 - 1","625.00","Revenue","20013052","SCC (SPECIALIST COMPUTER CENTRES PLC)"
"OCC","Business Improvement","Main Contractor","Y021","16/01/2018","1042181 - 0","2600.00","Capital","20019582","BARTEC AUDIO ID LTD"
"OCC","Business Improvement","Software Maintenance/Running Costs","D3513","09/01/2018","1042259 - 0","2827.89","Revenue","20018969","ARCUS GLOBAL LIMITED"
"OCC","Business Improvement","Consultants Fees","D3411","09/01/2018","1042275 - 0","17000.00","Revenue","20019665","SOLACE IN BUSINESS LTD"
"OCC","Business Improvement","Software Maintenance/Running Costs","D3513","09/01/2018","1042292 - 0","1000.00","Revenue","20012320","NORTHGATE PUBLIC SERVICES (UK) LTD"
"OCC","Business Improvement","General Contracted Services","D3401","09/01/2018","1042422 - 0","1058.00","Revenue","20018450","CLEAR AND CREATIVE COMMUNICATIONS"
"OCC","Business Improvement","Postage & Carriage","D3501","09/01/2018","1042519 - 0","812.90","Revenue","20019101","CRITIQOM LTD"
"OCC","Business Improvement","Consultants Fees - Site Survey","Y169","09/01/2018","1042548 - 0","1800.00","Capital","20019716","KINGSLEY CIS LTD"
"OCC","Business Improvement","Postage & Carriage","D3501","09/01/2018","1042672 - 0","955.24","Revenue","20019101","CRITIQOM LTD"
"OCC","Business Improvement","Software Maintenance/Running Costs","D3513","09/01/2018","1042762 - 1","784.00","Revenue","20006940","BT GLOBAL SERVICES"
"OCC","Business Improvement","Instructors & Coaching Fees","D3413","09/01/2018","1042766 - 0","2990.00","Revenue","20017483","THE KNOWLEDGE ACADEMY LTD."
"OCC","Business Improvement","Software Maintenance/Running Costs","D3513","09/01/2018","1042770 - 0","480.00","Revenue","20018572","AGILE COLLECTIVE LTD"
"OCC","Business Improvement","Hardware Purchase","D3520","30/01/2018","1042790 - 0","1825.00","Revenue","20012388","BT BUSINESS DIRECT"
"OCC","Business Improvement","General Contracted Services","D3401","16/01/2018","1042829 - 0","1900.00","Revenue","20013052","SCC (SPECIALIST COMPUTER CENTRES PLC)"
"OCC","Business Improvement","General Contracted Services","D3401","16/01/2018","1042830 - 0","48120.91","Revenue","20013052","SCC (SPECIALIST COMPUTER CENTRES PLC)"
"OCC","Business Improvement","Consultants Fees","D3411","30/01/2018","1042836 - 0","5151.88","Revenue","20017632","DURADIAMOND HEALTHCARE LTD"
"OCC","Business Improvement","Software Purchase","D3511","30/01/2018","1042839 - 0","7462.00","Revenue","20019122","TEXTHELP LTD"
"OCC","Business Improvement","Software Maintenance/Running Costs","D3513","16/01/2018","1042842 - 0","2619.64","Revenue","20012320","NORTHGATE PUBLIC SERVICES (UK) LTD"
"OCC","Business Improvement","Miscellaneous Fees","Y173","16/01/2018","1042847 - 0","4550.00","Capital","20019582","BARTEC AUDIO ID LTD"
"OCC","Business Improvement","External Telephone Charges","D3503","16/01/2018","1042867 - 1","812.59","Revenue","20008028","VODAFONE LIMITED (CORPORATE)"
"OCC","Business Improvement","Network Rental","D3531","16/01/2018","1042869 - 1","3264.03","Revenue","20016588","VODAFONE LTD"
"OCC","Business Improvement","External Telephone Charges","D3503","16/01/2018","1042877 - 1","57353.03","Revenue","20006940","BT GLOBAL SERVICES"
"OCC","Business Improvement","External Telephone Charges","D3503","16/01/2018","1042878 - 1","7496.67","Revenue","20006940","BT GLOBAL SERVICES"
"OCC","Business Improvement","Main Contractor","Y021","16/01/2018","1042897 - 0","1520.00","Capital","20019724","TECHBUYER LTD"
"OCC","Business Improvement","Compliance Training (H&S)","A0630","16/01/2018","1042898 - 0","1665.00","Revenue","20013046","ST JOHN AMBULANCE"
"OCC","Business Improvement","Hospitality","D3803","23/01/2018","1042949 - 0","750.00","Revenue","20008142","TRAX"
"OCC","Business Improvement","Equipment Hire Charges","D3006","16/01/2018","1042969 - 0","550.00","Revenue","20009918","OXFORDSHIRE COUNTY COUNCIL"
"OCC","Business Improvement","Network Rental","D3531","16/01/2018","1043000 - 1","11645.55","Revenue","20016588","VODAFONE LTD"
"OCC","Business Improvement","Main Contractor","Y021","23/01/2018","1043010 - 0","618.20","Capital","20012388","BT BUSINESS DIRECT"
"OCC","Business Improvement","Postage & Carriage","D3501","16/01/2018","1043012 - 0","599.58","Revenue","20019101","CRITIQOM LTD"
"OCC","Business Improvement","General Stationery Supplies","D3301","30/01/2018","1043014 - 0","1275.05","Revenue","20007849","LYRECO UK LTD"
"OCC","Business Improvement","General Contracted Services","D3401","16/01/2018","1043025 - 0","1400.00","Revenue","20013052","SCC (SPECIALIST COMPUTER CENTRES PLC)"
"OCC","Business Improvement","General Contracted Services","D3401","16/01/2018","1043028 - 0","825.00","Revenue","20013052","SCC (SPECIALIST COMPUTER CENTRES PLC)"
"OCC","Business Improvement","External Telephone Charges","D3503","30/01/2018","1043049 - 1","21909.78","Revenue","20006940","BT GLOBAL SERVICES"
"OCC","Business Improvement","Consultants Fees","D3411","23/01/2018","1043101 - 0","15000.00","Revenue","20019775","THE INSTITUTE OF CUSTOMER SERVICE"
"OCC","Business Improvement","Postage & Carriage","D3501","30/01/2018","1043119 - 0","430.63","Revenue","20019101","CRITIQOM LTD"
"OCC","Business Improvement","Software Purchase","D3511","23/01/2018","1043124 - 0","1040.00","Revenue","20019645","FLOODLIGHT VENTURES LTD. T/A PITCHBOOKING"
"OCC","Business Improvement","Network Rental","D3531","30/01/2018","1043190 - 1","4352.38","Revenue","20016588","VODAFONE LTD"
"OCC","Business Improvement","Software Maintenance/Running Costs","D3513","30/01/2018","1043194 - 1","784.00","Revenue","20006940","BT GLOBAL SERVICES"
"OCC","Business Improvement","General Contracted Services","D3401","30/01/2018","1043241 - 0","2166.67","Revenue","20013052","SCC (SPECIALIST COMPUTER CENTRES PLC)"
"OCC","Business Improvement","Contract Printing (External)","D3303","30/01/2018","1043259 - 0","1593.04","Revenue","20019101","CRITIQOM LTD"
"OCC","Business Improvement","Postage & Carriage","D3501","30/01/2018","1043260 - 0","9997.36","Revenue","20019101","CRITIQOM LTD"
"OCC","Business Improvement","Software Maintenance/Running Costs","D3513","30/01/2018","1043275 - 0","8090.00","Revenue","20017360","CALLCREDIT PUBLIC SECTOR LTD"
"OCC","Business Improvement","Consultants Fees","D3411","30/01/2018","1043291 - 0","625.00","Revenue","20007875","MIDLAND HR"
"OCC","Business Improvement","Police Checks","D3429","30/01/2018","1043293 - 0","576.50","Revenue","20010933","KENT COUNTY COUNCIL"
"OCC","Business Improvement","External Telephone Charges","D3503","30/01/2018","1043322 - 1","19691.63","Revenue","20006940","BT GLOBAL SERVICES"
"OCC","Business Improvement","Consultants Fees - Site Survey","Y169","30/01/2018","1043334 - 0","950.00","Capital","20019354","INTEGRA ASSOCIATES"
"OCC","Business Improvement","Consultants Fees","D3411","16/01/2018","46296380 - 17","84.00","Revenue","20011499","TOPS"
"OCC","Business Improvement","Consultants Fees","D3411","16/01/2018","46296380 - 20","42.00","Revenue","20011499","TOPS"
"OCC","Business Improvement","Main Contractor","Y021","16/01/2018","46296428 - 10","9732.80","Capital","20018053","REED SPECIALIST RECRUITMENT LTD"
"OCC","Business Improvement","Temporary Bureau Staffing","A0108","16/01/2018","46296428 - 11","2700.92","Revenue","20018053","REED SPECIALIST RECRUITMENT LTD"
"OCC","Business Improvement","Temporary Bureau Staffing","A0108","16/01/2018","46296428 - 12","22026.69","Revenue","20018053","REED SPECIALIST RECRUITMENT LTD"
"OCC","Business Improvement","Temporary Bureau Staffing","A0108","16/01/2018","46296428 - 16","4003.05","Revenue","20018053","REED SPECIALIST RECRUITMENT LTD"
"OCC","Business Improvement","Temporary Bureau Staffing","A0108","16/01/2018","46296428 - 17","3505.75","Revenue","20018053","REED SPECIALIST RECRUITMENT LTD"
"OCC","Business Improvement","Temporary Bureau Staffing","A0108","16/01/2018","46296428 - 18","4813.62","Revenue","20018053","REED SPECIALIST RECRUITMENT LTD"
"OCC","Business Improvement","Electricity","B1501","30/01/2018","47023319 - 0","1156.55","Revenue","20002402","SOUTHERN ELECTRIC PLC"
"OCC","Welfare Reform Team","Grants","D3701","16/01/2018","1042797 - 0","11415.57","Revenue","20008142","TRAX"
"OCC","Welfare Reform Team","Subscriptions","D3703","30/01/2018","1042840 - 0","1095.00","Revenue","20007844","IRRV"
"OCC","Welfare Reform Team","Staff Advertising","A0702","16/01/2018","1042997 - 0","489.65","Revenue","20011917","PASSION   RADIO OXFORD LTD"
"OCC","Welfare Reform Team","Staff Advertising","A0702","30/01/2018","1043082 - 0","828.59","Revenue","20011917","PASSION   RADIO OXFORD LTD"
"OCC","Welfare Reform Team","Advertising & Publicity","D3802","30/01/2018","1043087 - 0","2655.00","Revenue","20011917","PASSION   RADIO OXFORD LTD"
"OCC","Welfare Reform Team","Advertising & Publicity","D3802","23/01/2018","1043126 - 0","1790.00","Revenue","20011917","PASSION   RADIO OXFORD LTD"
"OCC","Welfare Reform Team","Grants","D3701","30/01/2018","1043349 - 0","6682.50","Revenue","20008780","LEYS NEWS LTD"
"OCC","Welfare Reform Team","Grants","D3701","30/01/2018","1043350 - 0","11673.00","Revenue","20009131","FILM OXFORD"
"OCC","Welfare Reform Team","Grants","D3701","30/01/2018","1043353 - 0","4385.75","Revenue","20009449","OXFORDSHIRE PLAY ASSOCIATION"
"OCC","Regeneration & Economy","Consultants Fees","D3411","09/01/2018","1041841 - 0","1666.67","Revenue","20003549","BOSSOMS BOATYARD LTD"
"OCC","Regeneration & Economy","Consultants Fees","D3411","05/01/2018","1042250 - 0","2800.00","Revenue","20019171","GREEN & PARTNERS"
"OCC","Regeneration & Economy","Main Contractor","Y021","09/01/2018","1042571 - 0","1000.00","Capital","20002369","RIDGE & PARTNERS LLP"
"OCC","Regeneration & Economy","General Contracted Services","D3401","09/01/2018","1042615 - 0","500.00","Revenue","20003025","PETE RUSSELL"
"OCC","Regeneration & Economy","Consultants Fees","D3411","09/01/2018","1042646 - 0","2500.00","Revenue","20016567","CARTER JONAS"
"OCC","Regeneration & Economy","Consultants Fees","D3411","09/01/2018","1042670 - 0","1666.67","Revenue","20003549","BOSSOMS BOATYARD LTD"
"OCC","Regeneration & Economy","Main Contractor","Y021","09/01/2018","1042746 - 0","1900.00","Capital","20002369","RIDGE & PARTNERS LLP"
"OCC","Regeneration & Economy","Main Contractor","Y021","09/01/2018","1042747 - 0","5250.00","Capital","20002369","RIDGE & PARTNERS LLP"
"OCC","Regeneration & Economy","Consultants Fees","D3411","09/01/2018","1042755 - 0","1905.00","Revenue","20010039","MARRIOTTS"
"OCC","Regeneration & Economy","General Contracted Services","D3401","23/01/2018","1042765 - 0","2000.00","Revenue","20019730","CURRIE AND BROWN UK LTD"
"OCC","Regeneration & Economy","Corporate Design","D3444","16/01/2018","1042792 - 0","1129.35","Revenue","20011610","KINGDOM SIGNS LIMITED"
"OCC","Regeneration & Economy","Consultants Fees","D3411","16/01/2018","1042793 - 0","2326.95","Revenue","20018047","TURLEY ASSOCIATES"
"OCC","Regeneration & Economy","Advertising & Publicity","D3802","09/01/2018","1042826 - 0","970.20","Revenue","20007856","NEWSQUEST MIDLANDS, WALES & SOUTH WEST"
"OCC","Regeneration & Economy","Main Contractor","Y021","09/01/2018","1042861 - 0","3300.00","Capital","20002369","RIDGE & PARTNERS LLP"
"OCC","Regeneration & Economy","General Contracted Services","D3401","16/01/2018","1042954 - 0","6815.05","Revenue","20017906","AECOM LTD"
"OCC","Regeneration & Economy","General Contracted Services","D3401","16/01/2018","1042955 - 0","578.00","Revenue","20006232","K DESIGN"
"OCC","Regeneration & Economy","Consultants Fees","D3411","23/01/2018","1043070 - 0","1200.00","Revenue","20016567","CARTER JONAS"
"OCC","Regeneration & Economy","Consultants Fees","D3411","23/01/2018","1043071 - 0","1000.00","Revenue","20010898","CLUTTONS"
"OCC","Regeneration & Economy","Consultants Fees","D3411","23/01/2018","1043072 - 0","2891.42","Revenue","20017937","FISHER GERMAN LLP"
"OCC","Regeneration & Economy","Counsel & External Legal Fees","D3417","23/01/2018","1043090 - 0","4326.95","Revenue","20018250","PINSENT MASONS LLP"
"OCC","Regeneration & Economy","Consultants Fees","D3411","23/01/2018","1043123 - 0","5020.00","Revenue","20017937","FISHER GERMAN LLP"
"OCC","Regeneration & Economy","Consultants Fees","D3411","30/01/2018","1043180 - 0","2121.00","Revenue","20017937","FISHER GERMAN LLP"
"OCC","Regeneration & Economy","Service Charges","B1821","16/01/2018","46296395 - 1","10925.14","Revenue","20017686","WORKMAN LLP"
"OCC","Regeneration & Economy","Service Charges","B1821","16/01/2018","46296395 - 2","1687.50","Revenue","20017686","WORKMAN LLP"
"OCC","Regeneration & Economy","Temporary Bureau Staffing","A0108","16/01/2018","46296428 - 22","8138.15","Revenue","20018053","REED SPECIALIST RECRUITMENT LTD"
"OCC","Regeneration & Economy","Electricity","B1501","16/01/2018","47022987 - 1","807.22","Revenue","20014571","OPUS ENERGY LTD"
"OCC","Regeneration & Economy","Electricity","B1501","16/01/2018","47023014 - 0","1565.43","Revenue","20011411","NPOWER"
"OCC","Regeneration & Economy","Electricity","B1501","30/01/2018","47023368 - 0","1198.79","Revenue","20002402","SOUTHERN ELECTRIC PLC"
"OCC","Regeneration & Economy","Electricity","B1501","30/01/2018","47023627 - 0","1786.56","Revenue","20019777","ENGIE POWER LTD"
"OCC","Regeneration & Economy","Electricity","B1501","30/01/2018","47023631 - 0","768.80","Revenue","20019777","ENGIE POWER LTD"
"OCC","Planning, Sustainable Dev & Regulatory","General Contracted Services","D3401","16/01/2018","1039755 - 1","500.00","Revenue","20009179","STEVE CROSS PLUMBING & HEATING"
"OCC","Planning, Sustainable Dev & Regulatory","General Contracted Services","D3401","16/01/2018","1039755 - 2","268.33","Revenue","20009179","STEVE CROSS PLUMBING & HEATING"
"OCC","Planning, Sustainable Dev & Regulatory","Grants-Private Persons","Y005","09/01/2018","1040493 - 0","2829.00","Capital","20000227","GEORGE HENRY & CO RELAY LTD"
"OCC","Planning, Sustainable Dev & Regulatory","Consultants Fees - Site Survey","Y169","16/01/2018","1041778 - 0","2800.00","Capital","20013684","ATKINS LIMITED"
"OCC","Planning, Sustainable Dev & Regulatory","Grants-Private Persons","Y005","09/01/2018","1041790 - 0","5200.00","Capital","20019646","DREAMING SPIRES CONSTRUCTION LTD.,"
"OCC","Planning, Sustainable Dev & Regulatory","General Contracted Services","D3401","09/01/2018","1042245 - 0","1500.00","Revenue","20014403","POS ENTERPRISES LTD"
"OCC","Planning, Sustainable Dev & Regulatory","General Contracted Services","D3401","09/01/2018","1042246 - 0","1450.00","Revenue","20014403","POS ENTERPRISES LTD"
"OCC","Planning, Sustainable Dev & Regulatory","Main Contractor","Y021","09/01/2018","1042248 - 0","16921.44","Capital","20019682","ZETA SPECIALIST LIGHTING LTD"
"OCC","Planning, Sustainable Dev & Regulatory","Consultants Fees","D3411","09/01/2018","1042301 - 0","20425.00","Revenue","20011651","UNIVERSITY OF OXFORD"
"OCC","Planning, Sustainable Dev & Regulatory","General Contracted Services","D3401","16/01/2018","1042386 - 0","416.67","Revenue","20018869","ATHEY & MASON PLUMBING & HEATING LTD"
"OCC","Planning, Sustainable Dev & Regulatory","Consultants Fees","D3411","30/01/2018","1042420 - 0","39434.60","Revenue","20008132","ARCADIS LLP"
"OCC","Planning, Sustainable Dev & Regulatory","Grants-Private Persons","Y005","09/01/2018","1042527 - 0","2698.99","Capital","20003233","AKW MEDICARE LIMITED"
"OCC","Planning, Sustainable Dev & Regulatory","Consultants Fees","D3411","09/01/2018","1042564 - 0","6000.00","Revenue","20018276","DESIGN COUNCIL"
"OCC","Planning, Sustainable Dev & Regulatory","Consultants Fees","D3411","09/01/2018","1042565 - 0","6400.00","Revenue","20018276","DESIGN COUNCIL"
"OCC","Planning, Sustainable Dev & Regulatory","Consultants Fees","D3411","09/01/2018","1042566 - 1","6400.00","Revenue","20018276","DESIGN COUNCIL"
"OCC","Planning, Sustainable Dev & Regulatory","Special Events","D3807","09/01/2018","1042589 - 0","2950.00","Revenue","20019814","GREEN TV MEDIA LTD"
"OCC","Planning, Sustainable Dev & Regulatory","Grants-Private Persons","Y005","09/01/2018","1042621 - 0","5495.00","Capital","20014420","C M RAYSON BUILDERS"
"OCC","Planning, Sustainable Dev & Regulatory","Main Contractor","Y021","16/01/2018","1042639 - 0","6482.00","Capital","20013684","ATKINS LIMITED"
"OCC","Planning, Sustainable Dev & Regulatory","Consultants Fees","D3411","23/01/2018","1042650 - 0","14358.00","Revenue","20008848","LAND USE CONSULTANTS"
"OCC","Planning, Sustainable Dev & Regulatory","Software Maintenance/Running Costs","D3513","09/01/2018","1042675 - 0","421.94","Revenue","20011588","CANON (UK) lTD"
"OCC","Planning, Sustainable Dev & Regulatory","Software Maintenance/Running Costs","D3513","09/01/2018","1042675 - 1","421.94","Revenue","20011588","CANON (UK) lTD"
"OCC","Planning, Sustainable Dev & Regulatory","General Contracted Services","D3401","23/01/2018","1042761 - 1","963.65","Revenue","20003218","BOC LTD"
"OCC","Planning, Sustainable Dev & Regulatory","Consultants Fees","D3411","30/01/2018","1042784 - 0","6000.00","Revenue","20018276","DESIGN COUNCIL"
"OCC","Planning, Sustainable Dev & Regulatory","Consultants Fees","D3411","30/01/2018","1042785 - 0","6400.00","Revenue","20018276","DESIGN COUNCIL"
"OCC","Planning, Sustainable Dev & Regulatory","Consultants Fees","D3411","30/01/2018","1042786 - 0","6000.00","Revenue","20018276","DESIGN COUNCIL"
"OCC","Planning, Sustainable Dev & Regulatory","Consultants Fees","D3411","30/01/2018","1042787 - 0","6400.00","Revenue","20018276","DESIGN COUNCIL"
"OCC","Planning, Sustainable Dev & Regulatory","Consultants Fees","D3411","30/01/2018","1042788 - 0","6000.00","Revenue","20018276","DESIGN COUNCIL"
"OCC","Planning, Sustainable Dev & Regulatory","Consultants Fees","D3411","30/01/2018","1042838 - 0","10575.00","Revenue","20016541","CENEX"
"OCC","Planning, Sustainable Dev & Regulatory","Grants-Private Persons","Y005","16/01/2018","1042992 - 0","800.00","Capital","20012692","FREECHOICE GROUP"
"OCC","Planning, Sustainable Dev & Regulatory","Energy Conservation","B1165","16/01/2018","1043003 - 0","10267.05","Revenue","20015211","FUSION LIFESTYLE"
"OCC","Planning, Sustainable Dev & Regulatory","Energy Conservation","B1165","16/01/2018","1043004 - 0","35000.00","Revenue","20015211","FUSION LIFESTYLE"
"OCC","Planning, Sustainable Dev & Regulatory","Grants-Private Persons","Y005","16/01/2018","1043020 - 0","5000.00","Capital","20015923","ABLE LIVING SOLUTIONS"
"OCC","Planning, Sustainable Dev & Regulatory","Grants-Private Persons","Y005","30/01/2018","1043022 - 0","2698.99","Capital","20003233","AKW MEDICARE LIMITED"
"OCC","Planning, Sustainable Dev & Regulatory","Staff Advertising","A0702","23/01/2018","1043132 - 0","1460.00","Revenue","20018315","HAYMARKET ADVERTISEMENT"
"OCC","Planning, Sustainable Dev & Regulatory","Grants-Private Persons","Y005","30/01/2018","1043226 - 0","1885.00","Capital","20012692","FREECHOICE GROUP"
"OCC","Planning, Sustainable Dev & Regulatory","Conferences","D3602","30/01/2018","1043266 - 0","2706.00","Revenue","20013769","FIROKA (OXFORD UNITED STADIUM) LTD"
"OCC","Planning, Sustainable Dev & Regulatory","Grants-Private Persons","Y005","30/01/2018","1043364 - 0","5000.00","Capital","20019568","ASELFORD PLUMBING & HEATING"
"OCC","Planning, Sustainable Dev & Regulatory","General Contracted Services","D3401","30/01/2018","1043364 - 1","500.00","Revenue","20019568","ASELFORD PLUMBING & HEATING"
"OCC","Planning, Sustainable Dev & Regulatory","Grants-Private Persons","Y005","30/01/2018","1043364 - 2","360.00","Capital","20019568","ASELFORD PLUMBING & HEATING"
"OCC","Planning, Sustainable Dev & Regulatory","General Contracted Services","D3401","16/01/2018","46296408 - 1","4615.00","Revenue","20008529","REEVES & PAIN FUNERAL SERVICE"
"OCC","Planning, Sustainable Dev & Regulatory","Temporary Bureau Staffing","A0108","16/01/2018","46296428 - 9","19736.06","Revenue","20018053","REED SPECIALIST RECRUITMENT LTD"
"OCC","Planning, Sustainable Dev & Regulatory","Temporary Bureau Staffing","A0108","16/01/2018","46296428 - 23","2446.54","Revenue","20018053","REED SPECIALIST RECRUITMENT LTD"
"OCC","Planning, Sustainable Dev & Regulatory","General Contracted Services","D3401","16/01/2018","46296439 - 1","3200.00","Revenue","20000000","GENERAL EXPENSES"
"OCC","Planning, Sustainable Dev & Regulatory","Consultants Fees","D3411","16/01/2018","46296467 - 1","830.00","Revenue","20000014","PLANNING APPLICATION REFUNDS"
"OCC","Planning, Sustainable Dev & Regulatory","Licences","K9571","23/01/2018","46296514 - 1","1091.00","Revenue","20000017","ENVIRONMENTAL HEALTH REFUNDS"
"OCC","Planning, Sustainable Dev & Regulatory","Grants/Donations/Contributions","K9141","30/01/2018","46296646 - 1","13323.00","Revenue","20000000","GENERAL EXPENSES"
"OCC","Planning, Sustainable Dev & Regulatory","Main Contractor","Y021","09/01/2018","48021850 - 1","2366.00","Capital","20000000","GENERAL EXPENSES"
"OCC","Planning, Sustainable Dev & Regulatory","Other Miscellaneous Expenses","D3811","09/01/2018","48021850 - 2","500.00","Revenue","20000000","GENERAL EXPENSES"
"OCC","Planning, Sustainable Dev & Regulatory","Other Miscellaneous Expenses","D3811","09/01/2018","48021850 - 3","500.00","Revenue","20000000","GENERAL EXPENSES"
"OCC","Housing Services","Temporary Bureau Staffing","A0108","30/01/2018","1041868 - 1","1110.00","Revenue","20018960","VENN GROUP"
"OCC","Housing Services","Temporary Bureau Staffing","A0108","30/01/2018","1042006 - 1","1110.00","Revenue","20018960","VENN GROUP"
"OCC","Housing Services","Homelessness Accommodation Lease Payments","D3611","09/01/2018","1042019 - 1","4980.00","Revenue","20007933","LETTING & PROPERTY MANAGEMENT"
"OCC","Housing Services","Homelessness Accommodation Lease Payments","D3611","09/01/2018","1042020 - 1","2475.00","Revenue","20007933","LETTING & PROPERTY MANAGEMENT"
"OCC","Housing Services","Homelessness Accommodation Lease Payments","D3611","09/01/2018","1042021 - 1","4680.00","Revenue","20007933","LETTING & PROPERTY MANAGEMENT"
"OCC","Housing Services","Homelessness Accommodation Lease Payments","D3611","09/01/2018","1042022 - 1","2850.00","Revenue","20007933","LETTING & PROPERTY MANAGEMENT"
"OCC","Housing Services","Homelessness Accommodation Lease Payments","D3611","09/01/2018","1042023 - 1","3000.00","Revenue","20007933","LETTING & PROPERTY MANAGEMENT"
"OCC","Housing Services","Homelessness Accommodation Lease Payments","D3611","09/01/2018","1042024 - 1","2850.00","Revenue","20007933","LETTING & PROPERTY MANAGEMENT"
"OCC","Housing Services","Main Contractor","Y021","09/01/2018","1042135 - 0","2100.00","Capital","20009730","R & R FRONTLINE SERVICES LTD"
"OCC","Housing Services","Services Maintenance (Planned)","B1103","16/01/2018","1042163 - 1","936.30","Revenue","20004494","COTSWOLD LIFTS LTD"
"OCC","Housing Services","Reactive Maintenance & Minor Repairs","B1101","09/01/2018","1042201 - 0","7893.51","Revenue","20012389","PUMPING  SOLUTIONS  (UK)  LTD"
"OCC","Housing Services","Temporary Bureau Staffing","A0108","09/01/2018","1042252 - 0","1121.25","Revenue","20019761","CODE RED ASSOCIATES LTD"
"OCC","Housing Services","Temporary Bureau Staffing","A0108","30/01/2018","1042278 - 1","1085.10","Revenue","20018960","VENN GROUP"
"OCC","Housing Services","Main Contractor","Y021","09/01/2018","1042315 - 0","8358.87","Capital","20017269","CROFT BUILDING & CONSERVATION LTD"
"OCC","Housing Services","General Contracted Services","D3401","09/01/2018","1042320 - 0","900.00","Revenue","20016440","ARTS AT THE OLD FIRE STATION"
"OCC","Housing Services","Temporary Bureau Staffing","A0108","30/01/2018","1042398 - 1","1065.00","Revenue","20018960","VENN GROUP"
"OCC","Housing Services","Reactive Maintenance & Minor Repairs","B1101","09/01/2018","1042423 - 0","1284.57","Revenue","20018710","CAN STRUCTURES LIMITED"
"OCC","Housing Services","Temporary Bureau Staffing","A0108","09/01/2018","1042435 - 0","1150.00","Revenue","20019761","CODE RED ASSOCIATES LTD"
"OCC","Housing Services","Reactive Maintenance & Minor Repairs","B1101","09/01/2018","1042464 - 0","698.75","Revenue","20019316","TRUTH LTD T/A KJC FELT ROOFING"
"OCC","Housing Services","Main Contractor","Y021","09/01/2018","1042477 - 0","2100.00","Capital","20009730","R & R FRONTLINE SERVICES LTD"
"OCC","Housing Services","Reactive Maintenance & Minor Repairs","B1101","09/01/2018","1042492 - 0","510.49","Revenue","20019316","TRUTH LTD T/A KJC FELT ROOFING"
"OCC","Housing Services","Reactive Maintenance & Minor Repairs","B1101","09/01/2018","1042495 - 0","420.00","Revenue","20019316","TRUTH LTD T/A KJC FELT ROOFING"
"OCC","Housing Services","Reactive Maintenance & Minor Repairs","B1101","09/01/2018","1042523 - 0","540.00","Revenue","20010837","DICK RUDMAN"
"OCC","Housing Services","Reactive Maintenance & Minor Repairs","B1101","09/01/2018","1042524 - 0","540.00","Revenue","20010837","DICK RUDMAN"
"OCC","Housing Services","Reactive Maintenance & Minor Repairs","B1101","16/01/2018","1042536 - 0","10050.00","Revenue","20018519","SCHNEIDER ELECTRIC IT UK LTD"
"OCC","Housing Services","Reactive Maintenance & Minor Repairs","B1101","09/01/2018","1042624 - 0","1370.45","Revenue","20016705","SOUTHERN ELECTRIC POWER DISTRIBUTION PLC"
"OCC","Housing Services","Main Contractor","Y021","16/01/2018","1042643 - 0","2100.00","Capital","20009730","R & R FRONTLINE SERVICES LTD"
"OCC","Housing Services","Services Maintenance (Planned)","B1103","09/01/2018","1042644 - 6","7624.45","Revenue","20002568","PYROTEC SERVICES LTD"
"OCC","Housing Services","Services Maintenance (Planned)","B1103","16/01/2018","1042664 - 0","3600.00","Revenue","20015973","CBG CONSULTANTS LTD"
"OCC","Housing Services","Commercial Portfolio - Planned Maintenance","B2000","09/01/2018","1042677 - 0","6000.00","Revenue","20018537","AGILITY SURVEY LTD"
"OCC","Housing Services","Homelessness Accommodation Lease Payments","D3611","09/01/2018","1042702 - 1","1660.00","Revenue","20007933","LETTING & PROPERTY MANAGEMENT"
"OCC","Housing Services","Homelessness Accommodation Lease Payments","D3611","09/01/2018","1042703 - 1","825.00","Revenue","20007933","LETTING & PROPERTY MANAGEMENT"
"OCC","Housing Services","Homelessness Accommodation Lease Payments","D3611","09/01/2018","1042704 - 1","1560.00","Revenue","20007933","LETTING & PROPERTY MANAGEMENT"
"OCC","Housing Services","Homelessness Accommodation Lease Payments","D3611","09/01/2018","1042705 - 1","950.00","Revenue","20007933","LETTING & PROPERTY MANAGEMENT"
"OCC","Housing Services","Homelessness Accommodation Lease Payments","D3611","09/01/2018","1042706 - 1","950.00","Revenue","20007933","LETTING & PROPERTY MANAGEMENT"
"OCC","Housing Services","Business Rates/Council Tax","B1702","16/01/2018","1042711 - 1","1073.66","Revenue","20002893","CHERWELL DISTRICT COUNCIL"
"OCC","Housing Services","Business Rates/Council Tax","B1702","16/01/2018","1042713 - 1","1027.67","Revenue","20002893","CHERWELL DISTRICT COUNCIL"
"OCC","Housing Services","Temporary Bureau Staffing","A0108","16/01/2018","1042742 - 0","2300.00","Revenue","20019761","CODE RED ASSOCIATES LTD"
"OCC","Housing Services","Services Maintenance (Planned)","B1103","16/01/2018","1042775 - 0","1675.25","Revenue","20012389","PUMPING  SOLUTIONS  (UK)  LTD"
"OCC","Housing Services","Reactive Maintenance & Minor Repairs","B1101","23/01/2018","1042778 - 0","771.50","Revenue","20012389","PUMPING  SOLUTIONS  (UK)  LTD"
"OCC","Housing Services","Reactive Maintenance & Minor Repairs","B1101","16/01/2018","1042780 - 0","490.00","Revenue","20019316","TRUTH LTD T/A KJC FELT ROOFING"
"OCC","Housing Services","Reactive Maintenance & Minor Repairs","B1101","09/01/2018","1042795 - 0","560.00","Revenue","20000210","BARKER & EVANS LTD"
"OCC","Housing Services","Main Contractor","Y021","30/01/2018","1042821 - 0","2700.00","Capital","20009730","R & R FRONTLINE SERVICES LTD"
"OCC","Housing Services","Main Contractor","Y021","23/01/2018","1042822 - 0","2187.50","Capital","20009730","R & R FRONTLINE SERVICES LTD"
"OCC","Housing Services","Electrical Services (Inspections etc.)","B1153","09/01/2018","1042850 - 1","386.41","Revenue","20000249","SSE CONTRACTING LTD"
"OCC","Housing Services","Grants","D3701","09/01/2018","1042862 - 0","161700.00","Revenue","20002930","OXFORDSHIRE COUNTY COUNCIL"
"OCC","Housing Services","Reactive Maintenance & Minor Repairs","B1101","16/01/2018","1042893 - 0","769.00","Revenue","20017850","SAFESITE LTD"
"OCC","Housing Services","Reactive Maintenance & Minor Repairs","B1101","16/01/2018","1042917 - 0","625.00","Revenue","20019316","TRUTH LTD T/A KJC FELT ROOFING"
"OCC","Housing Services","Furniture & Equipment Purchase","D3001","16/01/2018","1042920 - 0","430.00","Revenue","20007932","FURNISHED HOMES (UNDERLEY FURNISHINGS) LTD"
"OCC","Housing Services","Furniture & Equipment Purchase","D3001","16/01/2018","1042921 - 0","430.00","Revenue","20007932","FURNISHED HOMES (UNDERLEY FURNISHINGS) LTD"
"OCC","Housing Services","Temporary Bureau Staffing","A0108","30/01/2018","1042928 - 0","661.25","Revenue","20019761","CODE RED ASSOCIATES LTD"
"OCC","Housing Services","General Contracted Services","D3401","16/01/2018","1042939 - 0","20000.00","Revenue","20013694","SHELTER"
"OCC","Housing Services","CBL Scheme Costs","D3015","16/01/2018","1043002 - 1","16489.20","Revenue","20010153","CIVICA UK LTD"
"OCC","Housing Services","Miscellaneous Fees","Y173","16/01/2018","1043037 - 0","625.20","Capital","20015469","THE CLARKSON ALLIANCE LTD"
"OCC","Housing Services","Counsel & External Legal Fees","D3417","23/01/2018","1043061 - 0","884.00","Revenue","20018250","PINSENT MASONS LLP"
"OCC","Housing Services","Lift Maintenance / Servicing","B1203","23/01/2018","1043089 - 0","5639.52","Revenue","20004165","SCHINDLER LTD"
"OCC","Housing Services","Furniture & Equipment Purchase","D3001","23/01/2018","1043104 - 0","630.00","Revenue","20007932","FURNISHED HOMES (UNDERLEY FURNISHINGS) LTD"
"OCC","Housing Services","Reactive Maintenance & Minor Repairs","B1101","23/01/2018","1043142 - 0","470.06","Revenue","20002056","B & B LOCKSMITHS"
"OCC","Housing Services","Reactive Maintenance & Minor Repairs","B1101","30/01/2018","1043173 - 0","672.00","Revenue","20019314","SOLARSHIELD LTD"
"OCC","Housing Services","Reactive Maintenance & Minor Repairs","B1101","30/01/2018","1043174 - 0","703.00","Revenue","20019314","SOLARSHIELD LTD"
"OCC","Housing Services","Reactive Maintenance & Minor Repairs","B1101","30/01/2018","1043175 - 0","956.00","Revenue","20019314","SOLARSHIELD LTD"
"OCC","Housing Services","Main Contractor","Y021","30/01/2018","1043178 - 0","2100.00","Capital","20009730","R & R FRONTLINE SERVICES LTD"
"OCC","Housing Services","Reactive Maintenance & Minor Repairs","B1101","30/01/2018","1043269 - 0","560.00","Revenue","20019316","TRUTH LTD T/A KJC FELT ROOFING"
"OCC","Housing Services","Reactive Maintenance & Minor Repairs","B1101","30/01/2018","1043274 - 0","1749.50","Revenue","20019316","TRUTH LTD T/A KJC FELT ROOFING"
"OCC","Housing Services","Services Maintenance (Planned)","B1103","30/01/2018","1043295 - 5","3605.20","Revenue","20002568","PYROTEC SERVICES LTD"
"OCC","Housing Services","Reactive Maintenance & Minor Repairs","B1101","30/01/2018","1043298 - 0","4180.05","Revenue","20005595","EXECUTIVE SECURITY LOCKSMITHS LTD"
"OCC","Housing Services","Homelessness Accommodation Lease Payments","D3611","30/01/2018","1043305 - 1","825.00","Revenue","20007933","LETTING & PROPERTY MANAGEMENT"
"OCC","Housing Services","Homelessness Accommodation Lease Payments","D3611","30/01/2018","1043306 - 1","1560.00","Revenue","20007933","LETTING & PROPERTY MANAGEMENT"
"OCC","Housing Services","Bond Payments Homeless","D3600","30/01/2018","1043307 - 1","950.00","Revenue","20007933","LETTING & PROPERTY MANAGEMENT"
"OCC","Housing Services","Homelessness Accommodation Lease Payments","D3611","30/01/2018","1043308 - 1","950.00","Revenue","20007933","LETTING & PROPERTY MANAGEMENT"
"OCC","Housing Services","Homelessness Accommodation Lease Payments","D3611","30/01/2018","1043309 - 1","1660.00","Revenue","20007933","LETTING & PROPERTY MANAGEMENT"
"OCC","Housing Services","Advertising & Publicity","D3802","30/01/2018","1043344 - 0","777.00","Revenue","20019703","ALVERN MEDIA LTD"
"OCC","Housing Services","Reactive Maintenance & Minor Repairs","B1101","30/01/2018","1043373 - 0","455.00","Revenue","20002568","PYROTEC SERVICES LTD"
"OCC","Housing Services","Bond Payments Homeless","D3600","30/01/2018","1043381 - 0","6835.44","Revenue","20007933","LETTING & PROPERTY MANAGEMENT"
"OCC","Housing Services","Reactive Maintenance & Minor Repairs","B1101","30/01/2018","1043391 - 0","843.00","Revenue","20005595","EXECUTIVE SECURITY LOCKSMITHS LTD"
"OCC","Housing Services","Homeless Prevention","D3426","09/01/2018","46296368 - 1","925.00","Revenue","20000018","Homelessness Holding Fee Misc Account"
"OCC","Housing Services","Homeless Prevention","D3426","03/01/2018","46296369 - 1","850.00","Revenue","20000018","Homelessness Holding Fee Misc Account"
"OCC","Housing Services","Homeless Prevention","D3426","09/01/2018","46296370 - 1","850.00","Revenue","20019671","DAVID MOORE LETTINGS LTD"
"OCC","Housing Services","Homeless Prevention","D3426","09/01/2018","46296371 - 1","1050.00","Revenue","20019671","DAVID MOORE LETTINGS LTD"
"OCC","Housing Services","Homeless Prevention","D3426","09/01/2018","46296371 - 2","120.00","Revenue","20019671","DAVID MOORE LETTINGS LTD"
"OCC","Housing Services","Rent Allowance Cheques (Home Choice)","F5033","09/01/2018","46296374 - 1","791.04","Revenue","20019713","CATHERINE STEWART, PETER, SAM & SARA FEENAN"
"OCC","Housing Services","Homeless Prevention","D3426","09/01/2018","46296375 - 1","1091.04","Revenue","20010650","MR JOHN KEOWN"
"OCC","Housing Services","Rent Allowance Cheques (Home Choice)","F5033","09/01/2018","46296376 - 1","3300.00","Revenue","20014513","MR M LENTHALL"
"OCC","Housing Services","Rent Allowance Cheques (Home Choice)","F5033","09/01/2018","46296377 - 1","3300.00","Revenue","20015668","LINCOMBE PROPERTY SERVICES"
"OCC","Housing Services","Consultants Fees","D3411","16/01/2018","46296380 - 3","42.00","Revenue","20011499","TOPS"
"OCC","Housing Services","Homeless Prevention","D3426","09/01/2018","46296381 - 1","1280.00","Revenue","20019714","PHEASANT RETREATS LTD"
"OCC","Housing Services","Rent Allowance Cheques (Home Choice)","F5033","16/01/2018","46296420 - 1","2722.99","Revenue","20011479","LEE  &  LINDARS  (OXFORD)  LTD."
"OCC","Housing Services","Rent Allowance Cheques (Home Choice)","F5033","16/01/2018","46296422 - 1","891.90","Revenue","20015217","MR PATRICK HERITAGE"
"OCC","Housing Services","Rent Allowance Cheques (Home Choice)","F5033","16/01/2018","46296423 - 1","1500.00","Revenue","20007933","LETTING & PROPERTY MANAGEMENT"
"OCC","Housing Services","Temporary Bureau Staffing","A0108","16/01/2018","46296428 - 8","20545.39","Revenue","20018053","REED SPECIALIST RECRUITMENT LTD"
"OCC","Housing Services","Temporary Bureau Staffing","A0108","16/01/2018","46296428 - 20","6508.72","Revenue","20018053","REED SPECIALIST RECRUITMENT LTD"
"OCC","Housing Services","Rent Allowance Cheques (Home Choice)","F5033","16/01/2018","46296445 - 1","4300.00","Revenue","20019832","WYN JONES"
"OCC","Housing Services","Grants","D3701","16/01/2018","46296453 - 1","2320.00","Revenue","20009876","REFUGEE RESOURCE"
"OCC","Housing Services","Grants","D3701","23/01/2018","46296472 - 1","1380.00","Revenue","20019675","BOTLEY SCHOOL"
"OCC","Housing Services","Rent Allowance Cheques (Home Choice)","F5033","23/01/2018","46296478 - 1","1455.09","Revenue","20019796","DAVID & CAROLINE BRANDON"
"OCC","Housing Services","Homeless Prevention","D3426","23/01/2018","46296482 - 1","621.30","Revenue","20012837","MR ARJ & MS SALLY ARUL"
"OCC","Housing Services","Homeless Prevention","D3426","23/01/2018","46296483 - 1","1334.80","Revenue","20014702","PREMIER LETTING"
"OCC","Housing Services","Other Miscellaneous Expenses","D3811","23/01/2018","46296517 - 1","900.00","Revenue","20009273","ASYLUM WELCOME"
"OCC","Housing Services","Homeless Prevention","D3426","23/01/2018","46296527 - 1","1582.08","Revenue","20015204","A B I PROPERTIES"
"OCC","Housing Services","Rent Allowance Cheques (Home Choice)","F5033","23/01/2018","46296528 - 1","2775.00","Revenue","20015204","A B I PROPERTIES"
"OCC","Housing Services","Rent Allowance Cheques (Home Choice)","F5033","23/01/2018","46296529 - 1","2775.00","Revenue","20015204","A B I PROPERTIES"
"OCC","Housing Services","Rent Allowance Cheques (Home Choice)","F5033","23/01/2018","46296530 - 1","2775.00","Revenue","20015204","A B I PROPERTIES"
"OCC","Housing Services","Rent Allowance Cheques (Home Choice)","F5033","23/01/2018","46296531 - 1","3300.00","Revenue","20015204","A B I PROPERTIES"
"OCC","Housing Services","Rent Allowance Cheques (Home Choice)","F5033","23/01/2018","46296532 - 1","2775.00","Revenue","20015204","A B I PROPERTIES"
"OCC","Housing Services","Rent Allowance Cheques (Home Choice)","F5033","23/01/2018","46296533 - 1","2775.00","Revenue","20015204","A B I PROPERTIES"
"OCC","Housing Services","Rent Allowance Cheques (Home Choice)","F5033","23/01/2018","46296534 - 1","3300.00","Revenue","20019588","MR P & MRS DW DOWLEY"
"OCC","Housing Services","Rent Allowance Cheques (Home Choice)","F5033","23/01/2018","46296535 - 1","1920.00","Revenue","20019606","MR & MRS D BROWN"
"OCC","Housing Services","Homeless Prevention","D3426","23/01/2018","46296536 - 1","1091.04","Revenue","20019506","COLLEEN ASHBEE"
"OCC","Housing Services","Homeless Prevention","D3426","23/01/2018","46296537 - 1","996.00","Revenue","20014495","GRANDE PROPERTY SERVICES"
"OCC","Housing Services","Homeless Prevention","D3426","23/01/2018","46296538 - 1","1058.19","Revenue","20019831","DR O ELAGAB"
"OCC","Housing Services","Rent Allowance Cheques (Home Choice)","F5033","23/01/2018","46296546 - 1","1000.00","Revenue","20019837","HONGYANG QU"
"OCC","Housing Services","Rent Allowance Cheques (Home Choice)","F5033","23/01/2018","46296547 - 1","2550.00","Revenue","20019837","HONGYANG QU"
"OCC","Housing Services","Rent Allowance Cheques (Home Choice)","F5033","23/01/2018","46296548 - 1","2550.00","Revenue","20019837","HONGYANG QU"
"OCC","Housing Services","Grants","D3701","30/01/2018","46296595 - 1","4500.00","Revenue","20009613","RIVER LEARNING TRUST - NEW MARSTON PRIMARY SCHOOL"
"OCC","Housing Services","Grants","D3701","30/01/2018","46296596 - 1","4500.00","Revenue","20009613","RIVER LEARNING TRUST - NEW MARSTON PRIMARY SCHOOL"
"OCC","Housing Services","Rent Allowance Cheques (Home Choice)","F5033","30/01/2018","46296599 - 1","1242.60","Revenue","20014702","PREMIER LETTING"
"OCC","Housing Services","Rent Allowance Cheques (Home Choice)","F5033","30/01/2018","46296600 - 1","2800.00","Revenue","20014702","PREMIER LETTING"
"OCC","Housing Services","Rent Allowance Cheques (Home Choice)","F5033","30/01/2018","46296601 - 1","1000.00","Revenue","20014702","PREMIER LETTING"
"OCC","Housing Services","Rent Allowance Cheques (Home Choice)","F5033","30/01/2018","46296602 - 1","2800.00","Revenue","20014702","PREMIER LETTING"
"OCC","Housing Services","Rent Allowance Cheques (Home Choice)","F5033","30/01/2018","46296636 - 1","2775.00","Revenue","20019371","MR FINBARR CALNAN"
"OCC","Housing Services","Rent Allowance Cheques (Home Choice)","F5033","30/01/2018","46296637 - 1","2775.00","Revenue","20015204","A B I PROPERTIES"
"OCC","Housing Services","Rent Allowance Cheques (Home Choice)","F5033","30/01/2018","46296638 - 1","2775.00","Revenue","20015204","A B I PROPERTIES"
"OCC","Housing Services","Rent Allowance Cheques (Home Choice)","F5033","30/01/2018","46296640 - 1","4550.00","Revenue","20019833","STELLA BOTCHWAY"
"OCC","Housing Services","Rent Allowance Cheques (Home Choice)","F5033","30/01/2018","46296641 - 1","3175.00","Revenue","20019845","MR MOHAMMED RAMZAN"
"OCC","Housing Services","Rent Allowance Cheques (Home Choice)","F5033","30/01/2018","46296642 - 1","3200.00","Revenue","20019595","AIDAN COSTELLOE"
"OCC","Housing Services","Homeless Prevention","D3426","30/01/2018","46296675 - 1","850.00","Revenue","20019848","MRS CLAIRE MUIL"
"OCC","Housing Services","Water & Sewerage Charges","B1830","16/01/2018","47023008 - 0","910.84","Revenue","20019401","CASTLE WATER"
"OCC","Housing Services","Electricity","B1501","16/01/2018","47023026 - 0","5191.91","Revenue","20011411","NPOWER"
"OCC","Housing Services","Electricity","B1501","16/01/2018","47023028 - 0","3489.39","Revenue","20011411","NPOWER"
"OCC","Housing Services","Gas","B1502","23/01/2018","47023079 - 0","844.62","Revenue","20007602","TOTAL GAS & POWER LTD"
"OCC","Housing Services","Electricity","B1501","23/01/2018","47023119 - 1","597.87","Revenue","20002402","SOUTHERN ELECTRIC PLC"
"OCC","Housing Services","Electricity","B1501","23/01/2018","47023121 - 1","570.76","Revenue","20002402","SOUTHERN ELECTRIC PLC"
"OCC","Housing Services","Electricity","B1501","23/01/2018","47023123 - 1","589.18","Revenue","20002402","SOUTHERN ELECTRIC PLC"
"OCC","Housing Services","Electricity","B1501","23/01/2018","47023125 - 1","568.41","Revenue","20002402","SOUTHERN ELECTRIC PLC"
"OCC","Housing Services","Electricity","B1501","23/01/2018","47023127 - 1","527.65","Revenue","20002402","SOUTHERN ELECTRIC PLC"
"OCC","Housing Services","Electricity","B1501","23/01/2018","47023129 - 1","585.89","Revenue","20002402","SOUTHERN ELECTRIC PLC"
"OCC","Housing Services","Electricity","B1501","23/01/2018","47023130 - 0","591.68","Revenue","20002402","SOUTHERN ELECTRIC PLC"
"OCC","Housing Services","Electricity","B1501","23/01/2018","47023132 - 0","545.07","Revenue","20002402","SOUTHERN ELECTRIC PLC"
"OCC","Housing Services","Electricity","B1501","23/01/2018","47023134 - 0","550.92","Revenue","20002402","SOUTHERN ELECTRIC PLC"
"OCC","Housing Services","Electricity","B1501","23/01/2018","47023138 - 0","588.66","Revenue","20002402","SOUTHERN ELECTRIC PLC"
"OCC","Housing Services","Electricity","B1501","23/01/2018","47023140 - 0","652.71","Revenue","20002402","SOUTHERN ELECTRIC PLC"
"OCC","Housing Services","Electricity","B1501","23/01/2018","47023142 - 0","576.92","Revenue","20002402","SOUTHERN ELECTRIC PLC"
"OCC","Housing Services","Electricity","B1501","23/01/2018","47023144 - 0","523.54","Revenue","20002402","SOUTHERN ELECTRIC PLC"
"OCC","Housing Services","Electricity","B1501","23/01/2018","47023146 - 0","539.29","Revenue","20002402","SOUTHERN ELECTRIC PLC"
"OCC","Housing Services","Electricity","B1501","23/01/2018","47023148 - 0","486.84","Revenue","20002402","SOUTHERN ELECTRIC PLC"
"OCC","Housing Services","Electricity","B1501","23/01/2018","47023150 - 0","510.17","Revenue","20002402","SOUTHERN ELECTRIC PLC"
"OCC","Housing Services","Electricity","B1501","23/01/2018","47023152 - 0","580.04","Revenue","20002402","SOUTHERN ELECTRIC PLC"
"OCC","Housing Services","Electricity","B1501","23/01/2018","47023154 - 0","545.07","Revenue","20002402","SOUTHERN ELECTRIC PLC"
"OCC","Housing Services","Gas","B1502","23/01/2018","47023166 - 0","445.07","Revenue","20002402","SOUTHERN ELECTRIC PLC"
"OCC","Housing Services","Acquisition of Land & Property","Y001","23/01/2018","48021851 - 1","6825.00","Capital","20016580","HMRC"
"OCC","Community Services","Advertising & Publicity","D3802","16/01/2018","1041376 - 0","650.00","Revenue","20019735","CRYSTAL PUBLICATIONS"
"OCC","Community Services","General Contracted Services","D3401","19/01/2018","1041710 - 0","1125.00","Revenue","20017543","NOORANI EVENTS"
"OCC","Community Services","Cleaning Materials","B1601","09/01/2018","1042195 - 0","416.79","Revenue","20016920","ALLIANCE DISPOSABLES LTD"
"OCC","Community Services","Consultants Fees","D3411","09/01/2018","1042268 - 0","1825.00","Revenue","20019792","LOUISE ATKIN ASSOCIATES LTD"
"OCC","Community Services","Repossession Prevention Fund","D3434","09/01/2018","1042276 - 0","13000.00","Revenue","20009045","TOWN & COUNTRY PLANNING ASSOCI"
"OCC","Community Services","Furniture & Equipment Purchase","D3001","09/01/2018","1042299 - 0","1175.72","Revenue","20016526","FLEXIFORM BUSINESS FURNITURE LTD"
"OCC","Community Services","General Contracted Services","D3401","09/01/2018","1042304 - 0","2750.00","Revenue","20014128","RIGHT DIRECTIONS (MANAGEMENT) LTD"
"OCC","Community Services","General Contracted Services","D3401","16/01/2018","1042317 - 0","34813.00","Revenue","20019681","PROLUDIC LTD"
"OCC","Community Services","Reactive Maintenance & Minor Repairs","B1101","09/01/2018","1042397 - 0","5400.00","Revenue","20019359","MITIE PROPERTY SERVICES (UK) LTD"
"OCC","Community Services","Security Services","D3418","09/01/2018","1042403 - 0","462.50","Revenue","20016981","SCOPE SECURITY LTD"
"OCC","Community Services","Books & Publications","D3302","16/01/2018","1042476 - 0","780.00","Revenue","20003025","PETE RUSSELL"
"OCC","Community Services","General Contracted Services","D3401","16/01/2018","1042511 - 0","1950.00","Revenue","20018929","AQUILA TRAINING SERVICES LTD"
"OCC","Community Services","Awards / Prizes","D3705","09/01/2018","1042520 - 0","1000.00","Revenue","20018503","THE GIFT VOUCHER SHOP"
"OCC","Community Services","Advertising & Publicity","D3802","16/01/2018","1042617 - 0","1200.00","Revenue","20003025","PETE RUSSELL"
"OCC","Community Services","Services Maintenance (Planned)","B1103","09/01/2018","1042618 - 0","4190.25","Revenue","20018926","OXFORDSHIRE PAT TESTING LTD"
"OCC","Community Services","General Contracted Services","D3401","16/01/2018","1042620 - 0","480.00","Revenue","20003025","PETE RUSSELL"
"OCC","Community Services","General Contracted Services","D3401","16/01/2018","1042623 - 0","1648.00","Revenue","20016989","BACKSTAGE SUPPLIES LTD"
"OCC","Community Services","Grants","D3701","09/01/2018","1042637 - 0","2000.00","Revenue","20002401","SOUTH OXFORDSHIRE DISTRICT COUNCIL"
"OCC","Community Services","Security Services","D3418","16/01/2018","1042647 - 0","1095.00","Revenue","20016981","SCOPE SECURITY LTD"
"OCC","Community Services","Security Services","D3418","09/01/2018","1042648 - 0","3510.00","Revenue","20016981","SCOPE SECURITY LTD"
"OCC","Community Services","Waste Disposal & Skip Hire","D3420","09/01/2018","1042673 - 0","481.50","Revenue","20019539","DATASOLUTIONS 2016 LTD T/AS RESTORE DATASHRED"
"OCC","Community Services","Provisions","D3101","09/01/2018","1042684 - 0","2334.50","Revenue","20017894","OTHC LEMON ZEST"
"OCC","Community Services","Town Hall Catering Recharge","D3104","09/01/2018","1042684 - 1","6633.04","Revenue","20017894","OTHC LEMON ZEST"
"OCC","Community Services","Equipment Hire Charges","D3006","09/01/2018","1042686 - 0","1045.00","Revenue","20003374","CITY AUDIO VISUAL"
"OCC","Community Services","Grants","D3701","09/01/2018","1042690 - 0","510.00","Revenue","20015597","OXFORDSHIRE MIND"
"OCC","Community Services","Main Contractor","Y021","09/01/2018","1042743 - 0","65579.16","Capital","20000225","FERGAL CONTRACTING CO LTD"
"OCC","Community Services","General Contracted Services","D3401","30/01/2018","1042789 - 0","1000.00","Revenue","20019755","M JOLLEY CONSULTANCY LTD"
"OCC","Community Services","Instructors & Coaching Fees","D3413","09/01/2018","1042796 - 0","825.00","Revenue","20002930","OXFORDSHIRE COUNTY COUNCIL"
"OCC","Community Services","Reactive Maintenance & Minor Repairs","B1101","09/01/2018","1042832 - 0","714.00","Revenue","20018479","GET SUPPORT IT SERVICES LIMITED"
"OCC","Community Services","Consultants Fees","D3411","16/01/2018","1042837 - 0","2220.00","Revenue","20019317","NEIL STEVENSON"
"OCC","Community Services","Main Contractor","Y021","16/01/2018","1042841 - 0","1549.00","Capital","20015973","CBG CONSULTANTS LTD"
"OCC","Community Services","Special Events","D3807","09/01/2018","1042855 - 0","798.00","Revenue","20017675","S27 EVENTS LTD T/A BHK"
"OCC","Community Services","Cleaning Materials","B1601","30/01/2018","1042888 - 0","437.64","Revenue","20018021","UNISAN"
"OCC","Community Services","Security Services","D3418","30/01/2018","1042889 - 0","2565.00","Revenue","20016981","SCOPE SECURITY LTD"
"OCC","Community Services","Main Contractor","Y021","16/01/2018","1042892 - 0","3375.00","Capital","20019481","JESSOP & COOK ARCHITECTS LTD"
"OCC","Community Services","Grants","D3701","16/01/2018","1042946 - 0","4200.00","Revenue","20002893","CHERWELL DISTRICT COUNCIL"
"OCC","Community Services","Security Services","D3418","30/01/2018","1042952 - 0","615.00","Revenue","20009730","R & R FRONTLINE SERVICES LTD"
"OCC","Community Services","General Contracted Services","D3401","16/01/2018","1042958 - 1","783.39","Revenue","20003172","RENTOKIL INITIAL SERVICES NO1"
"OCC","Community Services","General Contracted Services","D3401","16/01/2018","1042977 - 0","1000.00","Revenue","20002063","BARTON COMMUNITY ASSOCIATION"
"OCC","Community Services","Special Events","D3807","16/01/2018","1042979 - 0","7381.37","Revenue","20017971","A & J CATERING (OXFORDSHIRE) LTD"
"OCC","Community Services","Subscriptions","D3703","16/01/2018","1042986 - 0","495.00","Revenue","20014231","CONFERENCES UK LIMITED"
"OCC","Community Services","Grants","D3701","16/01/2018","1042991 - 0","945.00","Revenue","20014881","GLL (GREENWICH LEISURE LTD)"
"OCC","Community Services","General Contracted Services","D3401","30/01/2018","1043005 - 0","1350.00","Revenue","20016981","SCOPE SECURITY LTD"
"OCC","Community Services","General Contracted Services","D3401","23/01/2018","1043006 - 0","1500.00","Revenue","20016981","SCOPE SECURITY LTD"
"OCC","Community Services","Security Services","D3418","16/01/2018","1043029 - 0","566.00","Revenue","20018420","SHOWSEC INTERNATIONAL LTD"
"OCC","Community Services","Security Services","D3418","16/01/2018","1043030 - 0","1362.43","Revenue","20018420","SHOWSEC INTERNATIONAL LTD"
"OCC","Community Services","Furniture & Equipment Purchase","D3001","16/01/2018","1043035 - 0","1185.00","Revenue","20014610","OFFICE FURNITURE ONLINE"
"OCC","Community Services","General Contracted Services","D3401","16/01/2018","1043047 - 0","6000.00","Revenue","20016762","IAN NOLAN EVENTS LTD"
"OCC","Community Services","Consultants Fees","D3411","16/01/2018","1043048 - 0","6911.50","Revenue","20016762","IAN NOLAN EVENTS LTD"
"OCC","Community Services","Waste Disposal & Skip Hire","D3420","23/01/2018","1043062 - 0","470.50","Revenue","20019539","DATASOLUTIONS 2016 LTD T/AS RESTORE DATASHRED"
"OCC","Community Services","Waste Disposal & Skip Hire","D3420","23/01/2018","1043063 - 0","512.00","Revenue","20019539","DATASOLUTIONS 2016 LTD T/AS RESTORE DATASHRED"
"OCC","Community Services","Furniture & Equipment Maintenance & Repairs","D3002","30/01/2018","1043078 - 0","987.00","Revenue","20015096","CPS MANUFATURING CO"
"OCC","Community Services","Consultants Fees","D3411","30/01/2018","1043092 - 0","835.00","Revenue","20019317","NEIL STEVENSON"
"OCC","Community Services","Consultants Fees","D3411","23/01/2018","1043093 - 0","856.40","Revenue","20019317","NEIL STEVENSON"
"OCC","Community Services","Security Services","D3418","23/01/2018","1043106 - 0","566.00","Revenue","20018420","SHOWSEC INTERNATIONAL LTD"
"OCC","Community Services","Security Services","D3418","23/01/2018","1043107 - 0","452.80","Revenue","20018420","SHOWSEC INTERNATIONAL LTD"
"OCC","Community Services","Security Services","D3418","23/01/2018","1043109 - 0","566.00","Revenue","20018420","SHOWSEC INTERNATIONAL LTD"
"OCC","Community Services","Security Services","D3418","30/01/2018","1043110 - 0","566.00","Revenue","20018420","SHOWSEC INTERNATIONAL LTD"
"OCC","Community Services","Main Contractor","Y021","23/01/2018","1043118 - 0","258358.00","Capital","20015211","FUSION LIFESTYLE"
"OCC","Community Services","Main Contractor","Y021","30/01/2018","1043229 - 0","7045.00","Capital","20000397","WINDRUSH DOOR & WINDOW SERVICES LTD"
"OCC","Community Services","General Contracted Services","D3401","30/01/2018","1043263 - 0","1755.00","Revenue","20016215","BODY POLITIC DANCE LTD"
"OCC","Community Services","Main Contractor","Y021","30/01/2018","1043320 - 0","28500.00","Capital","20000225","FERGAL CONTRACTING CO LTD"
"OCC","Community Services","General Contracted Services","D3401","30/01/2018","1043363 - 0","2340.00","Revenue","20019540","DIGITAL ARTIST RESIDENCY"
"OCC","Community Services","Security Services","D3418","30/01/2018","1043365 - 0","566.00","Revenue","20018420","SHOWSEC INTERNATIONAL LTD"
"OCC","Community Services","Security Services","D3418","30/01/2018","1043367 - 0","434.93","Revenue","20018420","SHOWSEC INTERNATIONAL LTD"
"OCC","Community Services","Consultants Fees","D3411","16/01/2018","46296380 - 13","84.00","Revenue","20011499","TOPS"
"OCC","Community Services","Grants","D3701","09/01/2018","46296383 - 1","1000.00","Revenue","20000000","GENERAL EXPENSES"
"OCC","Community Services","Grants","D3701","16/01/2018","46296397 - 1","1000.00","Revenue","20000019","GRANT PAYMENTS"
"OCC","Community Services","Grants","D3701","16/01/2018","46296414 - 1","1000.00","Revenue","20000019","GRANT PAYMENTS"
"OCC","Community Services","General Contracted Services","D3401","16/01/2018","46296425 - 1","610.00","Revenue","20000000","GENERAL EXPENSES"
"OCC","Community Services","General Contracted Services","D3401","16/01/2018","46296426 - 1","995.00","Revenue","20000000","GENERAL EXPENSES"
"OCC","Community Services","Temporary Bureau Staffing","A0108","16/01/2018","46296428 - 5","1327.14","Revenue","20018053","REED SPECIALIST RECRUITMENT LTD"
"OCC","Community Services","Temporary Bureau Staffing","A0108","16/01/2018","46296428 - 6","2999.00","Revenue","20018053","REED SPECIALIST RECRUITMENT LTD"
"OCC","Community Services","Temporary Bureau Staffing","A0108","16/01/2018","46296428 - 7","137.65","Revenue","20018053","REED SPECIALIST RECRUITMENT LTD"
"OCC","Community Services","Temporary Bureau Staffing","A0108","16/01/2018","46296428 - 19","2665.92","Revenue","20018053","REED SPECIALIST RECRUITMENT LTD"
"OCC","Community Services","Temporary Bureau Staffing","A0108","16/01/2018","46296428 - 43","2468.97","Revenue","20018053","REED SPECIALIST RECRUITMENT LTD"
"OCC","Community Services","Temporary Bureau Staffing","A0108","16/01/2018","46296428 - 44","449.74","Revenue","20018053","REED SPECIALIST RECRUITMENT LTD"
"OCC","Community Services","Grants","D3701","23/01/2018","46296442 - 1","2000.00","Revenue","20018275","SAFE! SUPPORTING YOUNG VICTIMS"
"OCC","Community Services","Grants","D3701","23/01/2018","46296443 - 1","2000.00","Revenue","20017842","WOLVERCOTE YOUNG PEOPLES CLUB LTD"
"OCC","Community Services","Grants","D3701","16/01/2018","46296444 - 1","5000.00","Revenue","20013119","THE STORY MUSEUM"
"OCC","Community Services","Grants","D3701","16/01/2018","46296468 - 1","1000.00","Revenue","20000019","GRANT PAYMENTS"
"OCC","Community Services","Contributions","D3702","23/01/2018","46296469 - 1","1950.00","Revenue","20018170","ST MARGARET'S AREA SOCIETY"
"OCC","Community Services","Contributions","D3702","16/01/2018","46296471 - 1","9399.00","Revenue","20008184","CITIZENS ADVICE BUREAU"
"OCC","Community Services","Contributions","D3702","23/01/2018","46296476 - 1","1500.00","Revenue","20008209","DONNINGTON DOORSTEP"
"OCC","Community Services","Grants","D3701","30/01/2018","46296554 - 1","27927.00","Revenue","20009163","OXFORD COMMUNITY WORK AGENCY L"
"OCC","Community Services","Grants","D3701","30/01/2018","46296555 - 1","19146.50","Revenue","20010077","BLACKBIRD LEYS N""HOOD SUPPORT SCHEME"
"OCC","Community Services","Grants","D3701","30/01/2018","46296556 - 1","21869.50","Revenue","20009161","ROSE HILL & DONNINGTON ADVICE CENTRE LTD"
"OCC","Community Services","Gas","B1502","16/01/2018","47022979 - 1","7033.68","Revenue","20007602","TOTAL GAS & POWER LTD"
"OCC","Community Services","Electricity","B1501","16/01/2018","47023015 - 1","1039.76","Revenue","20011411","NPOWER"
"OCC","Community Services","Electricity","B1501","16/01/2018","47023017 - 1","9369.23","Revenue","20011411","NPOWER"
"OCC","Community Services","Electricity","B1501","16/01/2018","47023018 - 0","1809.94","Revenue","20011411","NPOWER"
"OCC","Community Services","Electricity","B1501","16/01/2018","47023021 - 1","5187.89","Revenue","20011411","NPOWER"
"OCC","Community Services","Electricity","B1501","16/01/2018","47023024 - 0","956.14","Revenue","20011411","NPOWER"
"OCC","Community Services","Electricity","B1501","16/01/2018","47023025 - 1","3225.96","Revenue","20011411","NPOWER"
"OCC","Community Services","Electricity","B1501","16/01/2018","47023027 - 1","8393.79","Revenue","20011411","NPOWER"
"OCC","Community Services","Gas","B1502","23/01/2018","47023040 - 1","648.76","Revenue","20007602","TOTAL GAS & POWER LTD"
"OCC","Direct Services","Short Courses","A0622","23/01/2018","1041010 - 1","2380.00","Revenue","20015755","JLD DRIVER TRAINING LTD"
"OCC","Direct Services","General Contracted Services","D3401","09/01/2018","1041849 - 0","633.50","Revenue","20002296","METRIC GROUP LIMITED"
"OCC","Direct Services","General Contracted Services","D3401","09/01/2018","1041894 - 0","4747.75","Revenue","20016501","SOFT SURFACES LTD"
"OCC","Direct Services","General Contracted Services","D3401","09/01/2018","1041895 - 0","2183.00","Revenue","20016501","SOFT SURFACES LTD"
"OCC","Direct Services","General Contracted Services","D3401","09/01/2018","1041896 - 0","1050.00","Revenue","20016501","SOFT SURFACES LTD"
"OCC","Direct Services","General Contracted Services","D3401","09/01/2018","1041897 - 0","2087.50","Revenue","20016501","SOFT SURFACES LTD"
"OCC","Direct Services","Security Services","D3418","09/01/2018","1041902 - 0","4449.11","Revenue","20002120","OCS GROUP UK LTD T/A CANNON"
"OCC","Direct Services","General Contracted Services","D3401","09/01/2018","1041936 - 0","1100.00","Revenue","20008668","CLEARVIEW INTELLIGENCE LTD"
"OCC","Direct Services","General Contracted Services","D3401","09/01/2018","1041936 - 1","1200.00","Revenue","20008668","CLEARVIEW INTELLIGENCE LTD"
"OCC","Direct Services","General Contracted Services","D3401","09/01/2018","1041936 - 2","551.00","Revenue","20008668","CLEARVIEW INTELLIGENCE LTD"
"OCC","Direct Services","General Contracted Services","D3401","09/01/2018","1041938 - 0","2905.00","Revenue","20008668","CLEARVIEW INTELLIGENCE LTD"
"OCC","Direct Services","Reactive Maintenance & Minor Repairs","B1101","09/01/2018","1041969 - 0","1029.00","Revenue","20002296","METRIC GROUP LIMITED"
"OCC","Direct Services","General Contracted Services","D3401","09/01/2018","1042058 - 0","5711.50","Revenue","20016501","SOFT SURFACES LTD"
"OCC","Direct Services","General Contracted Services","D3401","09/01/2018","1042059 - 0","3472.50","Revenue","20016501","SOFT SURFACES LTD"
"OCC","Direct Services","Provisions","D3101","09/01/2018","1042129 - 0","887.88","Revenue","20019024","WELLBEING GROUP(UK) T/A WELLBEING GROUP"
"OCC","Direct Services","Short Courses","A0622","09/01/2018","1042151 - 0","1128.50","Revenue","20005058","RADIODETECTION LTD"
"OCC","Direct Services","Plants","D3025","09/01/2018","1042262 - 0","826.30","Revenue","20018850","WYEVALE NURSERIES"
"OCC","Direct Services","General Contracted Services","D3401","09/01/2018","1042319 - 0","800.00","Revenue","20019403","ASSERTIVE MEDIA SOLUTIONS LTD"
"OCC","Direct Services","Contract Plant Hire","C2402","09/01/2018","1042324 - 0","467.00","Revenue","20002279","M & M SKIP HIRE LTD"
"OCC","Direct Services","Short Courses","A0622","09/01/2018","1042372 - 0","2850.00","Revenue","20019054","SCB TRAINING SERVICES LTD"
"OCC","Direct Services","Furniture & Equipment Maintenance & Repairs","D3002","09/01/2018","1042390 - 0","800.00","Revenue","20008501","SURE-SAFE LTD"
"OCC","Direct Services","Plants","D3025","09/01/2018","1042409 - 1","2469.50","Revenue","20006303","COMPLETE TREE SERVICES"
"OCC","Direct Services","Fire Alarms and Emergency Lighting","B1241","09/01/2018","1042436 - 0","754.17","Revenue","20007609","EXECUTIVE FIRE PROTECTION LTD"
"OCC","Direct Services","Services Maintenance (Planned)","B1103","09/01/2018","1042506 - 1","9116.20","Revenue","20002351","PHS GROUP PLC"
"OCC","Direct Services","Direct Services Supplies & Services","D3339","09/01/2018","1042510 - 1","7000.00","Revenue","20007578","BBOWT"
"OCC","Direct Services","Security Services","D3418","30/01/2018","1042528 - 0","456.23","Revenue","20002120","OCS GROUP UK LTD T/A CANNON"
"OCC","Direct Services","Security Services","D3418","30/01/2018","1042529 - 0","4449.11","Revenue","20002120","OCS GROUP UK LTD T/A CANNON"
"OCC","Direct Services","Materials","D3021","09/01/2018","1042613 - 0","700.20","Revenue","20015392","CPA HORTICULTURE LTD"
"OCC","Direct Services","Reactive Maintenance & Minor Repairs","B1101","16/01/2018","1042616 - 0","1440.00","Revenue","20011395","CHERWELL DOORS"
"OCC","Direct Services","Short Courses","A0622","16/01/2018","1042625 - 0","2410.00","Revenue","20018916","ARB AID LTD"
"OCC","Direct Services","Short Courses","A0622","09/01/2018","1042634 - 0","1134.00","Revenue","20008002","FREIGHT TRANSPORT ASSOCIATION"
"OCC","Direct Services","Main Contractor","Y021","09/01/2018","1042635 - 0","5402.89","Capital","20015438","WYG ENVIRONMENT PLANNING TRANSPORT LTD"
"OCC","Direct Services","Services Maintenance (Planned)","B1103","09/01/2018","1042644 - 0","351.85","Revenue","20002568","PYROTEC SERVICES LTD"
"OCC","Direct Services","Services Maintenance (Planned)","B1103","09/01/2018","1042644 - 1","190.00","Revenue","20002568","PYROTEC SERVICES LTD"
"OCC","Direct Services","Services Maintenance (Planned)","B1103","09/01/2018","1042644 - 2","43.75","Revenue","20002568","PYROTEC SERVICES LTD"
"OCC","Direct Services","Services Maintenance (Planned)","B1103","09/01/2018","1042644 - 3","281.25","Revenue","20002568","PYROTEC SERVICES LTD"
"OCC","Direct Services","Services Maintenance (Planned)","B1103","09/01/2018","1042644 - 4","85.00","Revenue","20002568","PYROTEC SERVICES LTD"
"OCC","Direct Services","Services Maintenance (Planned)","B1103","09/01/2018","1042644 - 5","261.40","Revenue","20002568","PYROTEC SERVICES LTD"
"OCC","Direct Services","Furniture & Equipment Purchase","D3001","30/01/2018","1042671 - 0","3725.52","Revenue","20003374","CITY AUDIO VISUAL"
"OCC","Direct Services","Contract Plant Hire","C2402","30/01/2018","1042674 - 0","495.00","Revenue","20002279","M & M SKIP HIRE LTD"
"OCC","Direct Services","Reactive Maintenance & Minor Repairs","B1101","09/01/2018","1042759 - 0","1712.00","Revenue","20008015","M TECH COMUNICATIONS BRISTOL LTD"
"OCC","Direct Services","CCTV","D3504","30/01/2018","1042776 - 0","795.00","Revenue","20009896","VISION SECURE LIMITED"
"OCC","Direct Services","Provisions","D3101","30/01/2018","1042779 - 0","2824.64","Revenue","20018437","LTT VENDING LTD"
"OCC","Direct Services","Electrical Services (Inspections etc.)","B1153","09/01/2018","1042850 - 0","580.13","Revenue","20000249","SSE CONTRACTING LTD"
"OCC","Direct Services","Materials","D3021","30/01/2018","1042950 - 0","1892.34","Revenue","20008377","FLEET (LINE MARKERS) LTD"
"OCC","Direct Services","Plants","D3025","23/01/2018","1042953 - 0","4725.00","Revenue","20003592","BARCHAM TREES PLC"
"OCC","Direct Services","General Stationery Supplies","D3301","30/01/2018","1042988 - 0","1165.00","Revenue","20009896","VISION SECURE LIMITED"
"OCC","Direct Services","General Contracted Services","D3401","30/01/2018","1043018 - 0","3735.84","Revenue","20016581","JADE SECURITY SERVICES LTD"
"OCC","Direct Services","General Contracted Services","D3401","23/01/2018","1043129 - 0","480.00","Revenue","20017563","WALSH HAULAGE (OXFORD)"
"OCC","Direct Services","Reactive Maintenance & Minor Repairs","B1101","23/01/2018","1043135 - 0","4463.67","Revenue","20014436","COBALT TELEPHONE TECHNOLOGIES"
"OCC","Direct Services","General Contracted Services","D3401","23/01/2018","1043138 - 0","1410.00","Revenue","20019744","STREETMASTER (SOUTH WALES) LTD"
"OCC","Direct Services","Contract Plant Hire","C2402","30/01/2018","1043218 - 0","441.00","Revenue","20002279","M & M SKIP HIRE LTD"
"OCC","Direct Services","General Contracted Services","D3401","30/01/2018","1043258 - 0","995.00","Revenue","20006303","COMPLETE TREE SERVICES"
"OCC","Direct Services","General Contracted Services","D3401","30/01/2018","1043282 - 0","607.98","Revenue","20016705","SOUTHERN ELECTRIC POWER DISTRIBUTION PLC"
"OCC","Direct Services","Services Maintenance (Planned)","B1103","30/01/2018","1043295 - 0","225.00","Revenue","20002568","PYROTEC SERVICES LTD"
"OCC","Direct Services","Services Maintenance (Planned)","B1103","30/01/2018","1043295 - 1","150.00","Revenue","20002568","PYROTEC SERVICES LTD"
"OCC","Direct Services","Services Maintenance (Planned)","B1103","30/01/2018","1043295 - 2","43.75","Revenue","20002568","PYROTEC SERVICES LTD"
"OCC","Direct Services","Services Maintenance (Planned)","B1103","30/01/2018","1043295 - 3","321.25","Revenue","20002568","PYROTEC SERVICES LTD"
"OCC","Direct Services","Services Maintenance (Planned)","B1103","30/01/2018","1043295 - 4","293.75","Revenue","20002568","PYROTEC SERVICES LTD"
"OCC","Direct Services","Consultants Fees","D3411","30/01/2018","1043337 - 0","2250.00","Revenue","20019354","INTEGRA ASSOCIATES"
"OCC","Direct Services","Main Contractor","Y021","30/01/2018","1043369 - 0","3089.93","Capital","20015438","WYG ENVIRONMENT PLANNING TRANSPORT LTD"
"OCC","Direct Services","Reactive Maintenance & Minor Repairs","B1101","30/01/2018","1043380 - 0","689.80","Revenue","20002241","HURLEY INDUSTRIAL CLEANING EQU"
"OCC","Direct Services","Conferences","D3602","09/01/2018","46296350 - 1","1186.50","Revenue","20009350","APSE"
"OCC","Direct Services","Electricity","B1501","09/01/2018","46296359 - 1","3773.17","Revenue","20009555","NORTH OXFORD ASSOCIATION"
"OCC","Direct Services","Gas","B1502","09/01/2018","46296359 - 2","795.00","Revenue","20009555","NORTH OXFORD ASSOCIATION"
"OCC","Direct Services","Consultants Fees","D3411","16/01/2018","46296380 - 1","248.00","Revenue","20011499","TOPS"
"OCC","Direct Services","Consultants Fees","D3411","16/01/2018","46296380 - 2","57.00","Revenue","20011499","TOPS"
"OCC","Direct Services","Consultants Fees","D3411","16/01/2018","46296380 - 4","141.00","Revenue","20011499","TOPS"
"OCC","Direct Services","Consultants Fees","D3411","16/01/2018","46296380 - 5","84.00","Revenue","20011499","TOPS"
"OCC","Direct Services","Consultants Fees","D3411","16/01/2018","46296380 - 6","84.00","Revenue","20011499","TOPS"
"OCC","Direct Services","Consultants Fees","D3411","16/01/2018","46296380 - 7","99.00","Revenue","20011499","TOPS"
"OCC","Direct Services","Consultants Fees","D3411","16/01/2018","46296380 - 9","42.00","Revenue","20011499","TOPS"
"OCC","Direct Services","Consultants Fees","D3411","16/01/2018","46296380 - 10","42.00","Revenue","20011499","TOPS"
"OCC","Direct Services","Consultants Fees","D3411","16/01/2018","46296380 - 11","20.00","Revenue","20011499","TOPS"
"OCC","Direct Services","Consultants Fees","D3411","16/01/2018","46296380 - 12","42.00","Revenue","20011499","TOPS"
"OCC","Direct Services","Consultants Fees","D3411","16/01/2018","46296380 - 14","42.00","Revenue","20011499","TOPS"
"OCC","Direct Services","Consultants Fees","D3411","16/01/2018","46296380 - 15","20.00","Revenue","20011499","TOPS"
"OCC","Direct Services","Consultants Fees","D3411","16/01/2018","46296380 - 16","20.00","Revenue","20011499","TOPS"
"OCC","Direct Services","Consultants Fees","D3411","16/01/2018","46296380 - 18","42.00","Revenue","20011499","TOPS"
"OCC","Direct Services","Consultants Fees","D3411","16/01/2018","46296380 - 19","126.00","Revenue","20011499","TOPS"
"OCC","Direct Services","Consultants Fees","D3411","16/01/2018","46296380 - 21","84.00","Revenue","20011499","TOPS"
"OCC","Direct Services","Consultants Fees","D3411","16/01/2018","46296380 - 22","57.00","Revenue","20011499","TOPS"
"OCC","Direct Services","Consultants Fees","D3411","09/01/2018","46296384 - 1","850.00","Revenue","20019779","LOCKHART GARRATT"
"OCC","Direct Services","Consultants Fees","D3411","09/01/2018","46296385 - 1","940.00","Revenue","20019779","LOCKHART GARRATT"
"OCC","Direct Services","Short Courses","A0622","16/01/2018","46296392 - 1","1485.00","Revenue","20000000","GENERAL EXPENSES"
"OCC","Direct Services","Short Courses","A0622","16/01/2018","46296392 - 2","60.00","Revenue","20000000","GENERAL EXPENSES"
"OCC","Direct Services","Short Courses","A0622","16/01/2018","46296392 - 3","150.00","Revenue","20000000","GENERAL EXPENSES"
"OCC","Direct Services","Vehicle Excise Licences","C2202","12/01/2018","46296396 - 1","30.00","Revenue","20008465","POST OFFICE LTD"
"OCC","Direct Services","Vehicle Excise Licences","C2202","12/01/2018","46296396 - 2","240.00","Revenue","20008465","POST OFFICE LTD"
"OCC","Direct Services","Vehicle Excise Licences","C2202","12/01/2018","46296396 - 3","240.00","Revenue","20008465","POST OFFICE LTD"
"OCC","Direct Services","Vehicle Excise Licences","C2202","12/01/2018","46296396 - 4","650.00","Revenue","20008465","POST OFFICE LTD"
"OCC","Direct Services","Vehicle Excise Licences","C2202","12/01/2018","46296396 - 5","650.00","Revenue","20008465","POST OFFICE LTD"
"OCC","Direct Services","Vehicle Excise Licences","C2202","12/01/2018","46296396 - 6","650.00","Revenue","20008465","POST OFFICE LTD"
"OCC","Direct Services","Vehicle Excise Licences","C2202","12/01/2018","46296396 - 7","650.00","Revenue","20008465","POST OFFICE LTD"
"OCC","Direct Services","Vehicle Excise Licences","C2202","12/01/2018","46296396 - 8","650.00","Revenue","20008465","POST OFFICE LTD"
"OCC","Direct Services","Vehicle Excise Licences","C2202","12/01/2018","46296396 - 9","650.00","Revenue","20008465","POST OFFICE LTD"
"OCC","Direct Services","Vehicle Excise Licences","C2202","12/01/2018","46296396 - 10","240.00","Revenue","20008465","POST OFFICE LTD"
"OCC","Direct Services","Vehicle Excise Licences","C2202","12/01/2018","46296396 - 11","240.00","Revenue","20008465","POST OFFICE LTD"
"OCC","Direct Services","Vehicle Excise Licences","C2202","12/01/2018","46296396 - 12","240.00","Revenue","20008465","POST OFFICE LTD"
"OCC","Direct Services","Vehicle Excise Licences","C2202","12/01/2018","46296396 - 13","240.00","Revenue","20008465","POST OFFICE LTD"
"OCC","Direct Services","Vehicle Excise Licences","C2202","12/01/2018","46296396 - 14","240.00","Revenue","20008465","POST OFFICE LTD"
"OCC","Direct Services","Vehicle Excise Licences","C2202","12/01/2018","46296396 - 15","240.00","Revenue","20008465","POST OFFICE LTD"
"OCC","Direct Services","Vehicle Excise Licences","C2202","12/01/2018","46296396 - 16","240.00","Revenue","20008465","POST OFFICE LTD"
"OCC","Direct Services","Vehicle Excise Licences","C2202","12/01/2018","46296396 - 17","240.00","Revenue","20008465","POST OFFICE LTD"
"OCC","Direct Services","Vehicle Excise Licences","C2202","12/01/2018","46296396 - 18","240.00","Revenue","20008465","POST OFFICE LTD"
"OCC","Direct Services","Vehicle Excise Licences","C2202","12/01/2018","46296396 - 19","240.00","Revenue","20008465","POST OFFICE LTD"
"OCC","Direct Services","Vehicle Excise Licences","C2202","12/01/2018","46296396 - 20","240.00","Revenue","20008465","POST OFFICE LTD"
"OCC","Direct Services","Vehicle Excise Licences","C2202","12/01/2018","46296396 - 21","10.00","Revenue","20008465","POST OFFICE LTD"
"OCC","Direct Services","Postage & Carriage","D3501","16/01/2018","46296415 - 1","1000.00","Revenue","20009008","NEOPOST LTD RCB CREDIFON  A/C"
"OCC","Direct Services","Temporary Bureau Staffing","A0108","16/01/2018","46296428 - 1","1081.01","Revenue","20018053","REED SPECIALIST RECRUITMENT LTD"
"OCC","Direct Services","Temporary Bureau Staffing","A0108","16/01/2018","46296428 - 2","1659.17","Revenue","20018053","REED SPECIALIST RECRUITMENT LTD"
"OCC","Direct Services","Temporary Bureau Staffing","A0108","16/01/2018","46296428 - 3","2027.39","Revenue","20018053","REED SPECIALIST RECRUITMENT LTD"
"OCC","Direct Services","Temporary Bureau Staffing","A0108","16/01/2018","46296428 - 4","2200.74","Revenue","20018053","REED SPECIALIST RECRUITMENT LTD"
"OCC","Direct Services","Temporary Bureau Staffing","A0108","16/01/2018","46296428 - 21","1789.87","Revenue","20018053","REED SPECIALIST RECRUITMENT LTD"
"OCC","Direct Services","Temporary Bureau Staffing","A0108","16/01/2018","46296428 - 25","1433.64","Revenue","20018053","REED SPECIALIST RECRUITMENT LTD"
"OCC","Direct Services","Temporary Bureau Staffing","A0108","16/01/2018","46296428 - 31","2067.04","Revenue","20018053","REED SPECIALIST RECRUITMENT LTD"
"OCC","Direct Services","Temporary Bureau Staffing","A0108","16/01/2018","46296428 - 32","7839.71","Revenue","20018053","REED SPECIALIST RECRUITMENT LTD"
"OCC","Direct Services","Temporary Bureau Staffing","A0108","16/01/2018","46296428 - 33","2738.95","Revenue","20018053","REED SPECIALIST RECRUITMENT LTD"
"OCC","Direct Services","Temporary Bureau Staffing","A0108","16/01/2018","46296428 - 34","1140.62","Revenue","20018053","REED SPECIALIST RECRUITMENT LTD"
"OCC","Direct Services","Temporary Bureau Staffing","A0108","16/01/2018","46296428 - 35","2134.84","Revenue","20018053","REED SPECIALIST RECRUITMENT LTD"
"OCC","Direct Services","Temporary Bureau Staffing","A0108","16/01/2018","46296428 - 36","3993.71","Revenue","20018053","REED SPECIALIST RECRUITMENT LTD"
"OCC","Direct Services","Temporary Bureau Staffing","A0108","16/01/2018","46296428 - 37","631.70","Revenue","20018053","REED SPECIALIST RECRUITMENT LTD"
"OCC","Direct Services","Temporary Bureau Staffing","A0108","16/01/2018","46296428 - 38","541.22","Revenue","20018053","REED SPECIALIST RECRUITMENT LTD"
"OCC","Direct Services","Temporary Bureau Staffing","A0108","16/01/2018","46296428 - 39","12974.87","Revenue","20018053","REED SPECIALIST RECRUITMENT LTD"
"OCC","Direct Services","Temporary Bureau Staffing","A0108","16/01/2018","46296428 - 40","20252.34","Revenue","20018053","REED SPECIALIST RECRUITMENT LTD"
"OCC","Direct Services","Temporary Bureau Staffing","A0108","16/01/2018","46296428 - 41","801.65","Revenue","20018053","REED SPECIALIST RECRUITMENT LTD"
"OCC","Direct Services","Temporary Bureau Staffing","A0108","16/01/2018","46296428 - 42","26174.78","Revenue","20018053","REED SPECIALIST RECRUITMENT LTD"
"OCC","Direct Services","Pitch & Site Rents","K9534","16/01/2018","46296431 - 1","6875.00","Revenue","20012815","ST MICHAELS PCC"
"OCC","Direct Services","Short Courses","A0622","16/01/2018","46296440 - 1","453.75","Revenue","20000010","HOUSING PAYMENTS"
"OCC","Direct Services","General Contracted Services","D3401","16/01/2018","46296448 - 1","650.00","Revenue","20000000","GENERAL EXPENSES"
"OCC","Direct Services","Short Courses","A0622","30/01/2018","46296605 - 1","2850.00","Revenue","20000000","GENERAL EXPENSES"
"OCC","Direct Services","Short Courses","A0622","30/01/2018","46296655 - 1","1700.00","Revenue","20000000","GENERAL EXPENSES"
"OCC","Direct Services","Short Courses","A0622","30/01/2018","46296662 - 1","5480.00","Revenue","20000000","GENERAL EXPENSES"
"OCC","Direct Services","Water & Sewerage Charges","B1830","16/01/2018","47022989 - 1","2834.30","Revenue","20019401","CASTLE WATER"
"OCC","Direct Services","Electricity","B1501","16/01/2018","47023002 - 0","1390.63","Revenue","20002402","SOUTHERN ELECTRIC PLC"
"OCC","Direct Services","Water & Sewerage Charges","B1830","16/01/2018","47023004 - 0","1140.13","Revenue","20019401","CASTLE WATER"
"OCC","Direct Services","Electricity","B1501","16/01/2018","47023013 - 1","1528.67","Revenue","20011411","NPOWER"
"OCC","Direct Services","Electricity","B1501","16/01/2018","47023019 - 1","1220.89","Revenue","20011411","NPOWER"
"OCC","Direct Services","Electricity","B1501","16/01/2018","47023020 - 0","3175.49","Revenue","20011411","NPOWER"
"OCC","Direct Services","Electricity","B1501","16/01/2018","47023023 - 1","2137.10","Revenue","20011411","NPOWER"
"OCC","Direct Services","Electricity","B1501","23/01/2018","47023097 - 1","428.05","Revenue","20002402","SOUTHERN ELECTRIC PLC"
"OCC","Direct Services","Gas","B1502","23/01/2018","47023158 - 0","488.04","Revenue","20002402","SOUTHERN ELECTRIC PLC"
"OCC","Direct Services","Water & Sewerage Charges","B1830","23/01/2018","47023200 - 1","940.57","Revenue","20019401","CASTLE WATER"
"OCC","Direct Services","Water & Sewerage Charges","B1830","23/01/2018","47023207 - 1","1705.77","Revenue","20019401","CASTLE WATER"
"OCC","Direct Services","Materials","D3021","23/01/2018","47993937 - 1","303.03","Revenue","20008907","FAROL LTD"
"OCC","Direct Services","Materials","D3021","23/01/2018","47993937 - 2","303.03","Revenue","20008907","FAROL LTD"
"OCC","Direct Services","Materials","D3021","09/01/2018","47994281 - 1","499.60","Revenue","20002435","P A TURNEY LTD"
"OCC","Direct Services","Materials","D3021","09/01/2018","47994281 - 2","34.04","Revenue","20002435","P A TURNEY LTD"
"OCC","Direct Services","Materials","D3021","09/01/2018","47994294 - 0","243.50","Revenue","20002168","DENNIS EAGLE LTD"
"OCC","Direct Services","Materials","D3021","09/01/2018","47994294 - 1","390.00","Revenue","20002168","DENNIS EAGLE LTD"
"OCC","Direct Services","Materials","D3021","09/01/2018","47994314 - 1","455.95","Revenue","20002339","OXFORD PAINT SERVICES"
"OCC","Direct Services","Furniture & Equipment Purchase","D3001","09/01/2018","47994325 - 1","14550.00","Revenue","20007968","IMPERIAL GARAGE EQUIPMENT"
"OCC","Direct Services","Materials","D3021","09/01/2018","47994327 - 1","390.00","Revenue","20017847","N A BROWN LTD"
"OCC","Direct Services","Materials","D3021","09/01/2018","47994327 - 2","228.00","Revenue","20017847","N A BROWN LTD"
"OCC","Direct Services","Materials","D3021","09/01/2018","47994327 - 3","117.00","Revenue","20017847","N A BROWN LTD"
"OCC","Direct Services","Materials","D3021","09/01/2018","47994328 - 0","33.57","Revenue","20007940","CORDWALLIS OXFORD LTD"
"OCC","Direct Services","Materials","D3021","09/01/2018","47994328 - 1","1485.10","Revenue","20007940","CORDWALLIS OXFORD LTD"
"OCC","Direct Services","Materials","D3021","09/01/2018","47994328 - 2","33.57","Revenue","20007940","CORDWALLIS OXFORD LTD"
"OCC","Direct Services","Materials","D3021","09/01/2018","47994328 - 3","77.97","Revenue","20007940","CORDWALLIS OXFORD LTD"
"OCC","Direct Services","Fuel Purchase (Stock)","C2003","09/01/2018","47994331 - 1","31173.70","Revenue","20011436","PACE FUEL CARE"
"OCC","Direct Services","Materials","D3021","09/01/2018","47994382 - 1","458.85","Revenue","20018857","GROUP TYRE WHOLESALE LTD"
"OCC","Direct Services","General Contracted Services","D3401","16/01/2018","47994393 - 0","1155.08","Revenue","20011077","EURO CAR PARTS SWINDON"
"OCC","Direct Services","General Contracted Services","D3401","16/01/2018","47994397 - 0","1986.89","Revenue","20017042","BANDVULC TRUCK TYRES"
"OCC","Direct Services","General Contracted Services","D3401","16/01/2018","47994405 - 1","424.48","Revenue","20008002","FREIGHT TRANSPORT ASSOCIATION"
"OCC","Direct Services","General Contracted Services","D3401","16/01/2018","47994405 - 2","424.48","Revenue","20008002","FREIGHT TRANSPORT ASSOCIATION"
"OCC","Direct Services","Materials","D3021","16/01/2018","47994411 - 1","525.50","Revenue","20002198","FRENCO SERVICE REPLACMNTS LTD"
"OCC","Direct Services","Materials","D3021","16/01/2018","47994411 - 2","25.00","Revenue","20002198","FRENCO SERVICE REPLACMNTS LTD"
"OCC","Direct Services","Materials","D3021","16/01/2018","47994411 - 3","10.00","Revenue","20002198","FRENCO SERVICE REPLACMNTS LTD"
"OCC","Direct Services","Materials","D3021","16/01/2018","47994443 - 0","357.25","Revenue","20015893","ATE (UK) LTD"
"OCC","Direct Services","Materials","D3021","16/01/2018","47994443 - 1","97.25","Revenue","20015893","ATE (UK) LTD"
"OCC","Direct Services","Materials","D3021","16/01/2018","47994443 - 2","97.25","Revenue","20015893","ATE (UK) LTD"
"OCC","Direct Services","Fuel Systems Maintenance","D3338","16/01/2018","47994444 - 1","99.00","Revenue","20008157","VECTEC LTD"
"OCC","Direct Services","Fuel Systems Maintenance","D3338","16/01/2018","47994444 - 2","150.00","Revenue","20008157","VECTEC LTD"
"OCC","Direct Services","Fuel Systems Maintenance","D3338","16/01/2018","47994444 - 3","383.40","Revenue","20008157","VECTEC LTD"
"OCC","Direct Services","Fuel Purchase (Stock)","C2003","16/01/2018","47994450 - 1","27273.95","Revenue","20011436","PACE FUEL CARE"
"OCC","Direct Services","Materials","D3021","16/01/2018","47994518 - 1","452.38","Revenue","20013677","ALLEN FORD"
"OCC","Direct Services","Materials","D3021","23/01/2018","47994523 - 1","542.43","Revenue","20008907","FAROL LTD"
"OCC","Direct Services","Materials","D3021","23/01/2018","47994525 - 1","28.41","Revenue","20008907","FAROL LTD"
"OCC","Direct Services","Materials","D3021","23/01/2018","47994525 - 2","587.93","Revenue","20008907","FAROL LTD"
"OCC","Direct Services","Materials","D3021","23/01/2018","47994525 - 3","42.36","Revenue","20008907","FAROL LTD"
"OCC","Direct Services","Materials","D3021","23/01/2018","47994525 - 5","192.06","Revenue","20008907","FAROL LTD"
"OCC","Direct Services","Materials","D3021","23/01/2018","47994532 - 0","260.00","Revenue","20017847","N A BROWN LTD"
"OCC","Direct Services","Materials","D3021","23/01/2018","47994532 - 1","117.00","Revenue","20017847","N A BROWN LTD"
"OCC","Direct Services","Materials","D3021","23/01/2018","47994532 - 2","114.00","Revenue","20017847","N A BROWN LTD"
"OCC","Direct Services","Other Licences And Fees","C2203","23/01/2018","47994533 - 1","567.00","Revenue","20017960","INTELLIGENT DATA SYSTEMS (UK) LTD"
"OCC","Direct Services","Other Licences And Fees","C2203","23/01/2018","47994533 - 2","117.00","Revenue","20017960","INTELLIGENT DATA SYSTEMS (UK) LTD"
"OCC","Direct Services","Other Licences And Fees","C2203","23/01/2018","47994533 - 3","15.00","Revenue","20017960","INTELLIGENT DATA SYSTEMS (UK) LTD"
"OCC","Direct Services","Other Licences And Fees","C2203","23/01/2018","47994533 - 4","25.00","Revenue","20017960","INTELLIGENT DATA SYSTEMS (UK) LTD"
"OCC","Direct Services","General Contracted Services","D3401","23/01/2018","47994534 - 0","750.00","Revenue","20014043","CMS SUPATRAK LTD"
"OCC","Direct Services","Materials","D3021","23/01/2018","47994555 - 1","157.50","Revenue","20003882","SPALDINGS (UK) LTD"
"OCC","Direct Services","Materials","D3021","23/01/2018","47994555 - 2","13.50","Revenue","20003882","SPALDINGS (UK) LTD"
"OCC","Direct Services","Materials","D3021","23/01/2018","47994555 - 3","440.23","Revenue","20003882","SPALDINGS (UK) LTD"
"OCC","Direct Services","Materials","D3021","23/01/2018","47994555 - 4","72.80","Revenue","20003882","SPALDINGS (UK) LTD"
"OCC","Direct Services","Materials","D3021","23/01/2018","47994555 - 5","1.05","Revenue","20003882","SPALDINGS (UK) LTD"
"OCC","Direct Services","Materials","D3021","23/01/2018","47994555 - 6","34.90","Revenue","20003882","SPALDINGS (UK) LTD"
"OCC","Direct Services","Materials","D3021","23/01/2018","47994555 - 7","20.44","Revenue","20003882","SPALDINGS (UK) LTD"
"OCC","Direct Services","Materials","D3021","23/01/2018","47994555 - 8","39.60","Revenue","20003882","SPALDINGS (UK) LTD"
"OCC","Direct Services","Materials","D3021","23/01/2018","47994555 - 9","24.80","Revenue","20003882","SPALDINGS (UK) LTD"
"OCC","Direct Services","Materials","D3021","23/01/2018","47994571 - 0","307.50","Revenue","20008297","VL TEST SYSTEMS LTD"
"OCC","Direct Services","Materials","D3021","23/01/2018","47994571 - 1","565.64","Revenue","20008297","VL TEST SYSTEMS LTD"
"OCC","Direct Services","Main Contractor","Y021","23/01/2018","47994575 - 0","150.00","Capital","20019207","BEACON GROUP (INTERNATIONAL) LTD T/A ADDEX GROUP"
"OCC","Direct Services","Main Contractor","Y021","23/01/2018","47994575 - 1","500.00","Capital","20019207","BEACON GROUP (INTERNATIONAL) LTD T/A ADDEX GROUP"
"OCC","Direct Services","Main Contractor","Y021","23/01/2018","47994576 - 1","15502.60","Capital","20019207","BEACON GROUP (INTERNATIONAL) LTD T/A ADDEX GROUP"
"OCC","Direct Services","Subscriptions","D3703","23/01/2018","47994588 - 0","520.00","Revenue","20008611","CAP MOTOR RESEARCH LTD"
"OCC","Direct Services","Materials","D3021","23/01/2018","47994593 - 1","1027.44","Revenue","20002387","AEBI SCHMIDT UK LTD"
"OCC","Direct Services","Furniture & Equipment Purchase","D3001","23/01/2018","47994595 - 1","217.00","Revenue","20002435","P A TURNEY LTD"
"OCC","Direct Services","Furniture & Equipment Purchase","D3001","23/01/2018","47994595 - 2","581.00","Revenue","20002435","P A TURNEY LTD"
"OCC","Direct Services","Furniture & Equipment Purchase","D3001","23/01/2018","47994595 - 3","85.00","Revenue","20002435","P A TURNEY LTD"
"OCC","Direct Services","Plant Purchase","C2002","23/01/2018","47994595 - 4","16.87","Revenue","20002435","P A TURNEY LTD"
"OCC","Direct Services","Main Contractor","Y021","23/01/2018","47994597 - 1","18995.00","Capital","20008790","HAKO MACHINES LTD"
"OCC","Direct Services","Fuel Purchase (Stock)","C2003","23/01/2018","47994601 - 1","27729.73","Revenue","20011436","PACE FUEL CARE"
"OCC","Direct Services","Materials","D3021","23/01/2018","47994609 - 1","156.00","Revenue","20002168","DENNIS EAGLE LTD"
"OCC","Direct Services","Materials","D3021","23/01/2018","47994609 - 2","140.00","Revenue","20002168","DENNIS EAGLE LTD"
"OCC","Direct Services","Materials","D3021","23/01/2018","47994609 - 3","156.00","Revenue","20002168","DENNIS EAGLE LTD"
"OCC","Direct Services","Materials","D3021","23/01/2018","47994645 - 0","180.00","Revenue","20014223","PROMAX ACCESS LIMITED"
"OCC","Direct Services","Materials","D3021","23/01/2018","47994645 - 1","194.00","Revenue","20014223","PROMAX ACCESS LIMITED"
"OCC","Direct Services","Materials","D3021","23/01/2018","47994645 - 2","40.00","Revenue","20014223","PROMAX ACCESS LIMITED"
"OCC","Direct Services","Materials","D3021","23/01/2018","47994645 - 3","12.50","Revenue","20014223","PROMAX ACCESS LIMITED"
"OCC","Direct Services","Materials","D3021","23/01/2018","47994645 - 4","19.00","Revenue","20014223","PROMAX ACCESS LIMITED"
"OCC","Direct Services","Plant Purchase","C2002","30/01/2018","47994663 - 1","812.00","Revenue","20002435","P A TURNEY LTD"
"OCC","Direct Services","Plant Purchase","C2002","30/01/2018","47994664 - 0","836.00","Revenue","20002435","P A TURNEY LTD"
"OCC","Direct Services","Plant Purchase","C2002","30/01/2018","47994664 - 1","518.00","Revenue","20002435","P A TURNEY LTD"
"OCC","Direct Services","Materials","D3021","30/01/2018","47994666 - 0","1146.43","Revenue","20002168","DENNIS EAGLE LTD"
"OCC","Direct Services","Materials","D3021","30/01/2018","47994668 - 0","611.80","Revenue","20002168","DENNIS EAGLE LTD"
"OCC","Direct Services","Materials","D3021","30/01/2018","47994672 - 0","402.50","Revenue","20003882","SPALDINGS (UK) LTD"
"OCC","Direct Services","Materials","D3021","30/01/2018","47994672 - 1","50.40","Revenue","20003882","SPALDINGS (UK) LTD"
"OCC","Direct Services","Materials","D3021","30/01/2018","47994699 - 1","640.28","Revenue","20002168","DENNIS EAGLE LTD"
"OCC","Direct Services","Materials","D3021","30/01/2018","47994700 - 0","591.80","Revenue","20002168","DENNIS EAGLE LTD"
"OCC","Direct Services","Materials","D3021","30/01/2018","47994734 - 1","68.72","Revenue","20013677","ALLEN FORD"
"OCC","Direct Services","Materials","D3021","30/01/2018","47994734 - 2","116.02","Revenue","20013677","ALLEN FORD"
"OCC","Direct Services","Materials","D3021","30/01/2018","47994734 - 3","194.85","Revenue","20013677","ALLEN FORD"
"OCC","Direct Services","Materials","D3021","30/01/2018","47994734 - 4","316.72","Revenue","20013677","ALLEN FORD"
"OCC","Direct Services","Materials","D3021","30/01/2018","47994734 - 5","60.57","Revenue","20013677","ALLEN FORD"
"OCC","Direct Services","Materials","D3021","30/01/2018","47994734 - 6","93.04","Revenue","20013677","ALLEN FORD"
"OCC","Direct Services","Materials","D3021","30/01/2018","47994734 - 7","148.44","Revenue","20013677","ALLEN FORD"
"OCC","Direct Services","Main Contractor","Y021","30/01/2018","47994737 - 0","5170.00","Capital","20010871","COTSWOLD TRAILERS LTD"
"OCC","Direct Services","Main Contractor","Y021","30/01/2018","47994737 - 1","3820.00","Capital","20010871","COTSWOLD TRAILERS LTD"
"OCC","Direct Services","Main Contractor","Y021","30/01/2018","47994737 - 2","3995.00","Capital","20010871","COTSWOLD TRAILERS LTD"
"OCC","Direct Services","Main Contractor","Y021","30/01/2018","47994737 - 3","390.00","Capital","20010871","COTSWOLD TRAILERS LTD"
"OCC","Direct Services","Other Licences And Fees","C2203","30/01/2018","47994741 - 0","939.60","Revenue","20014043","CMS SUPATRAK LTD"
"OCC","Direct Services","Other Licences And Fees","C2203","30/01/2018","47994744 - 1","1503.36","Revenue","20014043","CMS SUPATRAK LTD"
"OCC","Direct Services","Other Licences And Fees","C2203","30/01/2018","47994745 - 0","6953.04","Revenue","20014043","CMS SUPATRAK LTD"
"OCC","Direct Services","Other Licences And Fees","C2203","30/01/2018","47994746 - 1","2255.04","Revenue","20014043","CMS SUPATRAK LTD"
"OCC","Direct Services","Other Licences And Fees","C2203","30/01/2018","47994747 - 0","751.68","Revenue","20014043","CMS SUPATRAK LTD"
"OCC","Direct Services","Other Licences And Fees","C2203","30/01/2018","47994749 - 0","187.92","Revenue","20014043","CMS SUPATRAK LTD"
"OCC","Direct Services","Other Licences And Fees","C2203","30/01/2018","47994749 - 1","2256.48","Revenue","20014043","CMS SUPATRAK LTD"
"OCC","Direct Services","Other Licences And Fees","C2203","30/01/2018","47994749 - 2","3890.88","Revenue","20014043","CMS SUPATRAK LTD"
"OCC","Direct Services","Other Licences And Fees","C2203","30/01/2018","47994749 - 3","203.76","Revenue","20014043","CMS SUPATRAK LTD"
"OCC","Direct Services","Other Licences And Fees","C2203","30/01/2018","47994750 - 1","563.76","Revenue","20014043","CMS SUPATRAK LTD"
"OCC","Direct Services","Other Licences And Fees","C2203","30/01/2018","47994750 - 2","5641.20","Revenue","20014043","CMS SUPATRAK LTD"
"OCC","Direct Services","Other Licences And Fees","C2203","30/01/2018","47994750 - 3","9727.20","Revenue","20014043","CMS SUPATRAK LTD"
"OCC","Direct Services","Other Licences And Fees","C2203","30/01/2018","47994750 - 4","611.28","Revenue","20014043","CMS SUPATRAK LTD"
"OCC","Direct Services","Other Licences And Fees","C2203","30/01/2018","47994751 - 0","3006.72","Revenue","20014043","CMS SUPATRAK LTD"
"OCC","Direct Services","Other Licences And Fees","C2203","30/01/2018","47994751 - 1","203.58","Revenue","20014043","CMS SUPATRAK LTD"
"OCC","Direct Services","Other Licences And Fees","C2203","30/01/2018","47994752 - 1","3382.56","Revenue","20014043","CMS SUPATRAK LTD"
"OCC","Direct Services","Other Licences And Fees","C2203","30/01/2018","47994752 - 2","133.11","Revenue","20014043","CMS SUPATRAK LTD"
"OCC","Direct Services","Other Licences And Fees","C2203","30/01/2018","47994753 - 0","563.76","Revenue","20014043","CMS SUPATRAK LTD"
"OCC","Direct Services","Other Licences And Fees","C2203","30/01/2018","47994753 - 1","376.08","Revenue","20014043","CMS SUPATRAK LTD"
"OCC","Direct Services","Other Licences And Fees","C2203","30/01/2018","47994753 - 2","1034.22","Revenue","20014043","CMS SUPATRAK LTD"
"OCC","Direct Services","Plant Purchase","C2002","30/01/2018","47994755 - 0","300.00","Revenue","20002435","P A TURNEY LTD"
"OCC","Direct Services","Plant Purchase","C2002","30/01/2018","47994755 - 1","180.00","Revenue","20002435","P A TURNEY LTD"
"OCC","Direct Services","Plant Purchase","C2002","30/01/2018","47994755 - 2","125.00","Revenue","20002435","P A TURNEY LTD"
"OCC","Direct Services","Main Contractor","Y021","30/01/2018","47994756 - 1","4836.00","Capital","20002435","P A TURNEY LTD"
"OCC","Direct Services","Other Licences And Fees","C2203","30/01/2018","47994757 - 0","3006.72","Revenue","20014043","CMS SUPATRAK LTD"
"OCC","Direct Services","Other Licences And Fees","C2203","30/01/2018","47994757 - 1","31.32","Revenue","20014043","CMS SUPATRAK LTD"
"OCC","Direct Services","Other Licences And Fees","C2203","30/01/2018","47994757 - 2","86.13","Revenue","20014043","CMS SUPATRAK LTD"
"OCC","Direct Services","Other Licences And Fees","C2203","30/01/2018","47994757 - 3","78.30","Revenue","20014043","CMS SUPATRAK LTD"
"OCC","Direct Services","Materials","D3021","09/01/2018","60084594 - 0","4448.66","Revenue","20006398","STREET FURNISHING SERVICES"
"OCC","Direct Services","Materials","D3021","09/01/2018","60084595 - 1","978.54","Revenue","20012799","LAFARGE TARMAC TRADING LIMITED"
"OCC","Direct Services","Materials","D3021","09/01/2018","60084607 - 0","775.04","Revenue","20005720","CAPITOL TILE SUPPLIES LTD"
"OCC","Direct Services","Materials","D3021","09/01/2018","60084630 - 1","516.25","Revenue","20002254","GRAFTON MERCHANTING GB LTD"
"OCC","Direct Services","Materials","D3021","09/01/2018","60084636 - 1","428.23","Revenue","20002254","GRAFTON MERCHANTING GB LTD"
"OCC","Direct Services","Direct Services Supplies & Services","D3311","09/01/2018","60084663 - 1","586.20","Revenue","20006342","JEWSON LTD"
"OCC","Direct Services","Materials","D3021","09/01/2018","60084667 - 1","489.85","Revenue","20006342","JEWSON LTD"
"OCC","Direct Services","Materials","D3021","09/01/2018","60084670 - 0","2851.60","Revenue","20006342","JEWSON LTD"
"OCC","Direct Services","Direct Services Supplies & Services","D3311","09/01/2018","60084672 - 0","632.84","Revenue","20006342","JEWSON LTD"
"OCC","Direct Services","Direct Services Supplies & Services","D3311","09/01/2018","60084673 - 1","570.67","Revenue","20006342","JEWSON LTD"
"OCC","Direct Services","Materials","D3021","09/01/2018","60084674 - 0","772.20","Revenue","20006342","JEWSON LTD"
"OCC","Direct Services","Materials","D3021","09/01/2018","60084675 - 1","1158.30","Revenue","20006342","JEWSON LTD"
"OCC","Direct Services","Direct Services Supplies & Services","D3311","09/01/2018","60084676 - 0","567.78","Revenue","20006342","JEWSON LTD"
"OCC","Direct Services","Direct Services Supplies & Services","D3311","09/01/2018","60084677 - 1","652.78","Revenue","20006342","JEWSON LTD"
"OCC","Direct Services","Direct Services Supplies & Services","D3311","09/01/2018","60084678 - 0","796.24","Revenue","20006342","JEWSON LTD"
"OCC","Direct Services","Materials","D3021","09/01/2018","60084680 - 0","1021.47","Revenue","20019236","POWRED HEATING COMPONENTS LTD"
"OCC","Direct Services","Materials","D3021","09/01/2018","60084682 - 0","1075.18","Revenue","20019236","POWRED HEATING COMPONENTS LTD"
"OCC","Direct Services","Materials","D3021","09/01/2018","60084683 - 1","846.60","Revenue","20019236","POWRED HEATING COMPONENTS LTD"
"OCC","Direct Services","Materials","D3021","09/01/2018","60084689 - 1","568.50","Revenue","20015370","TIMBERYTE"
"OCC","Direct Services","Tools","D3023","09/01/2018","60084692 - 0","541.00","Revenue","20002443","UNIVERSAL ACCESS & POWER PLAN"
"OCC","Direct Services","Direct Services Supplies & Services","D3311","09/01/2018","60084706 - 0","990.00","Revenue","20002282","M&J ENGINEERS LTD"
"OCC","Direct Services","Materials","D3021","09/01/2018","60084708 - 0","650.00","Revenue","20019236","POWRED HEATING COMPONENTS LTD"
"OCC","Direct Services","Tipping Charges","D3421","09/01/2018","60084716 - 0","610.00","Revenue","20000263","SHEEHAN HAULAGE & PLANT HIRE LTD"
"OCC","Direct Services","Tipping Charges","D3421","09/01/2018","60084717 - 1","632.00","Revenue","20000263","SHEEHAN HAULAGE & PLANT HIRE LTD"
"OCC","Direct Services","Tipping Charges","D3421","09/01/2018","60084719 - 1","692.00","Revenue","20000263","SHEEHAN HAULAGE & PLANT HIRE LTD"
"OCC","Direct Services","Tipping Charges","D3421","09/01/2018","60084721 - 0","543.70","Revenue","20000263","SHEEHAN HAULAGE & PLANT HIRE LTD"
"OCC","Direct Services","Waste Disposal & Skip Hire","D3420","09/01/2018","60084723 - 0","1143.76","Revenue","20002222","GRUNDON WASTE MANAGEMENT LTD"
"OCC","Direct Services","Direct Services Supplies & Services","D3311","09/01/2018","60084730 - 1","817.98","Revenue","20002335","OXFORD FENCING SUPPLIES"
"OCC","Direct Services","Materials","D3021","09/01/2018","60084736 - 1","4831.20","Revenue","20006342","JEWSON LTD"
"OCC","Direct Services","Materials","D3021","09/01/2018","60084740 - 1","765.15","Revenue","20006342","JEWSON LTD"
"OCC","Direct Services","Direct Services Supplies & Services","D3311","09/01/2018","60084743 - 0","733.24","Revenue","20006342","JEWSON LTD"
"OCC","Direct Services","Direct Services Supplies & Services","D3311","09/01/2018","60084744 - 1","733.24","Revenue","20006342","JEWSON LTD"
"OCC","Direct Services","Direct Services Supplies & Services","D3311","09/01/2018","60084745 - 0","434.02","Revenue","20006342","JEWSON LTD"
"OCC","Direct Services","Direct Services Supplies & Services","D3311","09/01/2018","60084746 - 1","733.24","Revenue","20006342","JEWSON LTD"
"OCC","Direct Services","Direct Services Supplies & Services","D3311","09/01/2018","60084747 - 0","672.03","Revenue","20006342","JEWSON LTD"
"OCC","Direct Services","Direct Services Supplies & Services","D3311","09/01/2018","60084748 - 1","733.24","Revenue","20006342","JEWSON LTD"
"OCC","Direct Services","Direct Services Supplies & Services","D3311","09/01/2018","60084749 - 0","612.55","Revenue","20006342","JEWSON LTD"
"OCC","Direct Services","Direct Services Supplies & Services","D3311","09/01/2018","60084750 - 1","434.00","Revenue","20006342","JEWSON LTD"
"OCC","Direct Services","Direct Services Supplies & Services","D3311","09/01/2018","60084751 - 0","733.24","Revenue","20006342","JEWSON LTD"
"OCC","Direct Services","Direct Services Supplies & Services","D3311","09/01/2018","60084752 - 1","733.24","Revenue","20006342","JEWSON LTD"
"OCC","Direct Services","Direct Services Supplies & Services","D3311","09/01/2018","60084753 - 0","662.52","Revenue","20006342","JEWSON LTD"
"OCC","Direct Services","Direct Services Supplies & Services","D3311","09/01/2018","60084754 - 1","733.24","Revenue","20006342","JEWSON LTD"
"OCC","Direct Services","Materials","D3021","09/01/2018","60084755 - 0","860.18","Revenue","20006342","JEWSON LTD"
"OCC","Direct Services","Materials","D3021","09/01/2018","60084758 - 1","434.05","Revenue","20006342","JEWSON LTD"
"OCC","Direct Services","Materials","D3021","09/01/2018","60084759 - 0","567.00","Revenue","20006342","JEWSON LTD"
"OCC","Direct Services","Materials","D3021","09/01/2018","60084761 - 0","434.05","Revenue","20006342","JEWSON LTD"
"OCC","Direct Services","Direct Services Supplies & Services","D3311","09/01/2018","60084762 - 1","848.42","Revenue","20006342","JEWSON LTD"
"OCC","Direct Services","Direct Services Sub Contractors","B1111","09/01/2018","60084769 - 0","7147.50","Revenue","20018574","ART CONTRACTS LIMITED"
"OCC","Direct Services","Direct Services Sub Contractors","B1111","09/01/2018","60084770 - 1","6662.50","Revenue","20018574","ART CONTRACTS LIMITED"
"OCC","Direct Services","Direct Services Sub Contractors","B1111","09/01/2018","60084771 - 0","7442.50","Revenue","20018574","ART CONTRACTS LIMITED"
"OCC","Direct Services","Direct Services Sub Contractors","B1111","09/01/2018","60084777 - 0","700.00","Revenue","20000210","BARKER & EVANS LTD"
"OCC","Direct Services","Direct Services Sub Contractors","B1111","09/01/2018","60084793 - 0","563.00","Revenue","20014676","KENNINGTON FLOORING LTD"
"OCC","Direct Services","Direct Services Sub Contractors","B1111","09/01/2018","60084797 - 0","7570.00","Revenue","20009825","MAYLARCH ENVIRONMENTAL LTD"
"OCC","Direct Services","Direct Services Sub Contractors","B1111","09/01/2018","60084798 - 1","23215.00","Revenue","20009825","MAYLARCH ENVIRONMENTAL LTD"
"OCC","Direct Services","Miscellaneous Fees","Y173","09/01/2018","60084800 - 1","22935.00","Capital","20013591","PETER BRETT ASSOCIATES LLP"
"OCC","Direct Services","Direct Services Sub Contractors","B1111","09/01/2018","60084801 - 0","47664.72","Revenue","20019075","SCM (WYCOMBE) LTD"
"OCC","Direct Services","Direct Services Sub Contractors","B1111","09/01/2018","60084802 - 1","7057.00","Revenue","20019075","SCM (WYCOMBE) LTD"
"OCC","Direct Services","Direct Services Sub Contractors","B1111","09/01/2018","60084803 - 0","7057.00","Revenue","20019075","SCM (WYCOMBE) LTD"
"OCC","Direct Services","Direct Services Sub Contractors","B1111","09/01/2018","60084804 - 1","7057.00","Revenue","20019075","SCM (WYCOMBE) LTD"
"OCC","Direct Services","Direct Services Sub Contractors","B1111","09/01/2018","60084805 - 0","7057.00","Revenue","20019075","SCM (WYCOMBE) LTD"
"OCC","Direct Services","Direct Services Sub Contractors","B1111","09/01/2018","60084806 - 1","7057.00","Revenue","20019075","SCM (WYCOMBE) LTD"
"OCC","Direct Services","Direct Services Sub Contractors","B1111","09/01/2018","60084807 - 0","7057.00","Revenue","20019075","SCM (WYCOMBE) LTD"
"OCC","Direct Services","Direct Services Sub Contractors","B1111","09/01/2018","60084808 - 1","5246.89","Revenue","20019075","SCM (WYCOMBE) LTD"
"OCC","Direct Services","Tipping Charges","D3421","09/01/2018","60084809 - 0","6315.56","Revenue","20012568","OXFORD RENEWABLE ENERGY LTD T/S AGRIVERT"
"OCC","Direct Services","General Contracted Services","D3401","16/01/2018","60084810 - 1","2920.00","Revenue","20013684","ATKINS LIMITED"
"OCC","Direct Services","Tipping Charges","D3421","09/01/2018","60084811 - 0","14547.82","Revenue","20002077","BIFFA MUNICIPAL LTD"
"OCC","Direct Services","Materials","D3021","09/01/2018","60084816 - 1","800.98","Revenue","20015230","MERKKO ENTERPRISES LIMITED"
"OCC","Direct Services","Materials","D3021","09/01/2018","60084823 - 1","670.00","Revenue","20000263","SHEEHAN HAULAGE & PLANT HIRE LTD"
"OCC","Direct Services","Materials","D3021","09/01/2018","60084824 - 0","606.02","Revenue","20015370","TIMBERYTE"
"OCC","Direct Services","General Contracted Services","D3401","09/01/2018","60084830 - 0","580.00","Revenue","20008671","WALLGATE LTD"
"OCC","Direct Services","Materials","D3021","09/01/2018","60084840 - 0","480.00","Revenue","20006342","JEWSON LTD"
"OCC","Direct Services","Materials","D3021","09/01/2018","60084860 - 1","473.28","Revenue","20008752","BARLOW & SONS (HERMITAGE) LTD"
"OCC","Direct Services","Materials","D3021","16/01/2018","60084866 - 1","622.04","Revenue","20002254","GRAFTON MERCHANTING GB LTD"
"OCC","Direct Services","Materials","D3021","16/01/2018","60084867 - 0","962.00","Revenue","20002254","GRAFTON MERCHANTING GB LTD"
"OCC","Direct Services","Materials","D3021","16/01/2018","60084870 - 1","1604.35","Revenue","20006342","JEWSON LTD"
"OCC","Direct Services","Materials","D3021","16/01/2018","60084872 - 1","1128.28","Revenue","20006342","JEWSON LTD"
"OCC","Direct Services","Materials","D3021","16/01/2018","60084878 - 1","622.40","Revenue","20019236","POWRED HEATING COMPONENTS LTD"
"OCC","Direct Services","Materials","D3021","16/01/2018","60084879 - 0","774.65","Revenue","20019236","POWRED HEATING COMPONENTS LTD"
"OCC","Direct Services","Materials","D3021","16/01/2018","60084880 - 1","2168.92","Revenue","20019236","POWRED HEATING COMPONENTS LTD"
"OCC","Direct Services","Materials","D3021","16/01/2018","60084881 - 0","1733.14","Revenue","20019236","POWRED HEATING COMPONENTS LTD"
"OCC","Direct Services","Direct Services Supplies & Services","D3311","16/01/2018","60084884 - 1","1190.41","Revenue","20002464","WOLSELEY UK LIMITED"
"OCC","Direct Services","Direct Services Supplies & Services","D3311","16/01/2018","60084885 - 0","788.94","Revenue","20002464","WOLSELEY UK LIMITED"
"OCC","Direct Services","Direct Services Supplies & Services","D3311","16/01/2018","60084886 - 1","606.71","Revenue","20002464","WOLSELEY UK LIMITED"
"OCC","Direct Services","Direct Services Supplies & Services","D3311","16/01/2018","60084887 - 0","589.25","Revenue","20002464","WOLSELEY UK LIMITED"
"OCC","Direct Services","Direct Services Supplies & Services","D3311","16/01/2018","60084888 - 1","586.66","Revenue","20002464","WOLSELEY UK LIMITED"
"OCC","Direct Services","Direct Services Supplies & Services","D3311","16/01/2018","60084889 - 0","537.75","Revenue","20002464","WOLSELEY UK LIMITED"
"OCC","Direct Services","Direct Services Supplies & Services","D3311","16/01/2018","60084890 - 1","466.00","Revenue","20002464","WOLSELEY UK LIMITED"
"OCC","Direct Services","Materials","D3021","16/01/2018","60084900 - 1","1857.65","Revenue","20002464","WOLSELEY UK LIMITED"
"OCC","Direct Services","Direct Services Supplies & Services","D3311","16/01/2018","60084901 - 0","604.90","Revenue","20002464","WOLSELEY UK LIMITED"
"OCC","Direct Services","Direct Services Supplies & Services","D3311","16/01/2018","60084902 - 0","551.39","Revenue","20002464","WOLSELEY UK LIMITED"
"OCC","Direct Services","Direct Services Supplies & Services","D3311","16/01/2018","60084907 - 1","604.90","Revenue","20002464","WOLSELEY UK LIMITED"
"OCC","Direct Services","Direct Services Supplies & Services","D3311","16/01/2018","60084909 - 1","604.90","Revenue","20002464","WOLSELEY UK LIMITED"
"OCC","Direct Services","Materials","D3021","16/01/2018","60084912 - 0","1607.20","Revenue","20002464","WOLSELEY UK LIMITED"
"OCC","Direct Services","Direct Services Supplies & Services","D3311","16/01/2018","60084915 - 1","551.39","Revenue","20002464","WOLSELEY UK LIMITED"
"OCC","Direct Services","Direct Services Supplies & Services","D3311","16/01/2018","60084916 - 0","697.90","Revenue","20002464","WOLSELEY UK LIMITED"
"OCC","Direct Services","Direct Services Supplies & Services","D3311","16/01/2018","60084920 - 0","589.25","Revenue","20002464","WOLSELEY UK LIMITED"
"OCC","Direct Services","Direct Services Supplies & Services","D3311","16/01/2018","60084922 - 0","533.15","Revenue","20002464","WOLSELEY UK LIMITED"
"OCC","Direct Services","Direct Services Supplies & Services","D3311","16/01/2018","60084924 - 0","448.26","Revenue","20002464","WOLSELEY UK LIMITED"
"OCC","Direct Services","Direct Services Supplies & Services","D3311","16/01/2018","60084926 - 0","642.76","Revenue","20002464","WOLSELEY UK LIMITED"
"OCC","Direct Services","Direct Services Supplies & Services","D3311","16/01/2018","60084927 - 1","604.90","Revenue","20002464","WOLSELEY UK LIMITED"
"OCC","Direct Services","Direct Services Supplies & Services","D3311","16/01/2018","60084928 - 0","734.94","Revenue","20002464","WOLSELEY UK LIMITED"
"OCC","Direct Services","Materials","D3021","16/01/2018","60084932 - 0","606.00","Revenue","20002464","WOLSELEY UK LIMITED"
"OCC","Direct Services","Materials","D3021","16/01/2018","60084941 - 0","2590.00","Revenue","20012999","BAILEYS OF NORFOLK LTD"
"OCC","Direct Services","Materials","D3021","16/01/2018","60084952 - 1","5069.52","Revenue","20012799","LAFARGE TARMAC TRADING LIMITED"
"OCC","Direct Services","Advertising & Publicity","D3802","16/01/2018","60084953 - 0","2166.90","Revenue","20011917","PASSION   RADIO OXFORD LTD"
"OCC","Direct Services","Temporary Bureau Staffing","A0108","16/01/2018","60084955 - 0","10979.41","Revenue","20012482","OXFORD & DISTRICT BUILDING SERVICES LIMITED"
"OCC","Direct Services","Temporary Bureau Staffing","A0108","16/01/2018","60084956 - 1","12868.79","Revenue","20012482","OXFORD & DISTRICT BUILDING SERVICES LIMITED"
"OCC","Direct Services","Materials","D3021","16/01/2018","60084957 - 0","42.68","Revenue","20014733","PALMSTEAD NURSERIES LIMITED"
"OCC","Direct Services","Materials","D3021","16/01/2018","60084957 - 1","756.70","Revenue","20014733","PALMSTEAD NURSERIES LIMITED"
"OCC","Direct Services","Tipping Charges","D3421","16/01/2018","60084960 - 1","75727.54","Revenue","20007990","VIRIDOR WASTE MANAGEMENT"
"OCC","Direct Services","Engineering Services Supplies and Services","D3319","16/01/2018","60084961 - 0","4972.79","Revenue","20012482","OXFORD & DISTRICT BUILDING SERVICES LIMITED"
"OCC","Direct Services","Direct Services Sub Contractors","B1111","16/01/2018","60084966 - 1","7150.00","Revenue","20018574","ART CONTRACTS LIMITED"
"OCC","Direct Services","Direct Services Sub Contractors","B1111","16/01/2018","60084968 - 1","531.94","Revenue","20000210","BARKER & EVANS LTD"
"OCC","Direct Services","Direct Services Sub Contractors","B1111","16/01/2018","60084983 - 0","570.00","Revenue","20018627","DRAIN GAIN LTD"
"OCC","Direct Services","Direct Services Sub Contractors","B1111","16/01/2018","60084989 - 0","550.00","Revenue","20019316","TRUTH LTD T/A KJC FELT ROOFING"
"OCC","Direct Services","Direct Services Sub Contractors","B1111","16/01/2018","60084994 - 1","484.00","Revenue","20014676","KENNINGTON FLOORING LTD"
"OCC","Direct Services","Direct Services Sub Contractors","B1111","16/01/2018","60085000 - 2","731.00","Revenue","20014676","KENNINGTON FLOORING LTD"
"OCC","Direct Services","Direct Services Sub Contractors","B1111","16/01/2018","60085002 - 1","612.50","Revenue","20014676","KENNINGTON FLOORING LTD"
"OCC","Direct Services","Direct Services Sub Contractors","B1111","16/01/2018","60085006 - 1","5600.00","Revenue","20019100","PROJECT MANAGEMENT SERVICES OXFORD"
"OCC","Direct Services","Direct Services Sub Contractors","B1111","16/01/2018","60085007 - 0","5600.00","Revenue","20019100","PROJECT MANAGEMENT SERVICES OXFORD"
"OCC","Direct Services","Direct Services Sub Contractors","B1111","16/01/2018","60085008 - 1","500.00","Revenue","20011787","WESTLAKE ASPHALT COMPANY LTD"
"OCC","Direct Services","Direct Services Sub Contractors","B1111","16/01/2018","60085009 - 0","9000.00","Revenue","20013974","TOM GHEE CONSTRUCTION"
"OCC","Direct Services","Advertising & Publicity","D3802","16/01/2018","60085013 - 0","501.52","Revenue","20007856","NEWSQUEST MIDLANDS, WALES & SOUTH WEST"
"OCC","Direct Services","Direct Services Supplies & Services","D3311","16/01/2018","60085016 - 1","701.34","Revenue","20002254","GRAFTON MERCHANTING GB LTD"
"OCC","Direct Services","Materials","D3021","16/01/2018","60085023 - 1","480.00","Revenue","20006342","JEWSON LTD"
"OCC","Direct Services","Waste Disposal & Skip Hire","D3420","16/01/2018","60085025 - 1","1462.68","Revenue","20002222","GRUNDON WASTE MANAGEMENT LTD"
"OCC","Direct Services","Direct Services Supplies & Services","D3311","16/01/2018","60085031 - 1","652.96","Revenue","20006342","JEWSON LTD"
"OCC","Direct Services","Materials","D3021","16/01/2018","60085032 - 0","1576.90","Revenue","20006342","JEWSON LTD"
"OCC","Direct Services","Tools","D3023","16/01/2018","60085042 - 0","559.00","Revenue","20002443","UNIVERSAL ACCESS & POWER PLAN"
"OCC","Direct Services","Tools","D3023","16/01/2018","60085043 - 1","1948.50","Revenue","20002443","UNIVERSAL ACCESS & POWER PLAN"
"OCC","Direct Services","Consultants Fees","D3411","16/01/2018","60085044 - 0","699.00","Revenue","20017339","ARBTECH CONSULTING LTD"
"OCC","Direct Services","Consultants Fees","D3411","16/01/2018","60085045 - 1","799.00","Revenue","20017339","ARBTECH CONSULTING LTD"
"OCC","Direct Services","Materials","D3021","16/01/2018","60085049 - 1","1383.45","Revenue","20012799","LAFARGE TARMAC TRADING LIMITED"
"OCC","Direct Services","Materials","D3021","16/01/2018","60085051 - 1","423.72","Revenue","20006027","ACE MINIMIX"
"OCC","Direct Services","Materials","D3021","16/01/2018","60085053 - 2","633.08","Revenue","20012799","LAFARGE TARMAC TRADING LIMITED"
"OCC","Direct Services","Materials","D3021","23/01/2018","60085077 - 1","644.46","Revenue","20006342","JEWSON LTD"
"OCC","Direct Services","Materials","D3021","23/01/2018","60085084 - 0","1245.84","Revenue","20006342","JEWSON LTD"
"OCC","Direct Services","Direct Services Supplies & Services","D3311","23/01/2018","60085090 - 0","945.00","Revenue","20002282","M&J ENGINEERS LTD"
"OCC","Direct Services","Materials","D3021","23/01/2018","60085091 - 1","1148.41","Revenue","20019236","POWRED HEATING COMPONENTS LTD"
"OCC","Direct Services","Materials","D3021","23/01/2018","60085093 - 1","3200.00","Revenue","20019236","POWRED HEATING COMPONENTS LTD"
"OCC","Direct Services","Direct Services Supplies & Services","D3311","23/01/2018","60085095 - 1","782.04","Revenue","20015037","R & M ELECTRICAL GROUP LTD"
"OCC","Direct Services","Direct Services Supplies & Services","D3311","23/01/2018","60085102 - 0","425.90","Revenue","20015370","TIMBERYTE"
"OCC","Direct Services","Direct Services Supplies & Services","D3311","23/01/2018","60085105 - 1","467.47","Revenue","20003233","AKW MEDICARE LIMITED"
"OCC","Direct Services","Direct Services Supplies & Services","D3311","23/01/2018","60085108 - 0","543.98","Revenue","20003233","AKW MEDICARE LIMITED"
"OCC","Direct Services","Materials","D3021","23/01/2018","60085109 - 1","532.80","Revenue","20008752","BARLOW & SONS (HERMITAGE) LTD"
"OCC","Direct Services","Materials","D3021","23/01/2018","60085110 - 0","1090.00","Revenue","20008752","BARLOW & SONS (HERMITAGE) LTD"
"OCC","Direct Services","Materials","D3021","23/01/2018","60085113 - 1","958.80","Revenue","20002299","C BREWER & SONS LTD"
"OCC","Direct Services","Materials","D3021","23/01/2018","60085115 - 1","585.70","Revenue","20002299","C BREWER & SONS LTD"
"OCC","Direct Services","Materials","D3021","23/01/2018","60085121 - 1","772.00","Revenue","20007946","ED GLASS LIMITED"
"OCC","Direct Services","Materials","D3021","23/01/2018","60085137 - 1","3699.79","Revenue","20002254","GRAFTON MERCHANTING GB LTD"
"OCC","Direct Services","Direct Services Supplies & Services","D3311","23/01/2018","60085140 - 0","854.82","Revenue","20002254","GRAFTON MERCHANTING GB LTD"
"OCC","Direct Services","Materials","D3021","23/01/2018","60085147 - 1","1024.70","Revenue","20002254","GRAFTON MERCHANTING GB LTD"
"OCC","Direct Services","Direct Services Supplies & Services","D3311","23/01/2018","60085148 - 0","487.37","Revenue","20002254","GRAFTON MERCHANTING GB LTD"
"OCC","Direct Services","Direct Services Supplies & Services","D3311","23/01/2018","60085151 - 1","648.00","Revenue","20002254","GRAFTON MERCHANTING GB LTD"
"OCC","Direct Services","Materials","D3021","23/01/2018","60085157 - 1","2568.66","Revenue","20002254","GRAFTON MERCHANTING GB LTD"
"OCC","Direct Services","Materials","D3021","23/01/2018","60085158 - 0","1465.70","Revenue","20002254","GRAFTON MERCHANTING GB LTD"
"OCC","Direct Services","Direct Services Supplies & Services","D3311","23/01/2018","60085161 - 1","638.90","Revenue","20006342","JEWSON LTD"
"OCC","Direct Services","Materials","D3021","23/01/2018","60085164 - 0","551.73","Revenue","20006342","JEWSON LTD"
"OCC","Direct Services","Materials","D3021","23/01/2018","60085167 - 1","459.10","Revenue","20006342","JEWSON LTD"
"OCC","Direct Services","Direct Services Supplies & Services","D3311","23/01/2018","60085169 - 1","724.85","Revenue","20006342","JEWSON LTD"
"OCC","Direct Services","Direct Services Supplies & Services","D3311","23/01/2018","60085170 - 0","645.03","Revenue","20006342","JEWSON LTD"
"OCC","Direct Services","Waste Disposal & Skip Hire","D3420","23/01/2018","60085173 - 1","773.10","Revenue","20002279","M & M SKIP HIRE LTD"
"OCC","Direct Services","Materials","D3021","23/01/2018","60085179 - 1","1180.80","Revenue","20003233","AKW MEDICARE LIMITED"
"OCC","Direct Services","Materials","D3021","23/01/2018","60085182 - 0","773.98","Revenue","20003233","AKW MEDICARE LIMITED"
"OCC","Direct Services","Direct Services Supplies & Services","D3311","23/01/2018","60085185 - 1","964.18","Revenue","20000278","B & M ENGINEERS LIMITED"
"OCC","Direct Services","Materials","D3021","23/01/2018","60085192 - 0","3679.26","Revenue","20002254","GRAFTON MERCHANTING GB LTD"
"OCC","Direct Services","Materials","D3021","23/01/2018","60085193 - 1","4014.37","Revenue","20002254","GRAFTON MERCHANTING GB LTD"
"OCC","Direct Services","Materials","D3021","23/01/2018","60085200 - 0","456.80","Revenue","20006342","JEWSON LTD"
"OCC","Direct Services","Materials","D3021","23/01/2018","60085208 - 0","1308.96","Revenue","20019236","POWRED HEATING COMPONENTS LTD"
"OCC","Direct Services","Direct Services Supplies & Services","D3311","23/01/2018","60085210 - 0","704.71","Revenue","20002464","WOLSELEY UK LIMITED"
"OCC","Direct Services","Materials","D3021","23/01/2018","60085224 - 0","568.50","Revenue","20015370","TIMBERYTE"
"OCC","Direct Services","Direct Services Supplies & Services","D3311","23/01/2018","60085226 - 1","520.00","Revenue","20015370","TIMBERYTE"
"OCC","Direct Services","Direct Services Supplies & Services","D3311","23/01/2018","60085227 - 0","780.00","Revenue","20015370","TIMBERYTE"
"OCC","Direct Services","Materials","D3021","23/01/2018","60085234 - 1","702.00","Revenue","20015370","TIMBERYTE"
"OCC","Direct Services","Tools","D3023","23/01/2018","60085236 - 1","2219.00","Revenue","20002443","UNIVERSAL ACCESS & POWER PLAN"
"OCC","Direct Services","Tools","D3023","23/01/2018","60085245 - 1","629.00","Revenue","20002443","UNIVERSAL ACCESS & POWER PLAN"
"OCC","Direct Services","Tools","D3023","23/01/2018","60085247 - 1","584.00","Revenue","20002443","UNIVERSAL ACCESS & POWER PLAN"
"OCC","Direct Services","Direct Services Supplies & Services","D3311","23/01/2018","60085253 - 1","947.15","Revenue","20002183","EYRE & ELLISTON LTD"
"OCC","Direct Services","Waste Disposal & Skip Hire","D3420","23/01/2018","60085256 - 0","460.00","Revenue","20002279","M & M SKIP HIRE LTD"
"OCC","Direct Services","Materials","D3021","23/01/2018","60085258 - 0","1014.92","Revenue","20019236","POWRED HEATING COMPONENTS LTD"
"OCC","Direct Services","Materials","D3021","23/01/2018","60085263 - 1","891.72","Revenue","20019236","POWRED HEATING COMPONENTS LTD"
"OCC","Direct Services","Direct Services Supplies & Services","D3311","23/01/2018","60085265 - 1","736.29","Revenue","20002464","WOLSELEY UK LIMITED"
"OCC","Direct Services","Direct Services Supplies & Services","D3311","23/01/2018","60085266 - 0","596.61","Revenue","20002464","WOLSELEY UK LIMITED"
"OCC","Direct Services","Direct Services Supplies & Services","D3311","23/01/2018","60085267 - 1","658.16","Revenue","20002464","WOLSELEY UK LIMITED"
"OCC","Direct Services","Direct Services Supplies & Services","D3311","23/01/2018","60085268 - 0","551.39","Revenue","20002464","WOLSELEY UK LIMITED"
"OCC","Direct Services","Direct Services Supplies & Services","D3311","23/01/2018","60085269 - 1","604.90","Revenue","20002464","WOLSELEY UK LIMITED"
"OCC","Direct Services","Direct Services Supplies & Services","D3311","23/01/2018","60085271 - 1","620.91","Revenue","20002464","WOLSELEY UK LIMITED"
"OCC","Direct Services","Direct Services Supplies & Services","D3311","23/01/2018","60085273 - 1","704.71","Revenue","20002464","WOLSELEY UK LIMITED"
"OCC","Direct Services","Direct Services Supplies & Services","D3311","23/01/2018","60085277 - 1","604.90","Revenue","20002464","WOLSELEY UK LIMITED"
"OCC","Direct Services","Direct Services Supplies & Services","D3311","23/01/2018","60085279 - 1","503.86","Revenue","20002464","WOLSELEY UK LIMITED"
"OCC","Direct Services","Direct Services Supplies & Services","D3311","23/01/2018","60085280 - 0","1050.31","Revenue","20002464","WOLSELEY UK LIMITED"
"OCC","Direct Services","Direct Services Supplies & Services","D3311","23/01/2018","60085281 - 1","1119.64","Revenue","20002464","WOLSELEY UK LIMITED"
"OCC","Direct Services","Direct Services Supplies & Services","D3311","23/01/2018","60085282 - 0","453.55","Revenue","20002464","WOLSELEY UK LIMITED"
"OCC","Direct Services","Direct Services Supplies & Services","D3311","23/01/2018","60085283 - 1","1007.59","Revenue","20002464","WOLSELEY UK LIMITED"
"OCC","Direct Services","Direct Services Supplies & Services","D3311","23/01/2018","60085284 - 0","1085.16","Revenue","20002464","WOLSELEY UK LIMITED"
"OCC","Direct Services","Materials","D3021","23/01/2018","60085287 - 1","605.66","Revenue","20002464","WOLSELEY UK LIMITED"
"OCC","Direct Services","Direct Services Supplies & Services","D3311","23/01/2018","60085291 - 1","979.10","Revenue","20002464","WOLSELEY UK LIMITED"
"OCC","Direct Services","Materials","D3021","23/01/2018","60085293 - 1","1278.00","Revenue","20015058","CLEAR CHANNEL UK LTD"
"OCC","Direct Services","Materials","D3021","23/01/2018","60085294 - 0","1368.00","Revenue","20015058","CLEAR CHANNEL UK LTD"
"OCC","Direct Services","Materials","D3021","23/01/2018","60085295 - 1","1440.00","Revenue","20015058","CLEAR CHANNEL UK LTD"
"OCC","Direct Services","Materials","D3021","23/01/2018","60085296 - 0","1278.00","Revenue","20015058","CLEAR CHANNEL UK LTD"
"OCC","Direct Services","Materials","D3021","23/01/2018","60085297 - 1","3382.84","Revenue","20002690","COMPASS MINERALS UK LTD"
"OCC","Direct Services","Materials","D3021","23/01/2018","60085298 - 0","3416.25","Revenue","20002690","COMPASS MINERALS UK LTD"
"OCC","Direct Services","Materials","D3021","23/01/2018","60085299 - 1","4556.85","Revenue","20002690","COMPASS MINERALS UK LTD"
"OCC","Direct Services","Materials","D3021","23/01/2018","60085300 - 0","2269.28","Revenue","20002690","COMPASS MINERALS UK LTD"
"OCC","Direct Services","Street Furniture","B1014","23/01/2018","60085304 - 0","431.70","Revenue","20009260","GLASDON UK LTD"
"OCC","Direct Services","Materials","D3021","23/01/2018","60085305 - 1","977.41","Revenue","20002005","HANSON AGGREGATES"
"OCC","Direct Services","Materials","D3021","23/01/2018","60085312 - 0","635.58","Revenue","20006027","ACE MINIMIX"
"OCC","Direct Services","Materials","D3021","23/01/2018","60085313 - 1","529.65","Revenue","20006027","ACE MINIMIX"
"OCC","Direct Services","Materials","D3021","23/01/2018","60085315 - 1","1449.33","Revenue","20012799","LAFARGE TARMAC TRADING LIMITED"
"OCC","Direct Services","Materials","D3021","23/01/2018","60085316 - 0","824.29","Revenue","20012799","LAFARGE TARMAC TRADING LIMITED"
"OCC","Direct Services","Materials","D3021","23/01/2018","60085318 - 0","800.19","Revenue","20012799","LAFARGE TARMAC TRADING LIMITED"
"OCC","Direct Services","Materials","D3021","23/01/2018","60085319 - 1","1544.13","Revenue","20012799","LAFARGE TARMAC TRADING LIMITED"
"OCC","Direct Services","Materials","D3021","23/01/2018","60085321 - 1","898.20","Revenue","20012799","LAFARGE TARMAC TRADING LIMITED"
"OCC","Direct Services","Materials","D3021","23/01/2018","60085323 - 1","1536.10","Revenue","20012799","LAFARGE TARMAC TRADING LIMITED"
"OCC","Direct Services","Sign Shop Materials","D3018","23/01/2018","60085326 - 0","846.84","Revenue","20011554","MEON LTD"
"OCC","Direct Services","Materials","D3021","23/01/2018","60085328 - 0","561.60","Revenue","20015230","MERKKO ENTERPRISES LIMITED"
"OCC","Direct Services","Engineering Services Supplies and Services","D3319","23/01/2018","60085331 - 1","938.00","Revenue","20012482","OXFORD & DISTRICT BUILDING SERVICES LIMITED"
"OCC","Direct Services","Engineering Services Supplies and Services","D3319","23/01/2018","60085332 - 0","576.68","Revenue","20012482","OXFORD & DISTRICT BUILDING SERVICES LIMITED"
"OCC","Direct Services","Materials","D3021","23/01/2018","60085333 - 1","49523.15","Revenue","20012482","OXFORD & DISTRICT BUILDING SERVICES LIMITED"
"OCC","Direct Services","Engineering Services Supplies and Services","D3319","23/01/2018","60085334 - 0","4832.21","Revenue","20012482","OXFORD & DISTRICT BUILDING SERVICES LIMITED"
"OCC","Direct Services","Materials","D3021","23/01/2018","60085335 - 1","2451.80","Revenue","20012482","OXFORD & DISTRICT BUILDING SERVICES LIMITED"
"OCC","Direct Services","Materials","D3021","23/01/2018","60085337 - 1","16861.40","Revenue","20012482","OXFORD & DISTRICT BUILDING SERVICES LIMITED"
"OCC","Direct Services","Materials","D3021","23/01/2018","60085338 - 0","24878.00","Revenue","20012482","OXFORD & DISTRICT BUILDING SERVICES LIMITED"
"OCC","Direct Services","Temporary Bureau Staffing","A0108","23/01/2018","60085339 - 1","4946.50","Revenue","20012482","OXFORD & DISTRICT BUILDING SERVICES LIMITED"
"OCC","Direct Services","Materials","D3021","23/01/2018","60085340 - 0","34976.90","Revenue","20012482","OXFORD & DISTRICT BUILDING SERVICES LIMITED"
"OCC","Direct Services","Consultants Fees","D3411","23/01/2018","60085341 - 1","5675.00","Revenue","20013591","PETER BRETT ASSOCIATES LLP"
"OCC","Direct Services","Waste Disposal & Skip Hire","D3420","23/01/2018","60085345 - 1","816.06","Revenue","20000263","SHEEHAN HAULAGE & PLANT HIRE LTD"
"OCC","Direct Services","CAT A Waste","D3619","23/01/2018","60085346 - 0","798.51","Revenue","20000263","SHEEHAN HAULAGE & PLANT HIRE LTD"
"OCC","Direct Services","Advertising & Publicity","D3802","23/01/2018","60085348 - 0","1125.00","Revenue","20018976","SILK GROUP LTD"
"OCC","Direct Services","Materials","D3021","23/01/2018","60085349 - 1","2300.00","Revenue","20006398","STREET FURNISHING SERVICES"
"OCC","Direct Services","CAT A Waste","D3619","23/01/2018","60085359 - 1","2023.06","Revenue","20000263","SHEEHAN HAULAGE & PLANT HIRE LTD"
"OCC","Direct Services","Materials","D3021","23/01/2018","60085360 - 0","1143.79","Revenue","20002690","COMPASS MINERALS UK LTD"
"OCC","Direct Services","Direct Services Sub Contractors","B1111","23/01/2018","60085361 - 1","633.60","Revenue","20000441","1ST CHOICE SCAFFOLDING (OXFORD) LTD"
"OCC","Direct Services","Direct Services Sub Contractors","B1111","23/01/2018","60085363 - 1","422.40","Revenue","20000441","1ST CHOICE SCAFFOLDING (OXFORD) LTD"
"OCC","Direct Services","Direct Services Sub Contractors","B1111","23/01/2018","60085367 - 1","422.40","Revenue","20000441","1ST CHOICE SCAFFOLDING (OXFORD) LTD"
"OCC","Direct Services","Direct Services Sub Contractors","B1111","23/01/2018","60085369 - 1","422.40","Revenue","20000441","1ST CHOICE SCAFFOLDING (OXFORD) LTD"
"OCC","Direct Services","Direct Services Sub Contractors","B1111","23/01/2018","60085371 - 1","528.00","Revenue","20000441","1ST CHOICE SCAFFOLDING (OXFORD) LTD"
"OCC","Direct Services","Direct Services Sub Contractors","B1111","23/01/2018","60085373 - 1","422.40","Revenue","20000441","1ST CHOICE SCAFFOLDING (OXFORD) LTD"
"OCC","Direct Services","Direct Services Sub Contractors","B1111","23/01/2018","60085375 - 1","492.80","Revenue","20000441","1ST CHOICE SCAFFOLDING (OXFORD) LTD"
"OCC","Direct Services","Direct Services Sub Contractors","B1111","23/01/2018","60085377 - 1","480.00","Revenue","20000441","1ST CHOICE SCAFFOLDING (OXFORD) LTD"
"OCC","Direct Services","Direct Services Sub Contractors","B1111","23/01/2018","60085379 - 1","680.00","Revenue","20000441","1ST CHOICE SCAFFOLDING (OXFORD) LTD"
"OCC","Direct Services","Direct Services Sub Contractors","B1111","23/01/2018","60085385 - 1","590.00","Revenue","20016403","CLEANSAFE SERVICES (UK) LTD"
"OCC","Direct Services","Direct Services Sub Contractors","B1111","23/01/2018","60085387 - 1","9582.00","Revenue","20019667","DUCTCLEAN (UK) LTD"
"OCC","Direct Services","Direct Services Sub Contractors","B1111","23/01/2018","60085390 - 0","285.00","Revenue","20018627","DRAIN GAIN LTD"
"OCC","Direct Services","Direct Services Sub Contractors","B1111","23/01/2018","60085390 - 1","535.00","Revenue","20018627","DRAIN GAIN LTD"
"OCC","Direct Services","Direct Services Sub Contractors","B1111","23/01/2018","60085404 - 0","1058.26","Revenue","20018590","FURLONG AND HIGGS LTD"
"OCC","Direct Services","Reactive Maintenance & Minor Repairs","B1101","23/01/2018","60085421 - 1","565.00","Revenue","20002464","WOLSELEY UK LIMITED"
"OCC","Direct Services","Direct Services Supplies & Services","D3311","23/01/2018","60085428 - 0","696.55","Revenue","20002464","WOLSELEY UK LIMITED"
"OCC","Direct Services","Direct Services Supplies & Services","D3311","23/01/2018","60085429 - 1","642.76","Revenue","20002464","WOLSELEY UK LIMITED"
"OCC","Direct Services","Direct Services Sub Contractors","B1111","23/01/2018","60085430 - 0","1855.00","Revenue","20019481","JESSOP & COOK ARCHITECTS LTD"
"OCC","Direct Services","Services - General Fees","K9401","23/01/2018","60085441 - 1","876.00","Revenue","20013173","MACCABEE PETS HOTEL"
"OCC","Direct Services","Direct Services Supplies & Services","D3311","23/01/2018","60085442 - 0","604.90","Revenue","20002464","WOLSELEY UK LIMITED"
"OCC","Direct Services","Services - General Fees","K9401","23/01/2018","60085443 - 1","582.00","Revenue","20013173","MACCABEE PETS HOTEL"
"OCC","Direct Services","Direct Services Supplies & Services","D3311","23/01/2018","60085447 - 1","606.71","Revenue","20002464","WOLSELEY UK LIMITED"
"OCC","Direct Services","Materials","D3021","23/01/2018","60085455 - 1","1353.40","Revenue","20002464","WOLSELEY UK LIMITED"
"OCC","Direct Services","Direct Services Sub Contractors","B1111","23/01/2018","60085460 - 0","727.39","Revenue","20002513","MARCUS COPELIN"
"OCC","Direct Services","Direct Services Sub Contractors","B1111","23/01/2018","60085464 - 0","3300.00","Revenue","20013974","TOM GHEE CONSTRUCTION"
"OCC","Direct Services","Direct Services Sub Contractors","B1111","23/01/2018","60085468 - 0","488.84","Revenue","20008285","VPS, THE VACANT PROPERTY SPECIALIST"
"OCC","Direct Services","Materials","D3021","30/01/2018","60085490 - 1","1260.00","Revenue","20017554","BOURNE AMENITY LTD"
"OCC","Direct Services","Direct Services Supplies & Services","D3311","30/01/2018","60085494 - 1","451.00","Revenue","20002254","GRAFTON MERCHANTING GB LTD"
"OCC","Direct Services","Materials","D3021","30/01/2018","60085496 - 1","911.01","Revenue","20002254","GRAFTON MERCHANTING GB LTD"
"OCC","Direct Services","Materials","D3021","30/01/2018","60085497 - 0","478.05","Revenue","20002254","GRAFTON MERCHANTING GB LTD"
"OCC","Direct Services","Materials","D3021","30/01/2018","60085499 - 1","4630.03","Revenue","20002254","GRAFTON MERCHANTING GB LTD"
"OCC","Direct Services","Materials","D3021","30/01/2018","60085512 - 1","666.44","Revenue","20002254","GRAFTON MERCHANTING GB LTD"
"OCC","Direct Services","Materials","D3021","30/01/2018","60085516 - 1","418.50","Revenue","20002254","GRAFTON MERCHANTING GB LTD"
"OCC","Direct Services","Materials","D3021","30/01/2018","60085518 - 1","1777.58","Revenue","20002254","GRAFTON MERCHANTING GB LTD"
"OCC","Direct Services","Materials","D3021","30/01/2018","60085520 - 1","1577.65","Revenue","20002254","GRAFTON MERCHANTING GB LTD"
"OCC","Direct Services","Materials","D3021","30/01/2018","60085525 - 0","685.80","Revenue","20006342","JEWSON LTD"
"OCC","Direct Services","Direct Services Supplies & Services","D3311","30/01/2018","60085532 - 1","1397.06","Revenue","20006342","JEWSON LTD"
"OCC","Direct Services","Direct Services Supplies & Services","D3311","30/01/2018","60085533 - 0","467.56","Revenue","20006342","JEWSON LTD"
"OCC","Direct Services","Direct Services Supplies & Services","D3311","30/01/2018","60085534 - 1","467.56","Revenue","20006342","JEWSON LTD"
"OCC","Direct Services","Materials","D3021","30/01/2018","60085535 - 0","3467.70","Revenue","20006342","JEWSON LTD"
"OCC","Direct Services","Materials","D3021","30/01/2018","60085544 - 0","1576.90","Revenue","20006342","JEWSON LTD"
"OCC","Direct Services","Materials","D3021","30/01/2018","60085545 - 0","434.05","Revenue","20006342","JEWSON LTD"
"OCC","Direct Services","Materials","D3021","30/01/2018","60085546 - 1","1367.10","Revenue","20006342","JEWSON LTD"
"OCC","Direct Services","Direct Services Supplies & Services","D3311","30/01/2018","60085547 - 0","707.58","Revenue","20006342","JEWSON LTD"
"OCC","Direct Services","Materials","D3021","30/01/2018","60085548 - 1","2664.31","Revenue","20006342","JEWSON LTD"
"OCC","Direct Services","Materials","D3021","30/01/2018","60085549 - 0","682.14","Revenue","20006342","JEWSON LTD"
"OCC","Direct Services","Direct Services Supplies & Services","D3311","30/01/2018","60085554 - 1","686.19","Revenue","20006342","JEWSON LTD"
"OCC","Direct Services","Direct Services Supplies & Services","D3311","30/01/2018","60085555 - 0","618.94","Revenue","20006342","JEWSON LTD"
"OCC","Direct Services","Direct Services Supplies & Services","D3311","30/01/2018","60085556 - 1","601.02","Revenue","20006342","JEWSON LTD"
"OCC","Direct Services","Direct Services Supplies & Services","D3311","30/01/2018","60085557 - 0","688.70","Revenue","20006342","JEWSON LTD"
"OCC","Direct Services","Direct Services Supplies & Services","D3311","30/01/2018","60085561 - 0","561.86","Revenue","20006342","JEWSON LTD"
"OCC","Direct Services","Direct Services Supplies & Services","D3311","30/01/2018","60085565 - 0","733.99","Revenue","20002464","WOLSELEY UK LIMITED"
"OCC","Direct Services","Waste Disposal & Skip Hire","D3420","30/01/2018","60085567 - 0","460.00","Revenue","20002279","M & M SKIP HIRE LTD"
"OCC","Direct Services","Materials","D3021","30/01/2018","60085581 - 0","642.50","Revenue","20015370","TIMBERYTE"
"OCC","Direct Services","Direct Services Supplies & Services","D3311","30/01/2018","60085589 - 0","705.22","Revenue","20002254","GRAFTON MERCHANTING GB LTD"
"OCC","Direct Services","Direct Services Supplies & Services","D3311","30/01/2018","60085590 - 1","705.22","Revenue","20002254","GRAFTON MERCHANTING GB LTD"
"OCC","Direct Services","Direct Services Supplies & Services","D3311","30/01/2018","60085591 - 0","705.22","Revenue","20002254","GRAFTON MERCHANTING GB LTD"
"OCC","Direct Services","Materials","D3021","30/01/2018","60085594 - 1","662.14","Revenue","20002254","GRAFTON MERCHANTING GB LTD"
"OCC","Direct Services","Materials","D3021","30/01/2018","60085595 - 0","1100.52","Revenue","20002254","GRAFTON MERCHANTING GB LTD"
"OCC","Direct Services","Direct Services Supplies & Services","D3311","30/01/2018","60085610 - 1","1888.97","Revenue","20016258","GRUNDON SAND AND GRAVEL LTD"
"OCC","Direct Services","Materials","D3021","30/01/2018","60085616 - 1","491.50","Revenue","20016471","TUDOR ENVIRONMENTAL"
"OCC","Direct Services","Direct Services Supplies & Services","D3311","30/01/2018","60085618 - 1","668.61","Revenue","20002464","WOLSELEY UK LIMITED"
"OCC","Direct Services","Materials","D3021","30/01/2018","60085623 - 0","2002.80","Revenue","20002464","WOLSELEY UK LIMITED"
"OCC","Direct Services","Materials","D3021","30/01/2018","60085634 - 1","1105.25","Revenue","20002464","WOLSELEY UK LIMITED"
"OCC","Direct Services","Category 'B' Stores","D3022","30/01/2018","60085659 - 1","720.75","Revenue","20006342","JEWSON LTD"
"OCC","Direct Services","Materials","D3021","30/01/2018","60085660 - 0","715.77","Revenue","20006342","JEWSON LTD"
"OCC","Direct Services","Direct Services Supplies & Services","D3311","30/01/2018","60085664 - 0","604.90","Revenue","20002464","WOLSELEY UK LIMITED"
"OCC","Direct Services","Direct Services Supplies & Services","D3311","30/01/2018","60085666 - 0","614.24","Revenue","20002464","WOLSELEY UK LIMITED"
"OCC","Direct Services","Direct Services Supplies & Services","D3311","30/01/2018","60085667 - 1","635.33","Revenue","20002464","WOLSELEY UK LIMITED"
"OCC","Direct Services","Materials","D3021","30/01/2018","60085669 - 1","1403.08","Revenue","20002464","WOLSELEY UK LIMITED"
"OCC","Direct Services","Materials","D3021","30/01/2018","60085670 - 0","1145.87","Revenue","20002464","WOLSELEY UK LIMITED"
"OCC","Direct Services","Materials","D3021","30/01/2018","60085671 - 1","2849.43","Revenue","20002464","WOLSELEY UK LIMITED"
"OCC","Direct Services","Materials","D3021","30/01/2018","60085678 - 0","3795.82","Revenue","20002464","WOLSELEY UK LIMITED"
"OCC","Direct Services","Materials","D3021","30/01/2018","60085683 - 1","1007.60","Revenue","20002464","WOLSELEY UK LIMITED"
"OCC","Direct Services","Materials","D3021","30/01/2018","60085687 - 1","1092.00","Revenue","20013011","RIONED UK LTD"
"OCC","Direct Services","Tipping Charges","D3421","30/01/2018","60085689 - 1","516.00","Revenue","20000263","SHEEHAN HAULAGE & PLANT HIRE LTD"
"OCC","Direct Services","Tipping Charges","D3421","30/01/2018","60085690 - 0","502.00","Revenue","20000263","SHEEHAN HAULAGE & PLANT HIRE LTD"
"OCC","Direct Services","Tipping Charges","D3421","30/01/2018","60085693 - 1","500.00","Revenue","20000263","SHEEHAN HAULAGE & PLANT HIRE LTD"
"OCC","Direct Services","Tipping Charges","D3421","30/01/2018","60085702 - 0","6429.55","Revenue","20012902","W & S RECYCLING SERVICES"
"OCC","Direct Services","Tipping Charges","D3421","30/01/2018","60085703 - 1","6435.74","Revenue","20012902","W & S RECYCLING SERVICES"
"OCC","Direct Services","Tipping Charges","D3421","30/01/2018","60085704 - 0","2100.00","Revenue","20012902","W & S RECYCLING SERVICES"
"OCC","Direct Services","Materials","D3021","30/01/2018","60085708 - 0","1808.68","Revenue","20002464","WOLSELEY UK LIMITED"
"OCC","Direct Services","Direct Services Sub Contractors","B1111","30/01/2018","60085709 - 1","6942.50","Revenue","20018574","ART CONTRACTS LIMITED"
"OCC","Direct Services","Direct Services Sub Contractors","B1111","30/01/2018","60085710 - 0","7147.50","Revenue","20018574","ART CONTRACTS LIMITED"
"OCC","Direct Services","Direct Services Sub Contractors","B1111","30/01/2018","60085711 - 1","5942.50","Revenue","20018574","ART CONTRACTS LIMITED"
"OCC","Direct Services","Direct Services Sub Contractors","B1111","30/01/2018","60085712 - 0","6582.50","Revenue","20018574","ART CONTRACTS LIMITED"
"OCC","Direct Services","Direct Services Sub Contractors","B1111","30/01/2018","60085713 - 1","959.56","Revenue","20000210","BARKER & EVANS LTD"
"OCC","Direct Services","Direct Services Sub Contractors","B1111","30/01/2018","60085724 - 0","3250.43","Revenue","20019334","GLEVUM HEATING & PLUMBING LTD"
"OCC","Direct Services","Direct Services Sub Contractors","B1111","30/01/2018","60085725 - 1","3230.43","Revenue","20019334","GLEVUM HEATING & PLUMBING LTD"
"OCC","Direct Services","Direct Services Sub Contractors","B1111","30/01/2018","60085726 - 0","3543.12","Revenue","20019334","GLEVUM HEATING & PLUMBING LTD"
"OCC","Direct Services","Direct Services Sub Contractors","B1111","30/01/2018","60085727 - 1","1768.00","Revenue","20019481","JESSOP & COOK ARCHITECTS LTD"
"OCC","Direct Services","Direct Services Sub Contractors","B1111","30/01/2018","60085729 - 1","444.50","Revenue","20014676","KENNINGTON FLOORING LTD"
"OCC","Direct Services","Direct Services Sub Contractors","B1111","30/01/2018","60085734 - 0","494.00","Revenue","20014676","KENNINGTON FLOORING LTD"
"OCC","Direct Services","Direct Services Sub Contractors","B1111","30/01/2018","60085737 - 1","484.00","Revenue","20014676","KENNINGTON FLOORING LTD"
"OCC","Direct Services","Direct Services Sub Contractors","B1111","30/01/2018","60085741 - 1","612.50","Revenue","20014676","KENNINGTON FLOORING LTD"
"OCC","Direct Services","Direct Services Sub Contractors","B1111","30/01/2018","60085746 - 0","900.00","Revenue","20019316","TRUTH LTD T/A KJC FELT ROOFING"
"OCC","Direct Services","Direct Services Sub Contractors","B1111","30/01/2018","60085747 - 1","1080.00","Revenue","20019316","TRUTH LTD T/A KJC FELT ROOFING"
"OCC","Direct Services","Direct Services Sub Contractors","B1111","30/01/2018","60085748 - 0","1100.00","Revenue","20019316","TRUTH LTD T/A KJC FELT ROOFING"
"OCC","Direct Services","Direct Services Sub Contractors","B1111","30/01/2018","60085749 - 1","12500.00","Revenue","20014739","MULTI-FLOORS LIMITED"
"OCC","Direct Services","Direct Services Sub Contractors","B1111","30/01/2018","60085750 - 0","4953.00","Revenue","20014739","MULTI-FLOORS LIMITED"
"OCC","Direct Services","Direct Services Sub Contractors","B1111","30/01/2018","60085751 - 1","1910.00","Revenue","20014739","MULTI-FLOORS LIMITED"
"OCC","Direct Services","Direct Services Sub Contractors","B1111","30/01/2018","60085752 - 0","450.00","Revenue","20013591","PETER BRETT ASSOCIATES LLP"
"OCC","Direct Services","Direct Services Sub Contractors","B1111","30/01/2018","60085753 - 1","10780.00","Revenue","20009112","PRESERVATION SPECIALIST TREATMENTS"
"OCC","Direct Services","Direct Services Sub Contractors","B1111","30/01/2018","60085755 - 1","7000.00","Revenue","20013974","TOM GHEE CONSTRUCTION"
"OCC","Direct Services","Direct Services Sub Contractors","B1111","30/01/2018","60085756 - 0","4500.00","Revenue","20013974","TOM GHEE CONSTRUCTION"
"OCC","Direct Services","Direct Services Sub Contractors","B1111","30/01/2018","60085757 - 1","3150.00","Revenue","20013032","VINTEC LABORATORIES LTD"
"OCC","Direct Services","Direct Services Sub Contractors","B1111","30/01/2018","60085758 - 0","3780.00","Revenue","20013032","VINTEC LABORATORIES LTD"
"OCC","Direct Services","Direct Services Sub Contractors","B1111","30/01/2018","60085759 - 1","6371.00","Revenue","20011787","WESTLAKE ASPHALT COMPANY LTD"
"OCC","Direct Services","Direct Services Sub Contractors","B1111","30/01/2018","60085760 - 0","2649.00","Revenue","20011787","WESTLAKE ASPHALT COMPANY LTD"
"OCC","Direct Services","Advertising & Publicity","D3802","30/01/2018","60085766 - 0","651.25","Revenue","20017005","ALLWAG PROMOTIONS LTD"
"OCC","Direct Services","Advertising & Publicity","D3802","30/01/2018","60085767 - 1","1160.25","Revenue","20017005","ALLWAG PROMOTIONS LTD"
"OCC","Direct Services","Advertising & Publicity","D3802","30/01/2018","60085768 - 0","522.50","Revenue","20017005","ALLWAG PROMOTIONS LTD"
"OCC","Direct Services","Materials","D3021","30/01/2018","60085778 - 0","1107.09","Revenue","20012799","LAFARGE TARMAC TRADING LIMITED"
"OCC","Direct Services","Materials","D3021","30/01/2018","60085780 - 0","689.89","Revenue","20012799","LAFARGE TARMAC TRADING LIMITED"
"OCC","Direct Services","Materials","D3021","30/01/2018","60085782 - 0","989.79","Revenue","20012799","LAFARGE TARMAC TRADING LIMITED"
"OCC","Direct Services","Materials","D3021","30/01/2018","60085784 - 0","803.40","Revenue","20012799","LAFARGE TARMAC TRADING LIMITED"
"OCC","Direct Services","Materials","D3021","30/01/2018","60085786 - 0","653.93","Revenue","20012799","LAFARGE TARMAC TRADING LIMITED"
"OCC","Direct Services","Materials","D3021","30/01/2018","60085788 - 0","878.38","Revenue","20012799","LAFARGE TARMAC TRADING LIMITED"
"OCC","Direct Services","Materials","D3021","30/01/2018","60085790 - 0","1587.52","Revenue","20012799","LAFARGE TARMAC TRADING LIMITED"
"OCC","Direct Services","Materials","D3021","30/01/2018","60085792 - 0","868.76","Revenue","20012799","LAFARGE TARMAC TRADING LIMITED"
"OCC","Direct Services","Materials","D3021","30/01/2018","60085793 - 1","1218.52","Revenue","20015230","MERKKO ENTERPRISES LIMITED"
"OCC","Direct Services","General Contracted Services","D3401","30/01/2018","60085797 - 1","600.00","Revenue","20016536","MK SURVEYS LTD"
"OCC","Direct Services","Materials","D3021","30/01/2018","60085798 - 0","882.00","Revenue","20007930","PROTEUS EQUIPMENT LTD"
"OCC","Direct Services","Protective Clothing","D3201","30/01/2018","60085804 - 0","546.00","Revenue","20008229","SITESAFE UK LTD"
"OCC","Direct Services","Materials","D3021","30/01/2018","60085808 - 0","582.39","Revenue","20007931","TRAVIS PERKINS TRADING CO LTD"
"OCC","Direct Services","General Contracted Services","D3401","30/01/2018","60085809 - 1","855.00","Revenue","20012519","UNIPART GROUP LTD"
"OCC","Direct Services","Tipping Charges","D3421","30/01/2018","60085812 - 0","68647.07","Revenue","20007990","VIRIDOR WASTE MANAGEMENT"
"OCC","Direct Services","Direct Services Sub Contractors","B1111","30/01/2018","60085814 - 0","5000.00","Revenue","20013974","TOM GHEE CONSTRUCTION"
"OCC","Direct Services","Materials","D3021","30/01/2018","60085816 - 0","454.90","Revenue","20002299","C BREWER & SONS LTD"
"OCC","HRA","Main Contractor","Y021","23/01/2018","1041029 - 0","2500.00","Capital","20011854","OXFORD FABRICATION LTD"
"OCC","HRA","Consultants Fees","D3411","09/01/2018","1041917 - 0","2500.00","Revenue","20012776","MARSHALLS"
"OCC","HRA","Consultants Fees","D3411","09/01/2018","1041918 - 0","2500.00","Revenue","20012776","MARSHALLS"
"OCC","HRA","Internal/External common areas","B1227","09/01/2018","1042041 - 0","1575.00","Revenue","20013032","VINTEC LABORATORIES LTD"
"OCC","HRA","Lift Maintenance / Servicing","B1203","16/01/2018","1042163 - 2","40.00","Revenue","20004494","COTSWOLD LIFTS LTD"
"OCC","HRA","Lift Maintenance / Servicing","B1203","16/01/2018","1042163 - 3","5704.41","Revenue","20004494","COTSWOLD LIFTS LTD"
"OCC","HRA","Rent","B1701","09/01/2018","1042221 - 1","2227.00","Revenue","20002952","LINCOLN COLLEGE"
"OCC","HRA","Main Contractor","Y021","09/01/2018","1042297 - 0","596.59","Capital","20014742","GREENBARNES LTD"
"OCC","HRA","Main Contractor","Y021","09/01/2018","1042298 - 0","668.63","Capital","20014742","GREENBARNES LTD"
"OCC","HRA","Main Contractor","Y021","09/01/2018","1042352 - 0","1009.20","Capital","20011406","HAYS SPECIALIST RECRUITMENT LTD"
"OCC","HRA","Main Contractor","Y021","09/01/2018","1042353 - 0","807.36","Capital","20011406","HAYS SPECIALIST RECRUITMENT LTD"
"OCC","HRA","Main Contractor","Y021","09/01/2018","1042387 - 0","983.98","Capital","20011406","HAYS SPECIALIST RECRUITMENT LTD"
"OCC","HRA","Main Contractor","Y021","09/01/2018","1042418 - 0","1698.00","Capital","20008132","ARCADIS LLP"
"OCC","HRA","Main Contractor","Y021","09/01/2018","1042419 - 0","4010.00","Capital","20008132","ARCADIS LLP"
"OCC","HRA","Fire Alarms and Emergency Lighting","B1241","16/01/2018","1042429 - 0","10374.00","Revenue","20002568","PYROTEC SERVICES LTD"
"OCC","HRA","Main Contractor","Y021","09/01/2018","1042445 - 0","2425.00","Capital","20009112","PRESERVATION SPECIALIST TREATMENTS"
"OCC","HRA","Energy Conservation","B1165","16/01/2018","1042462 - 0","2685.00","Revenue","20019431","ELLIPSE ENERGY LIMITED"
"OCC","HRA","Consultants Fees","D3411","09/01/2018","1042479 - 0","7200.00","Revenue","20011931","CAPITA PROPERTY & INFRASTRUCTURE LTD"
"OCC","HRA","Internal/External common areas","B1227","16/01/2018","1042496 - 0","495.00","Revenue","20019765","SARACEN FIRE PROTECTION LTD"
"OCC","HRA","Main Contractor","Y021","09/01/2018","1042579 - 0","2383.12","Capital","20015885","NATIONWIDE WINDOWS"
"OCC","HRA","Main Contractor","Y021","09/01/2018","1042628 - 0","795.37","Capital","20015885","NATIONWIDE WINDOWS"
"OCC","HRA","Laundry Appliances","B1222","09/01/2018","1042638 - 0","1872.50","Revenue","20018987","JAMES ARMSTRONG & CO LTD"
"OCC","HRA","Laundry Appliances","B1222","09/01/2018","1042638 - 1","280.00","Revenue","20018987","JAMES ARMSTRONG & CO LTD"
"OCC","HRA","Main Contractor","Y021","09/01/2018","1042640 - 0","1722.64","Capital","20015885","NATIONWIDE WINDOWS"
"OCC","HRA","Main Contractor","Y021","09/01/2018","1042641 - 0","1052.24","Capital","20015885","NATIONWIDE WINDOWS"
"OCC","HRA","Fire Alarms and Emergency Lighting","B1241","23/01/2018","1042645 - 1","9638.40","Revenue","20002568","PYROTEC SERVICES LTD"
"OCC","HRA","Furniture & Equipment Purchase","D3001","09/01/2018","1042659 - 0","873.60","Revenue","20007932","FURNISHED HOMES (UNDERLEY FURNISHINGS) LTD"
"OCC","HRA","Furniture & Equipment Purchase","D3001","09/01/2018","1042660 - 0","851.20","Revenue","20007932","FURNISHED HOMES (UNDERLEY FURNISHINGS) LTD"
"OCC","HRA","Furniture & Equipment Purchase","D3001","09/01/2018","1042661 - 0","756.00","Revenue","20007932","FURNISHED HOMES (UNDERLEY FURNISHINGS) LTD"
"OCC","HRA","Furniture & Equipment Purchase","D3001","09/01/2018","1042662 - 0","800.80","Revenue","20007932","FURNISHED HOMES (UNDERLEY FURNISHINGS) LTD"
"OCC","HRA","Main Contractor","Y021","16/01/2018","1042665 - 0","578.57","Capital","20013032","VINTEC LABORATORIES LTD"
"OCC","HRA","Main Contractor","Y021","16/01/2018","1042666 - 0","578.57","Capital","20013032","VINTEC LABORATORIES LTD"
"OCC","HRA","Main Contractor","Y021","16/01/2018","1042667 - 0","578.57","Capital","20013032","VINTEC LABORATORIES LTD"
"OCC","HRA","Main Contractor","Y021","16/01/2018","1042668 - 0","578.57","Capital","20013032","VINTEC LABORATORIES LTD"
"OCC","HRA","Main Contractor","Y021","16/01/2018","1042669 - 0","578.57","Capital","20013032","VINTEC LABORATORIES LTD"
"OCC","HRA","Main Contractor","Y021","09/01/2018","1042679 - 0","820.00","Capital","20009112","PRESERVATION SPECIALIST TREATMENTS"
"OCC","HRA","Main Contractor","Y021","09/01/2018","1042680 - 0","960.00","Capital","20009112","PRESERVATION SPECIALIST TREATMENTS"
"OCC","HRA","Main Contractor","Y021","16/01/2018","1042681 - 0","1157.14","Capital","20013032","VINTEC LABORATORIES LTD"
"OCC","HRA","Main Contractor","Y021","16/01/2018","1042682 - 0","1600.00","Capital","20013032","VINTEC LABORATORIES LTD"
"OCC","HRA","Main Contractor","Y021","09/01/2018","1042683 - 0","6870.80","Capital","20019471","WARRIOR DOORS LTD"
"OCC","HRA","Main Contractor","Y021","09/01/2018","1042692 - 0","1180.00","Capital","20002513","MARCUS COPELIN"
"OCC","HRA","Main Contractor","Y021","09/01/2018","1042693 - 0","680.00","Capital","20002513","MARCUS COPELIN"
"OCC","HRA","Main Contractor","Y021","16/01/2018","1042748 - 0","5120.93","Capital","20019667","DUCTCLEAN (UK) LTD"
"OCC","HRA","Main Contractor","Y021","16/01/2018","1042749 - 0","7263.35","Capital","20019667","DUCTCLEAN (UK) LTD"
"OCC","HRA","Main Contractor","Y021","16/01/2018","1042750 - 0","5120.93","Capital","20019667","DUCTCLEAN (UK) LTD"
"OCC","HRA","Main Contractor","Y021","16/01/2018","1042751 - 0","5120.93","Capital","20019667","DUCTCLEAN (UK) LTD"
"OCC","HRA","Main Contractor","Y021","16/01/2018","1042752 - 0","5120.93","Capital","20019667","DUCTCLEAN (UK) LTD"
"OCC","HRA","Main Contractor","Y021","16/01/2018","1042753 - 0","5120.93","Capital","20019667","DUCTCLEAN (UK) LTD"
"OCC","HRA","Main Contractor","Y021","16/01/2018","1042754 - 0","5120.93","Capital","20019667","DUCTCLEAN (UK) LTD"
"OCC","HRA","Counsel & External Legal Fees","D3417","09/01/2018","1042756 - 0","1180.00","Revenue","20008797","KNIGHTS PROFESSIONAL SERVICES LTD.,"
"OCC","HRA","Counsel & External Legal Fees","D3417","16/01/2018","1042757 - 0","870.00","Revenue","20008797","KNIGHTS PROFESSIONAL SERVICES LTD.,"
"OCC","HRA","Main Contractor","Y021","30/01/2018","1042823 - 0","1009.20","Capital","20011406","HAYS SPECIALIST RECRUITMENT LTD"
"OCC","HRA","Main Contractor","Y021","30/01/2018","1042824 - 0","1009.20","Capital","20011406","HAYS SPECIALIST RECRUITMENT LTD"
"OCC","HRA","Laundry Appliances","B1222","30/01/2018","1042831 - 0","1872.50","Revenue","20018987","JAMES ARMSTRONG & CO LTD"
"OCC","HRA","Laundry Appliances","B1222","30/01/2018","1042831 - 1","280.00","Revenue","20018987","JAMES ARMSTRONG & CO LTD"
"OCC","HRA","General Contracted Services","D3401","09/01/2018","1042844 - 0","750.00","Revenue","20016669","WINDRUSH ECOLOGY LTD"
"OCC","HRA","Main Contractor","Y021","16/01/2018","1042895 - 0","9715.34","Capital","20012258","SOUTHERN  GAS  NETWORKS  LTD."
"OCC","HRA","Main Contractor","Y021","16/01/2018","1042909 - 0","2550.00","Capital","20002369","RIDGE & PARTNERS LLP"
"OCC","HRA","Main Contractor","Y021","16/01/2018","1042927 - 0","386645.05","Capital","20016787","WILLMOTT DIXON CONSTRUCTION LTD"
"OCC","HRA","Other Miscellaneous Expenses","D3811","16/01/2018","1042995 - 0","50456.40","Revenue","20010669","CBRE CAPITAL ADVISORS LTD"
"OCC","HRA","Consultants Fees","D3411","16/01/2018","1043011 - 0","4345.00","Revenue","20013591","PETER BRETT ASSOCIATES LLP"
"OCC","HRA","Internal/External common areas","B1227","23/01/2018","1043033 - 0","1600.00","Revenue","20014242","ASBESTOS CONSULTANCY & MANAGEMENT SERVICES LTD T/A ACMS UK"
"OCC","HRA","Furniture & Equipment Purchase","D3001","23/01/2018","1043059 - 0","2420.94","Revenue","20007932","FURNISHED HOMES (UNDERLEY FURNISHINGS) LTD"
"OCC","HRA","Furniture & Equipment Purchase","D3001","23/01/2018","1043105 - 0","2359.79","Revenue","20007932","FURNISHED HOMES (UNDERLEY FURNISHINGS) LTD"
"OCC","HRA","Electricity","B1501","30/01/2018","1043157 - 1","551.09","Revenue","20002402","SOUTHERN ELECTRIC PLC"
"OCC","HRA","Furniture & Equipment Purchase","D3001","30/01/2018","1043181 - 0","2125.59","Revenue","20007932","FURNISHED HOMES (UNDERLEY FURNISHINGS) LTD"
"OCC","HRA","Main Contractor","Y021","30/01/2018","1043217 - 0","840.00","Capital","20009112","PRESERVATION SPECIALIST TREATMENTS"
"OCC","HRA","Main Contractor","Y021","30/01/2018","1043228 - 0","860.00","Capital","20009112","PRESERVATION SPECIALIST TREATMENTS"
"OCC","HRA","Main Contractor","Y021","30/01/2018","1043230 - 0","935.00","Capital","20009112","PRESERVATION SPECIALIST TREATMENTS"
"OCC","HRA","Main Contractor","Y021","30/01/2018","1043265 - 0","470.00","Capital","20009112","PRESERVATION SPECIALIST TREATMENTS"
"OCC","HRA","Controlled Entry Maintenance","B1243","30/01/2018","1043288 - 0","1226.50","Revenue","20015630","BAYDALE CONTROL SYSTEMS"
"OCC","HRA","Controlled Entry Maintenance","B1243","30/01/2018","1043289 - 0","3477.60","Revenue","20015630","BAYDALE CONTROL SYSTEMS"
"OCC","HRA","Internal/External common areas","B1227","30/01/2018","1043368 - 0","1600.00","Revenue","20013032","VINTEC LABORATORIES LTD"
"OCC","HRA","Refunds","J8328","09/01/2018","46296320 - 1","2348.16","Revenue","20000011","RENT REFUNDS"
"OCC","HRA","Refunds","J8328","09/01/2018","46296325 - 1","597.02","Revenue","20000011","RENT REFUNDS"
"OCC","HRA","Refunds","J8328","09/01/2018","46296327 - 1","1945.00","Revenue","20000011","RENT REFUNDS"
"OCC","HRA","Refunds","J8328","09/01/2018","46296328 - 1","729.86","Revenue","20000011","RENT REFUNDS"
"OCC","HRA","Refunds","J8328","09/01/2018","46296329 - 1","1800.00","Revenue","20000011","RENT REFUNDS"
"OCC","HRA","Counsel & External Legal Fees","D3417","09/01/2018","46296339 - 1","823.20","Revenue","20000000","GENERAL EXPENSES"
"OCC","HRA","Refunds","J8328","09/01/2018","46296364 - 1","1596.90","Revenue","20000011","RENT REFUNDS"
"OCC","HRA","Temporary Bureau Staffing","A0108","16/01/2018","46296428 - 26","3307.22","Revenue","20018053","REED SPECIALIST RECRUITMENT LTD"
"OCC","HRA","Temporary Bureau Staffing","A0108","16/01/2018","46296428 - 27","4934.52","Revenue","20018053","REED SPECIALIST RECRUITMENT LTD"
"OCC","HRA","Main Contractor","Y021","16/01/2018","46296428 - 28","15475.52","Capital","20018053","REED SPECIALIST RECRUITMENT LTD"
"OCC","HRA","Main Contractor","Y021","16/01/2018","46296428 - 29","3441.39","Capital","20018053","REED SPECIALIST RECRUITMENT LTD"
"OCC","HRA","Temporary Bureau Staffing","A0108","16/01/2018","46296428 - 30","11833.70","Revenue","20018053","REED SPECIALIST RECRUITMENT LTD"
"OCC","HRA","Refunds","J8328","23/01/2018","46296501 - 1","3764.13","Revenue","20000011","RENT REFUNDS"
"OCC","HRA","Refunds","J8328","23/01/2018","46296553 - 1","2348.16","Revenue","20000011","RENT REFUNDS"
"OCC","HRA","Refunds","J8328","30/01/2018","46296559 - 1","1000.00","Revenue","20000011","RENT REFUNDS"
"OCC","HRA","Refunds","J8328","30/01/2018","46296585 - 1","1415.27","Revenue","20000011","RENT REFUNDS"
"OCC","HRA","Water & Sewerage Charges","B1830","16/01/2018","47022991 - 1","3364.88","Revenue","20019401","CASTLE WATER"
"OCC","HRA","Electricity","B1501","16/01/2018","47023022 - 0","848.47","Revenue","20011411","NPOWER"
"OCC","HRA","Gas","B1502","23/01/2018","47023186 - 1","477.82","Revenue","20002402","SOUTHERN ELECTRIC PLC"
"OCC","HRA","Electricity","B1501","30/01/2018","47023285 - 1","1552.27","Revenue","20002402","SOUTHERN ELECTRIC PLC"
"OCC","HRA","Electricity","B1501","30/01/2018","47023289 - 1","1022.82","Revenue","20002402","SOUTHERN ELECTRIC PLC"
"OCC","HRA","Electricity","B1501","30/01/2018","47023309 - 0","715.92","Revenue","20002402","SOUTHERN ELECTRIC PLC"
"OCC","HRA","Electricity","B1501","30/01/2018","47023320 - 1","893.40","Revenue","20002402","SOUTHERN ELECTRIC PLC"
"OCC","HRA","Electricity","B1501","30/01/2018","47023355 - 1","1350.88","Revenue","20002402","SOUTHERN ELECTRIC PLC"
"OCC","HRA","Electricity","B1501","30/01/2018","47023357 - 1","543.86","Revenue","20002402","SOUTHERN ELECTRIC PLC"
"OCC","HRA","Electricity","B1501","30/01/2018","47023370 - 0","602.41","Revenue","20002402","SOUTHERN ELECTRIC PLC"
"OCC","HRA","Electricity","B1501","30/01/2018","47023380 - 0","972.29","Revenue","20002402","SOUTHERN ELECTRIC PLC"
"OCC","HRA","Electricity","B1501","30/01/2018","47023396 - 0","910.76","Revenue","20002402","SOUTHERN ELECTRIC PLC"
"OCC","HRA","Electricity","B1501","30/01/2018","47023446 - 0","553.79","Revenue","20002402","SOUTHERN ELECTRIC PLC"
"OCC","HRA","Electricity","B1501","30/01/2018","47023454 - 0","1268.28","Revenue","20002402","SOUTHERN ELECTRIC PLC"
"OCC","HRA","Electricity","B1501","30/01/2018","47023506 - 0","734.65","Revenue","20002402","SOUTHERN ELECTRIC PLC"
"OCC","HRA","Electricity","B1501","30/01/2018","47023537 - 1","638.47","Revenue","20002402","SOUTHERN ELECTRIC PLC"
"OCC","HRA","Electricity","B1501","30/01/2018","47023539 - 1","616.39","Revenue","20002402","SOUTHERN ELECTRIC PLC"
"OCC","HRA","Water & Sewerage Charges","B1830","30/01/2018","47023582 - 1","796.48","Revenue","20002423","THAMES WATER UTILITIES LTD"
"OCC","HRA","Asbestos Work","B1106","16/01/2018","60084861 - 0","675.00","Revenue","20000209","AMITY INSULATION SERVICES LTD"
"OCC","HRA","Asbestos Work","B1106","23/01/2018","60085097 - 2","1063.00","Revenue","20000263","SHEEHAN HAULAGE & PLANT HIRE LTD"
"OCC","Financial Services","Main Contractor","Y021","16/01/2018","1040145 - 1","19986.00","Capital","20013684","ATKINS LIMITED"
"OCC","Financial Services","General Contracted Services","D3401","16/01/2018","1041733 - 0","8466.75","Revenue","20010153","CIVICA UK LTD"
"OCC","Financial Services","Consultants Fees","D3411","09/01/2018","1042300 - 0","1750.00","Revenue","20002820","BADENOCH & CLARK LTD"
"OCC","Financial Services","Consultants Fees","D3411","09/01/2018","1042302 - 0","1750.00","Revenue","20002820","BADENOCH & CLARK LTD"
"OCC","Financial Services","Main Contractor","Y021","16/01/2018","1042374 - 0","831.00","Capital","20013684","ATKINS LIMITED"
"OCC","Financial Services","Main Contractor","Y021","16/01/2018","1042381 - 0","3880.00","Capital","20013684","ATKINS LIMITED"
"OCC","Financial Services","General Contracted Services","D3401","16/01/2018","1042590 - 0","2772.00","Revenue","20010153","CIVICA UK LTD"
"OCC","Financial Services","Consultants Fees","D3411","16/01/2018","1042622 - 0","1750.00","Revenue","20002820","BADENOCH & CLARK LTD"
"OCC","Financial Services","Short Courses","A0622","09/01/2018","1042695 - 0","1024.99","Revenue","20014686","BPP PROFESSIONAL EDUCATION LTD"
"OCC","Financial Services","Consultants Fees","D3411","23/01/2018","1042741 - 0","1750.00","Revenue","20002820","BADENOCH & CLARK LTD"
"OCC","Financial Services","Consultants Fees","D3411","30/01/2018","1042774 - 0","700.00","Revenue","20002820","BADENOCH & CLARK LTD"
"OCC","Financial Services","Consultants Fees","D3411","23/01/2018","1042777 - 0","17943.75","Revenue","20019082","BDO LLP"
"OCC","Financial Services","General Contracted Services","D3401","23/01/2018","1043147 - 0","2915.00","Revenue","20013646","ITS TRAINING (UK) LTD"
"OCC","Financial Services","Consultants Fees","D3411","16/01/2018","46296380 - 8","309.00","Revenue","20011499","TOPS"
"OCC","Financial Services","Consultants Fees","D3411","16/01/2018","46296380 - 23","99.00","Revenue","20011499","TOPS"
"OCC","Financial Services","Temporary Bureau Staffing","A0108","16/01/2018","46296428 - 14","5140.48","Revenue","20018053","REED SPECIALIST RECRUITMENT LTD"
"OCC","Financial Services","Temporary Bureau Staffing","A0108","16/01/2018","46296428 - 15","29595.62","Revenue","20018053","REED SPECIALIST RECRUITMENT LTD"
"OCC","Law and Governance","Contract Printing (External)","D3303","09/01/2018","1042012 - 1","427.15","Revenue","20018754","STEPHEN AUSTIN & SONS LTD"
"OCC","Law and Governance","Contract Printing (External)","D3303","09/01/2018","1042410 - 0","3869.30","Revenue","20010748","ELECTORAL REFORM SERVICES LTD"
"OCC","Law and Governance","Contract Printing (External)","D3303","09/01/2018","1042558 - 1","745.00","Revenue","20018754","STEPHEN AUSTIN & SONS LTD"
"OCC","Law and Governance","Contract Printing (External)","D3303","09/01/2018","1042561 - 0","1023.01","Revenue","20018754","STEPHEN AUSTIN & SONS LTD"
"OCC","Law and Governance","General Contracted Services","D3401","09/01/2018","1042626 - 0","3000.00","Revenue","20019804","INSTITUTE OF DIRECTORS"
"OCC","Law and Governance","Consultants Fees","D3411","23/01/2018","1042860 - 0","2303.28","Revenue","20019811","RUSHMOOR BOROUGH COUNCIL"
"OCC","Law and Governance","Subscriptions","D3703","30/01/2018","1042931 - 0","2995.00","Revenue","20004110","LGIU"
"OCC","Law and Governance","Consultants Fees","D3411","16/01/2018","1042975 - 0","2822.00","Revenue","20002930","OXFORDSHIRE COUNTY COUNCIL"
"OCC","Law and Governance","Books & Publications","D3302","16/01/2018","1043036 - 0","13763.14","Revenue","20012030","THOMSON REUTERS (PROFESSIONAL) UK LTD"
"OCC","Law and Governance","Advertising & Publicity","D3802","23/01/2018","1043060 - 0","1552.32","Revenue","20007856","NEWSQUEST MIDLANDS, WALES & SOUTH WEST"
"OCC","Law and Governance","Consultants Fees","D3411","30/01/2018","1043356 - 0","2822.00","Revenue","20002930","OXFORDSHIRE COUNTY COUNCIL"
"OCC","Law and Governance","Temporary Bureau Staffing","A0108","16/01/2018","46296428 - 24","9142.00","Revenue","20018053","REED SPECIALIST RECRUITMENT LTD"
"OCC","Suspense","Other Miscellaneous Expenses","D3811","09/01/2018","1042281 - 1","2385.90","Revenue","20002279","M & M SKIP HIRE LTD"
"OCC","Suspense","Other Miscellaneous Expenses","D3811","16/01/2018","1042576 - 1","2380.00","Revenue","20015755","JLD DRIVER TRAINING LTD"
"OCC","Suspense","Other Miscellaneous Expenses","D3811","09/01/2018","1042721 - 1","1277.75","Revenue","20018509","EVENT COMMUNICATIONS SERVICES LTD"
"OCC","Suspense","Other Miscellaneous Expenses","D3811","16/01/2018","1042725 - 1","859.55","Revenue","20002464","WOLSELEY UK LIMITED"
"OCC","Suspense","Other Miscellaneous Expenses","D3811","16/01/2018","1042727 - 1","842.67","Revenue","20002464","WOLSELEY UK LIMITED"
"OCC","Suspense","Other Miscellaneous Expenses","D3811","16/01/2018","1042806 - 1","546.62","Revenue","20002464","WOLSELEY UK LIMITED"
"OCC","Suspense","Other Miscellaneous Expenses","D3811","09/01/2018","1042808 - 1","453.60","Revenue","20003882","SPALDINGS (UK) LTD"
"OCC","Suspense","Other Miscellaneous Expenses","D3811","30/01/2018","1043161 - 1","598.20","Revenue","20006342","JEWSON LTD"
"OCC","Suspense","Other Miscellaneous Expenses","D3811","30/01/2018","1043169 - 1","420.24","Revenue","20002464","WOLSELEY UK LIMITED"
"OCC","Suspense","Other Miscellaneous Expenses","D3811","30/01/2018","46294883 - 1","3350.00","Revenue","20019334","GLEVUM HEATING & PLUMBING LTD"
"OCC","Suspense","Other Miscellaneous Expenses","D3811","30/01/2018","46294979 - 1","4034.00","Revenue","20019334","GLEVUM HEATING & PLUMBING LTD"
"OCC","Suspense","Other Miscellaneous Expenses","D3811","09/01/2018","46295579 - 1","19200.00","Revenue","20018276","DESIGN COUNCIL"
"OCC","Suspense","Child Care Vouchers","A0709","23/01/2018","46296479 - 1","12610.72","Revenue","20017541","COMPUTERSHARE VOUCHER SERVICES"
"OCC","Suspense","Child Care Vouchers","A0709","23/01/2018","46296479 - 2","195.47","Revenue","20017541","COMPUTERSHARE VOUCHER SERVICES"
"OCC","Suspense","Other Miscellaneous Expenses","D3811","23/01/2018","46296520 - 1","1306.67","Revenue","20019236","POWRED HEATING COMPONENTS LTD"
"OCC","Suspense","Car Salary Sacrifice","A0966","30/01/2018","46296543 - 1","11583.90","Revenue","20018618","TUSKERDIRECT LTD"
"OCC","Suspense","Car Salary Sacrifice","A0966","30/01/2018","46296543 - 2","714.46","Revenue","20018618","TUSKERDIRECT LTD"
"OCC","Suspense","Creditors - BACS","J8810","23/01/2018","46296552 - 1","1666.80","Revenue","20008178","WEST OXFORDSHIRE DISTRICT COUNCIL GENERAL A/C"
"OCC","Suspense","Creditors - BACS","J8810","30/01/2018","46296653 - 1","1711.00","Revenue","20000000","GENERAL EXPENSES"
"OCC","Suspense","Materials","D3021","09/01/2018","60084812 - 1","1269.02","Revenue","20017252","CHERWELL PACKAGING LTD"
"OCC","Suspense","Materials","D3021","09/01/2018","60084815 - 0","711.00","Revenue","20015230","MERKKO ENTERPRISES LIMITED"
"OCC","Suspense","Materials","D3021","16/01/2018","60084946 - 1","1055.04","Revenue","20007192","IMPERIAL POLYTHENE PRODS LTD"
"OCC","Suspense","Materials","D3021","16/01/2018","60084947 - 0","551.72","Revenue","20002249","INSTARMAC LTD"
"OCC","Suspense","Materials","D3021","16/01/2018","60084948 - 1","643.44","Revenue","20002249","INSTARMAC LTD"
"OCC","Suspense","Materials","D3021","16/01/2018","60084949 - 0","1149.12","Revenue","20002249","INSTARMAC LTD"
"OCC","Suspense","Materials","D3021","16/01/2018","60085011 - 0","436.20","Revenue","20015230","MERKKO ENTERPRISES LIMITED"
"OCC","Suspense","Materials","D3021","16/01/2018","60085012 - 1","1143.04","Revenue","20015230","MERKKO ENTERPRISES LIMITED"
"OCC","Suspense","Materials","D3021","23/01/2018","60085306 - 0","439.62","Revenue","20002005","HANSON AGGREGATES"
"OCC","Suspense","Materials","D3021","23/01/2018","60085307 - 1","1770.96","Revenue","20007192","IMPERIAL POLYTHENE PRODS LTD"
"OCC","Suspense","Materials","D3021","23/01/2018","60085308 - 0","1149.12","Revenue","20002249","INSTARMAC LTD"
"OCC","Suspense","Materials","D3021","23/01/2018","60085309 - 1","551.72","Revenue","20002249","INSTARMAC LTD"
"OCC","Suspense","Materials","D3021","30/01/2018","60085776 - 0","492.03","Revenue","20002005","HANSON AGGREGATES"
"OCC","Suspense","Materials","D3021","30/01/2018","60085815 - 1","790.94","Revenue","20017252","CHERWELL PACKAGING LTD"
